{"text_format":"1","workbook":"xlsx","n_sheets":5,"sheets":["Accueil","Saisie","IMPRIMER","Repartition","rendez vous"],"not_rendered":{"charts":0,"images":1,"macros":1,"external_links":0,"defined_names":8,"comments":0,"pivot_tables":0},"unopened":[],"bounds":{"document_bytes":16777216,"sheet_cells":100000,"rows_first":2000,"rows_last":500,"rows_between":2000,"halvings":0,"cell_chars":16384,"cell_head_chars":4096},"cells_cut":0,"cells_raw":0,"read":"whole","date_system":"1900"}

{"sheet":"Accueil","index":0,"n_rows":1,"n_cols":5,"rows_kept":1,"cut":false,"hidden":false,"merged":[[0,4,2,9]]}
[null,null,null,null,"ACCUEIL"]

{"sheet":"Saisie","index":1,"n_rows":460,"n_cols":102,"rows_kept":460,"cut":false,"hidden":false,"merged":[[278,6,285,6],[46,6,53,6],[78,6,85,6],[1,1,1,2],[182,6,189,6],[190,6,197,6],[198,6,205,6],[206,6,213,6],[214,6,221,6],[222,6,229,6],[230,6,237,6],[238,6,245,6],[246,6,253,6],[254,6,261,6],[270,6,277,6],[150,6,157,6],[0,1,0,2],[2,1,2,2],[313,4,322,5],[3,1,3,2],[54,6,61,6],[62,6,69,6],[70,6,77,6],[6,6,13,6],[14,6,21,6],[22,6,29,6],[30,6,37,6],[286,6,293,6],[294,6,301,6],[302,6,309,6],[262,6,269,6],[174,6,181,6],[2,55,2,57],[1,55,1,57],[1,58,2,59],[134,6,141,6],[142,6,149,6],[86,6,93,6],[38,6,45,6],[158,6,165,6],[166,6,173,6],[94,6,101,6],[110,6,117,6],[102,6,109,6],[118,6,125,6],[126,6,133,6]]}
[null," maxi Toutes les semaines",null,"Q1",{"$f":"COUNTIF($D7:$D310,\"Q1\")","v":133},null,null,{"$f":"TODAY()","v":"2022-12-19"}]
[{"$f":"TODAY()","v":"2022-12-19"},"Tous les 15 jours",null,"Q2",{"$f":"COUNTIF($D7:$D310,\"Q2\")","v":76},"9h à 12h",{"$f":"CV313","v":76},null,null,null,null,null,null,"3 familles par 1/4 heure",null,null,null,null,"FEUILLE de RENDEZ-VOUS ",null,null,null,null,null,null,null,null,null,null,null,null,null,null,null,null,null,null,null,null,null,null,null,null,null,null,null,null,null,null,null,null,null,null,null,null,"Saisir 1er mardi",null,null,"2022-01-04"]
[{"$f":"IF(E1+E2+E3+E4=G2+G3+G4,G2+G3+G4,\"Erreur\")","v":231},"Toutes les 3 semaines",null,"Q3",{"$f":"COUNTIF($D7:$D310,\"Q3\")","v":15},"12h à 15h",{"$f":"CW313","v":78},null,null,null,null,null,null," + une place reservée pour nouvelle famile par 1/4 heure",null,null,null,null,null,null,null,null,null,null,null,null,null,null,null,null,null,null,null,null,null,null,null,null,null,null,null,null,null,null,null,null,null,null,null,null,null,null,null,null,null,"de l'Année suivante"]
["Capacitée","Tous les mois",null,"Q4",{"$f":"COUNTIF($D7:$D310,\"Q4\")","v":7},"15h à 18h15",{"$f":"CX313","v":77},{"$f":"COUNTIF(H7:H310,\"X\")","v":0},0,0,0,0,0,0,0,0,0,0,0,0,0,0,0,0,0,0,0,0,0,3,6,7,9,12,12,17,27,22,28,36,42,45,58,65,{"$f":"COUNTIF(AS7:AS310,\"X\")","v":83},{"$f":"COUNTIF(AT7:AT310,\"X\")","v":86},104,103,124,138,136,158,165,179,175,185,169,183,176,180,173,184,171,184,174,179,175,185,169]
["Par\nMardi",null,null,null,null,null,null,"Mar","Mar","Mar","Mar","Mar","Mar","Mar","Mar","Mar","Mar","Mar","Mar","Mar","Mar","Mar","Mar","Mar","Mar","Mar","Mar","Mar","Mar","Mar","Mar","Mar","Mar","Mar","Mar","Mar","Mar","Mar","Mar","Mar","Mar","Mar","Mar","Mar","Mar","Mar","Mar","Mar","Mar","Mar","Mar","Mar","Mar","Mar","Mar","Mar","Mar","Mar","Mar","Mar","Mar","Mar","Mar","Mar","Mar","Mer.","Jeu.","Ven.","Sam."]
[144,"FAMILLE",null,"FREQUENCE","DEMARRAGE","RENDEZ VOUS","HORAIRES",{"$f":"$BG$2","v":"2022-01-04"},{"$f":"H6+7","v":"2022-01-11"},{"$f":"I6+7","v":"2022-01-18"},{"$f":"J6+7","v":"2022-01-25"},{"$f":"K6+7","v":"2022-02-01"},{"$f":"L6+7","v":"2022-02-08"},{"$f":"M6+7","v":"2022-02-15"},{"$f":"N6+7","v":"2022-02-22"},{"$f":"O6+7","v":"2022-03-01"},{"$f":"P6+7","v":"2022-03-08"},{"$f":"Q6+7","v":"2022-03-15"},{"$f":"R6+7","v":"2022-03-22"},{"$f":"S6+7","v":"2022-03-29"},{"$f":"T6+7","v":"2022-04-05"},{"$f":"U6+7","v":"2022-04-12"},{"$f":"V6+7","v":"2022-04-19"},{"$f":"W6+7","v":"2022-04-26"},{"$f":"X6+7","v":"2022-05-03"},{"$f":"Y6+7","v":"2022-05-10"},{"$f":"Z6+7","v":"2022-05-17"},{"$f":"AA6+7","v":"2022-05-24"},{"$f":"AB6+7","v":"2022-05-31"},{"$f":"AC6+7","v":"2022-06-07"},{"$f":"AD6+7","v":"2022-06-14"},{"$f":"AE6+7","v":"2022-06-21"},{"$f":"AF6+7","v":"2022-06-28"},{"$f":"AG6+7","v":"2022-07-05"},{"$f":"AH6+7","v":"2022-07-12"},{"$f":"AI6+7","v":"2022-07-19"},{"$f":"AJ6+7","v":"2022-07-26"},{"$f":"AK6+7","v":"2022-08-02"},{"$f":"AL6+7","v":"2022-08-09"},{"$f":"AM6+7","v":"2022-08-16"},{"$f":"AN6+7","v":"2022-08-23"},{"$f":"AO6+7","v":"2022-08-30"},{"$f":"AP6+7","v":"2022-09-06"},{"$f":"AQ6+7","v":"2022-09-13"},{"$f":"AR6+7","v":"2022-09-20"},{"$f":"AS6+7","v":"2022-09-27"},{"$f":"AT6+7","v":"2022-10-04"},{"$f":"AU6+7","v":"2022-10-11"},{"$f":"AV6+7","v":"2022-10-18"},{"$f":"AW6+7","v":"2022-10-25"},{"$f":"AX6+7","v":"2022-11-01"},{"$f":"AY6+7","v":"2022-11-08"},{"$f":"AZ6+7","v":"2022-11-15"},{"$f":"BA6+7","v":"2022-11-22"},{"$f":"BB6+7","v":"2022-11-29"},{"$f":"BC6+7","v":"2022-12-06"},{"$f":"BD6+7","v":"2022-12-13"},{"$f":"BE6+7","v":"2022-12-20"},{"$f":"BF6+7","v":"2022-12-27"},{"$f":"BG6+7","v":"2023-01-03"},{"$f":"BH6+7","v":"2023-01-10"},{"$f":"BI6+7","v":"2023-01-17"},{"$f":"BJ6+7","v":"2023-01-24"},{"$f":"BK6+7","v":"2023-01-31"},{"$f":"BL6+7","v":"2023-02-07"},{"$f":"BM6+7","v":"2023-02-14"},{"$f":"BN6+7","v":"2023-02-21"},{"$f":"BO6+7","v":"2023-02-28"},{"$f":"BP6+7","v":"2023-03-07"},null,null,null,null,null,null,null,"Q1",null,null,null,null,null,null,null,null,null,null,null,null,null,null,null,null,null,null,null,null,null,null,"Matin ","midi","am"]
[null,"AVAGYAN METAKSYA",6,"Q1","2022-10-18","2022-12-27","9H00",null,null,null,null,null,null,null,null,null,null,null,null,null,null,null,null,null,null,null,null,null,null,null,null,null,null,null,null,null,null,null,null,null,null,null,null,null,null,null,null,null,"X","X","X","X","X","X","X","X","X","X","X","X","X","X","X","X","X","X","X","X","X",null,null,null,null,null,null,null,"Q2",null,null,null,null,null,null,null,null,null,null,null,null,null,null,null,null,null,null,null,null,null,null,{"$f":"IF($B7=\"\",0,1)","v":1}]
[null,"COUFOURIER SERGE",1,"Q2","2022-11-22","2023-02-28",null,null,null,null,null,null,null,null,null,null,null,null,null,null,null,null,null,null,null,null,null,null,null,null,null,null,null,null,null,null,null,null,null,null,null,null,null,null,null,null,null,null,null,null,null,null,null,"X",null,"X",null,"X",null,"X",null,"X",null,"X",null,"X",null,"X",null,null,null,null,null,null,null,null,"Q3",null,null,null,null,null,null,null,null,null,null,null,null,null,null,null,null,null,null,null,null,null,null,1]
[null,"GIUSTINI LAYMET",3,"Q4","2022-10-04","2022-11-29",null,null,null,null,null,null,null,null,null,null,null,null,null,null,null,null,null,null,null,null,null,null,null,null,null,null,null,null,null,null,null,null,null,null,null,null,null,null,null,null,"X",null,null,null,"X",null,null,null,"X",null,null,null,"X",null,null,null,"X",null,null,null,"X",null,null,null,null,null,null,null,null,null,"Q4",null,null,null,null,null,null,null,null,null,null,null,null,null,null,null,null,null,null,null,null,null,null,1]
[null,"HASPERUE ELODIE",5,"Q1","2022-09-13","2022-12-13",null,null,null,null,null,null,null,null,null,null,null,null,null,null,null,null,null,null,null,null,null,null,null,null,null,null,null,null,null,null,null,null,null,null,null,null,null,"X","X","X","X","X","X","X","X","X","X","X","X","X","X","X","X","X","X","X","X","X","X","X","X","X","X",null,null,null,null,null,null,null,null,null,null,null,null,null,null,null,null,null,null,null,null,null,null,null,null,null,null,null,null,null,null,1]
[null,"LAMBERT JENNIFER",3,"Q1","2022-06-14","2022-09-13",null,null,null,null,null,null,null,null,null,null,null,null,null,null,null,null,null,null,null,null,null,null,null,null,"X","X","X","X","X","X","X","X","X","X","X","X","X","X","X","X","X","X","X","X","X","X","X","X","X","X","X","X","X","X","X","X","X","X","X","X","X","X","X",null,null,null,null,null,null,null,null,null,null,null,null,null,null,null,null,null,null,null,null,null,null,null,null,null,null,null,null,null,null,1]
[null,"NECHEPURENKO OLEKSANDRA",6,"Q1","2022-11-08","2023-01-17",null,null,null,null,null,null,null,null,null,null,null,null,null,null,null,null,null,null,null,null,null,null,null,null,null,null,null,null,null,null,null,null,null,null,null,null,null,null,null,null,null,null,null,null,null,"X","X","X","X","X","X","X","X","X","X","X","X","X","X","X","X","X","X",null,null,null,null,null,null,null,null,null,null,null,null,null,null,null,null,null,null,null,null,null,null,null,null,null,null,null,null,null,null,1]
[null,"TO SANDRINE",5,"Q1","2022-09-13","2022-12-13",null,null,null,null,null,null,null,null,null,null,null,null,null,null,null,null,null,null,null,null,null,null,null,null,null,null,null,null,null,null,null,null,null,null,null,null,null,"X","X","X","X","X","X","X","X","X","X","X","X","X","X","X","X","X","X","X","X","X","X","X","X","X","X",null,null,null,null,null,null,null,null,null,null,null,null,null,null,null,null,null,null,null,null,null,null,null,null,null,null,null,null,null,null,1]
[null,null,null,null,null,null,null,null,null,null,null,null,null,null,null,null,null,null,null,null,null,null,null,null,null,null,null,null,null,null,null,null,null,null,null,null,null,null,null,null,null,null,null,null,null,null,null,null,null,null,null,null,null,null,null,null,null,null,null,null,null,null,null,null,null,null,null,null,null,null,null,null,null,null,null,null,null,null,null,null,null,null,null,null,null,null,null,null,null,null,null,null,null,null,null,null,null,null,null,0]
[null,"ALEXANDRE LAETITIA",2,"Q1","2022-11-22",null,"9H15",null,null,null,null,null,null,null,null,null,null,null,null,null,null,null,null,null,null,null,null,null,null,null,null,null,null,null,null,null,null,null,null,null,null,null,null,null,null,null,null,null,null,null,null,null,null,"X","X","X","X","X","X","X","X","X","X","X","X","X","X","X","X",null,null,null,null,null,null,null,null,null,null,null,null,null,null,null,null,null,null,null,null,null,null,null,null,null,null,null,null,null,null,1]
[null,"AVENIER  MELINDA",2,"Q1","2022-07-19","2022-10-18",null,null,null,null,null,null,null,null,null,null,null,null,null,null,null,null,null,null,null,null,null,null,null,null,null,null,null,null,null,"X","X","X","X","X","X","X","X","X","X","X","X","X","X","X","X","X","X","X","X","X","X","X","X","X","X","X","X","X","X","X","X","X","X",null,null,null,null,null,null,null,null,null,null,null,null,null,null,null,null,null,null,null,null,null,null,null,null,null,null,null,null,null,null,1]
[null,"BARBOSA PASCALE",1,"Q2","2022-11-22","2023-02-28",null,null,null,null,null,null,null,null,null,null,null,null,null,null,null,null,null,null,null,null,null,null,null,null,null,null,null,null,null,null,null,null,null,null,null,null,null,null,null,null,null,null,null,null,null,null,null,"X",null,"X",null,"X",null,"X",null,"X",null,"X",null,"X",null,"X",null,null,null,null,null,null,null,null,null,null,null,null,null,null,null,null,null,null,null,null,null,null,null,null,null,null,null,null,null,null,null,1]
[null,"BONFA JACQUES",1,"Q1","2022-10-04","2022-12-28",null,null,null,null,null,null,null,null,null,null,null,null,null,null,null,null,null,null,null,null,null,null,null,null,null,null,null,null,null,null,null,null,null,null,null,null,null,null,null,null,"X","X","X","X","X","X","X","X","X","X","X","X","X","X","X","X","X","X","X","X","X","X","X",null,null,null,null,null,null,null,null,null,null,null,null,null,null,null,null,null,null,null,null,null,null,null,null,null,null,null,null,null,null,1]
[null,"DANJARD ERIC",1,"Q3","2022-11-22","2023-01-03",null,null,null,null,null,null,null,null,null,null,null,null,null,null,null,null,null,null,null,null,null,null,null,null,null,null,null,null,null,null,null,null,null,null,null,null,null,null,null,null,null,null,null,null,null,null,null,"X",null,null,"X",null,null,"X",null,null,"X",null,null,"X",null,null,"X",null,null,null,null,null,null,null,null,null,null,null,null,null,null,null,null,null,null,null,null,null,null,null,null,null,null,null,null,null,null,1]
[null,"FERRARA PATRICE",4,"Q1","2022-08-30","2022-11-30",null,null,null,null,null,null,null,null,null,null,null,null,null,null,null,null,null,null,null,null,null,null,null,null,null,null,null,null,null,null,null,null,null,null,null,"X","X","X","X","X","X","X","X","X","X","X","X","X","X","X","X","X","X","X","X","X","X","X","X","X","X","X","X",null,null,null,null,null,null,null,null,null,null,null,null,null,null,null,null,null,null,null,null,null,null,null,null,null,null,null,null,null,null,1]
[null,"GHARSALLI ABDESSALEM",6,"Q1","2022-08-30","2022-11-29",null,null,null,null,null,null,null,null,null,null,null,null,null,null,null,null,null,null,null,null,null,null,null,null,null,null,null,null,null,null,null,null,null,null,null,"X","X","X","X","X","X","X","X","X","X","X","X","X","X","X","X","X","X","X","X","X","X","X","X","X","X","X","X",null,null,null,null,null,null,null,null,null,null,null,null,null,null,null,null,null,null,null,null,null,null,null,null,null,null,null,null,null,null,1]
[null,null,null,null,null,null,null,null,null,null,null,null,null,null,null,null,null,null,null,null,null,null,null,null,null,null,null,null,null,null,null,null,null,null,null,null,null,null,null,null,null,null,null,null,null,null,null,null,null,null,null,null,null,null,null,null,null,null,null,null,null,null,null,null,null,null,null,null,null,null,null,null,null,null,null,null,null,null,null,null,null,null,null,null,null,null,null,null,null,null,null,null,null,null,null,null,null,null,null,0]
[null,"BENGRIBA LAETITIA",3,"Q1","2022-07-19","2022-10-18","9H30",null,null,null,null,null,null,null,null,null,null,null,null,null,null,null,null,null,null,null,null,null,null,null,null,null,null,null,null,"X","X","X","X","X","X","X","X","X","X","X","X","X","X","X","X","X","X","X","X","X","X","X","X","X","X","X","X","X","X","X","X","X","X",null,null,null,null,null,null,null,null,null,null,null,null,null,null,null,null,null,null,null,null,null,null,null,null,null,null,null,null,null,null,1]
[null,"BERNARD YASMINA",2,"Q1","2022-11-08","2022-12-13",null,null,null,null,null,null,null,null,null,null,null,null,null,null,null,null,null,null,null,null,null,null,null,null,null,null,null,null,null,null,null,null,null,null,null,null,null,null,null,null,null,null,null,null,null,"X","X","X","X","X","X","X","X","X","X","X","X","X","X","X","X","X","X",null,null,null,null,null,null,null,null,null,null,null,null,null,null,null,null,null,null,null,null,null,null,null,null,null,null,null,null,null,null,1]
[null,"GEROMIN  VICTOR",4,"Q2","2022-11-15","2023-01-24",null,null,null,null,null,null,null,null,null,null,null,null,null,null,null,null,null,null,null,null,null,null,null,null,null,null,null,null,null,null,null,null,null,null,null,null,null,null,null,null,null,null,null,null,null,null,"X",null,"X",null,"X",null,"X",null,"X",null,"X",null,"X",null,"X",null,"X",null,null,null,null,null,null,null,null,null,null,null,null,null,null,null,null,null,null,null,null,null,null,null,null,null,null,null,null,null,null,1]
[null,"MIROSHNYCENKO YANITA",3,"Q1","2022-07-26","2022-10-25",null,null,null,null,null,null,null,null,null,null,null,null,null,null,null,null,null,null,null,null,null,null,null,null,null,null,null,null,null,null,"X","X","X","X","X","X","X","X","X","X","X","X","X","X","X","X","X","X","X","X","X","X","X","X","X","X","X","X","X","X","X","X","X",null,null,null,null,null,null,null,null,null,null,null,null,null,null,null,null,null,null,null,null,null,null,null,null,null,null,null,null,null,null,1]
[null,"SICARD EVELYNE",2,"Q1","2022-10-25","2022-11-22",null,null,null,null,null,null,null,null,null,null,null,null,null,null,null,null,null,null,null,null,null,null,null,null,null,null,null,null,null,null,null,null,null,null,null,null,null,null,null,null,null,null,null,"X","X","X","X","X","X","X","X","X","X","X","X","X","X","X","X","X","X","X","X",null,null,null,null,null,null,null,null,null,null,null,null,null,null,null,null,null,null,null,null,null,null,null,null,null,null,null,null,null,null,1]
[null,"STEFANELLI GISELE",1,"Q2","2022-11-08","2023-02-08",null,null,null,null,null,null,null,null,null,null,null,null,null,null,null,null,null,null,null,null,null,null,null,null,null,null,null,null,null,null,null,null,null,null,null,null,null,null,null,null,null,null,null,null,null,"X",null,"X",null,"X",null,"X",null,"X",null,"X",null,"X",null,"X",null,"X",null,null,null,null,null,null,null,null,null,null,null,null,null,null,null,null,null,null,null,null,null,null,null,null,null,null,null,null,null,null,null,1]
[null,"ZENAT LEILA",5,"Q1","2022-11-15","2023-01-31",null,null,null,null,null,null,null,null,null,null,null,null,null,null,null,null,null,null,null,null,null,null,null,null,null,null,null,null,null,null,null,null,null,null,null,null,null,null,null,null,null,null,null,null,null,null,"X","X","X","X","X","X","X","X","X","X","X","X","X","X","X","X","X",null,null,null,null,null,null,null,null,null,null,null,null,null,null,null,null,null,null,null,null,null,null,null,null,null,null,null,null,null,null,1]
[null,null,null,null,null,null,null,null,null,null,null,null,null,null,null,null,null,null,null,null,null,null,null,null,null,null,null,null,null,null,null,null,null,null,null,null,null,null,null,null,null,null,null,null,null,null,null,null,null,null,null,null,null,null,null,null,null,null,null,null,null,null,null,null,null,null,null,null,null,null,null,null,null,null,null,null,null,null,null,null,null,null,null,null,null,null,null,null,null,null,null,null,null,null,null,null,null,null,null,0]
[null,"BALLAND MÉLISSA ",5,"Q4","2022-11-08","2023-01-31","9H45",null,null,null,null,null,null,null,null,null,null,null,null,null,null,null,null,null,null,null,null,null,null,null,null,null,null,null,null,null,null,null,null,null,null,null,null,null,null,null,null,null,null,null,null,"X",null,null,null,"X",null,null,null,"X",null,null,null,"X",null,null,null,"X",null,null,null,null,null,null,null,null,null,null,null,null,null,null,null,null,null,null,null,null,null,null,null,null,null,null,null,null,null,null,null,1]
[null,"CHARVOLIN CAROLINE",5,"Q1","2022-09-06","2022-12-06",null,null,null,null,null,null,null,null,null,null,null,null,null,null,null,null,null,null,null,null,null,null,null,null,null,null,null,null,null,null,null,null,null,null,null,null,"X","X","X","X","X","X","X","X","X","X","X","X","X","X","X","X","X","X","X","X","X","X","X","X","X","X","X",null,null,null,null,null,null,null,null,null,null,null,null,null,null,null,null,null,null,null,null,null,null,null,null,null,null,null,null,null,null,1]
[null,"DENIS SOPHIE",2,"Q1","2022-09-13","2022-12-13",null,null,null,null,null,null,null,null,null,null,null,null,null,null,null,null,null,null,null,null,null,null,null,null,null,null,null,null,null,null,null,null,null,null,null,null,null,"X","X","X","X","X","X","X","X","X","X","X","X","X","X","X","X","X","X","X","X","X","X","X","X","X","X",null,null,null,null,null,null,null,null,null,null,null,null,null,null,null,null,null,null,null,null,null,null,null,null,null,null,null,null,null,null,1]
[null,"KAOUECHE SABRINA",3,"Q1","2022-10-11","2022-12-20",null,null,null,null,null,null,null,null,null,null,null,null,null,null,null,null,null,null,null,null,null,null,null,null,null,null,null,null,null,null,null,null,null,null,null,null,null,null,null,null,null,"X","X","X","X","X","X","X","X","X","X","X","X","X","X","X","X","X","X","X","X","X","X",null,null,null,null,null,null,null,null,null,null,null,null,null,null,null,null,null,null,null,null,null,null,null,null,null,null,null,null,null,null,1]
[null,"MIOSSEC CAMILLE",4,"Q2","2022-11-08","2023-01-10",null,null,null,null,null,null,null,null,null,null,null,null,null,null,null,null,null,null,null,null,null,null,null,null,null,null,null,null,null,null,null,null,null,null,null,null,null,null,null,null,null,null,null,null,null,"X",null,"X",null,"X",null,"X",null,"X",null,"X",null,"X",null,"X",null,"X",null,null,null,null,null,null,null,null,null,null,null,null,null,null,null,null,null,null,null,null,null,null,null,null,null,null,null,null,null,null,null,1]
[null,"SINGIER DANIELLE",1,"Q2","2022-10-04","2022-12-27",null,null,null,null,null,null,null,null,null,null,null,null,null,null,null,null,null,null,null,null,null,null,null,null,null,null,null,null,null,null,null,null,null,null,null,null,null,null,null,null,"X",null,"X",null,"X",null,"X",null,"X",null,"X",null,"X",null,"X",null,"X",null,"X",null,"X",null,"X",null,null,null,null,null,null,null,null,null,null,null,null,null,null,null,null,null,null,null,null,null,null,null,null,null,null,null,null,null,null,1]
[null,null,null,null,null,null,null,null,null,null,null,null,null,null,null,null,null,null,null,null,null,null,null,null,null,null,null,null,null,null,null,null,null,null,null,null,null,null,null,null,null,null,null,null,null,null,null,null,null,null,null,null,null,null,null,null,null,null,null,null,null,null,null,null,null,null,null,null,null,null,null,null,null,null,null,null,null,null,null,null,null,null,null,null,null,null,null,null,null,null,null,null,null,null,null,null,null,null,null,0]
[null,null,null,null,null,null,null,null,null,null,null,null,null,null,null,null,null,null,null,null,null,null,null,null,null,null,null,null,null,null,null,null,null,null,null,null,null,null,null,null,null,null,null,null,null,null,null,null,null,null,null,null,null,null,null,null,null,null,null,null,null,null,null,null,null,null,null,null,null,null,null,null,null,null,null,null,null,null,null,null,null,null,null,null,null,null,null,null,null,null,null,null,null,null,null,null,null,null,null,0]
[null,"AYDIN  YELIZ",3,"Q1","2022-11-15","2023-02-14","10H00",null,null,null,null,null,null,null,null,null,null,null,null,null,null,null,null,null,null,null,null,null,null,null,null,null,null,null,null,null,null,null,null,null,null,null,null,null,null,null,null,null,null,null,null,null,"X","X","X","X","X","X","X","X","X","X","X","X","X","X","X","X","X",null,null,null,null,null,null,null,null,null,null,null,null,null,null,null,null,null,null,null,null,null,null,null,null,null,null,null,null,null,null,{"$f":"IF($B39=\"\",0,1)","v":1}]
[null,"BRYCOVE CATHERINE",2,"Q3","2022-08-23","2022-11-15",null,null,null,null,null,null,null,null,null,null,null,null,null,null,null,null,null,null,null,null,null,null,null,null,null,null,null,null,null,null,null,null,null,null,"X",null,null,"X",null,null,"X",null,null,"X",null,null,"X",null,null,"X",null,null,"X",null,null,"X",null,null,"X",null,null,"X",null,null,null,null,null,null,null,null,null,null,null,null,null,null,null,null,null,null,null,null,null,null,null,null,null,null,null,null,null,null,null,1]
[null,"GHILOUFI BRIKA",2,"Q3","2022-06-14","2022-09-27",null,null,null,null,null,null,null,null,null,null,null,null,null,null,null,null,null,null,null,null,null,null,null,null,"X",null,null,"X",null,null,"X",null,null,"X",null,null,"X",null,null,"X",null,null,"X",null,null,"X",null,null,"X",null,null,"X",null,null,"X",null,null,"X",null,null,"X",null,null,null,null,null,null,null,null,null,null,null,null,null,null,null,null,null,null,null,null,null,null,null,null,null,null,null,null,null,null,null,null,1]
[null,"GONSI DIALLO TRAORE EZZKIEL SOW",4,"Q2","2022-10-11","2023-01-04",null,null,null,null,null,null,null,null,null,null,null,null,null,null,null,null,null,null,null,null,null,null,null,null,null,null,null,null,null,null,null,null,null,null,null,null,null,null,null,null,null,"X",null,"X",null,"X",null,"X",null,"X",null,"X",null,"X",null,"X",null,"X",null,"X",null,"X",null,null,null,null,null,null,null,null,null,null,null,null,null,null,null,null,null,null,null,null,null,null,null,null,null,null,null,null,null,null,null,1]
[null,"SAEZ NATHALIE",2,"Q1","2022-06-07","2022-09-05",null,null,null,null,null,null,null,null,null,null,null,null,null,null,null,null,null,null,null,null,null,null,null,"X","X","X","X","X","X","X","X","X","X","X","X","X","X","X","X","X","X","X","X","X","X","X","X","X","X","X","X","X","X","X","X","X","X","X","X","X","X","X","X",null,null,null,null,null,null,null,null,null,null,null,null,null,null,null,null,null,null,null,null,null,null,null,null,null,null,null,null,null,null,1]
[null,"SEON DELPHINE",2,"Q4","2022-10-11","2023-01-10",null,null,null,null,null,null,null,null,null,null,null,null,null,null,null,null,null,null,null,null,null,null,null,null,null,null,null,null,null,null,null,null,null,null,null,null,null,null,null,null,null,"X",null,null,null,"X",null,null,null,"X",null,null,null,"X",null,null,null,"X",null,null,null,"X",null,null,null,null,null,null,null,null,null,null,null,null,null,null,null,null,null,null,null,null,null,null,null,null,null,null,null,null,null,null,null,1]
[null,"THOUEILLE COLETTE",1,"Q3","2022-10-25","2022-11-15",null,null,null,null,null,null,null,null,null,null,null,null,null,null,null,null,null,null,null,null,null,null,null,null,null,null,null,null,null,null,null,null,null,null,null,null,null,null,null,null,null,null,null,"X",null,null,"X",null,null,"X",null,null,"X",null,null,"X",null,null,"X",null,null,"X",null,null,null,null,null,null,null,null,null,null,null,null,null,null,null,null,null,null,null,null,null,null,null,null,null,null,null,null,null,null,null,1]
[null,null,null,null,null,null,null,null,null,null,null,null,null,null,null,null,null,null,null,null,null,null,null,null,null,null,null,null,null,null,null,null,null,null,null,null,null,null,null,null,null,null,null,null,null,null,null,null,null,null,null,null,null,null,null,null,null,null,null,null,null,null,null,null,null,null,null,null,null,null,null,null,null,null,null,null,null,null,null,null,null,null,null,null,null,null,null,null,null,null,null,null,null,null,null,null,null,null,null,0]
[null,"BROSSARD DELPHINE",2,"Q4","2022-10-04","2023-01-03","10H15",null,null,null,null,null,null,null,null,null,null,null,null,null,null,null,null,null,null,null,null,null,null,null,null,null,null,null,null,null,null,null,null,null,null,null,null,null,null,null,"X",null,null,null,"X",null,null,null,"X",null,null,null,"X",null,null,null,"X",null,null,null,"X",null,null,null,null,null,null,null,null,null,null,null,null,null,null,null,null,null,null,null,null,null,null,null,null,null,null,null,null,null,null,null,null,1]
[null,"CROSARA ROBERT",2,"Q2","2022-07-26","2022-10-25",null,null,null,null,null,null,null,null,null,null,null,null,null,null,null,null,null,null,null,null,null,null,null,null,null,null,null,null,null,null,"X",null,"X",null,"X",null,"X",null,"X",null,"X",null,"X",null,"X",null,"X",null,"X",null,"X",null,"X",null,"X",null,"X",null,"X",null,"X",null,"X",null,null,null,null,null,null,null,null,null,null,null,null,null,null,null,null,null,null,null,null,null,null,null,null,null,null,null,null,null,null,1]
[null,"DIALLO SAIDOU",1,"Q1","2022-07-05","2022-09-06",null,null,null,null,null,null,null,null,null,null,null,null,null,null,null,null,null,null,null,null,null,null,null,null,null,null,null,"X","X","X","X","X","X","X","X","X","X","X","X","X","X","X","X","X","X","X","X","X","X","X","X","X","X","X","X","X","X","X","X","X","X","X","X",null,null,null,null,null,null,null,null,null,null,null,null,null,null,null,null,null,null,null,null,null,null,null,null,null,null,null,null,null,null,1]
[null,"MATSENKO YULIYA",2,"Q1","2022-09-13","2022-12-13",null,null,null,null,null,null,null,null,null,null,null,null,null,null,null,null,null,null,null,null,null,null,null,null,null,null,null,null,null,null,null,null,null,null,null,null,null,"X","X","X","X","X","X","X","X","X","X","X","X","X","X","X","X","X","X","X","X","X","X","X","X","X","X",null,null,null,null,null,null,null,null,null,null,null,null,null,null,null,null,null,null,null,null,null,null,null,null,null,null,null,null,null,null,1]
[null,"NACHIT AMAL",2,"Q2","2022-11-22","2023-02-14",null,null,null,null,null,null,null,null,null,null,null,null,null,null,null,null,null,null,null,null,null,null,null,null,null,null,null,null,null,null,null,null,null,null,null,null,null,null,null,null,null,null,null,null,null,null,null,"X",null,"X",null,"X",null,"X",null,"X",null,"X",null,"X",null,"X",null,null,null,null,null,null,null,null,null,null,null,null,null,null,null,null,null,null,null,null,null,null,null,null,null,null,null,null,null,null,null,1]
[null,"PULEIO GERMAINE",1,"Q1","2022-09-06","2022-12-06",null,null,null,null,null,null,null,null,null,null,null,null,null,null,null,null,null,null,null,null,null,null,null,null,null,null,null,null,null,null,null,null,null,null,null,null,"X","X","X","X","X","X","X","X","X","X","X","X","X","X","X","X","X","X","X","X","X","X","X","X","X","X","X",null,null,null,null,null,null,null,null,null,null,null,null,null,null,null,null,null,null,null,null,null,null,null,null,null,null,null,null,null,null,1]
[null,"VITALLY PATRICIA",1,"Q1","2022-09-06","2022-12-06",null,null,null,null,null,null,null,null,null,null,null,null,null,null,null,null,null,null,null,null,null,null,null,null,null,null,null,null,null,null,null,null,null,null,null,null,"X","X","X","X","X","X","X","X","X","X","X","X","X","X","X","X","X","X","X","X","X","X","X","X","X","X","X",null,null,null,null,null,null,null,null,null,null,null,null,null,null,null,null,null,null,null,null,null,null,null,null,null,null,null,null,null,null,1]
[null,null,null,null,null,null,null,null,null,null,null,null,null,null,null,null,null,null,null,null,null,null,null,null,null,null,null,null,null,null,null,null,null,null,null,null,null,null,null,null,null,null,null,null,null,null,null,null,null,null,null,null,null,null,null,null,null,null,null,null,null,null,null,null,null,null,null,null,null,null,null,null,null,null,null,null,null,null,null,null,null,null,null,null,null,null,null,null,null,null,null,null,null,null,null,null,null,null,null,0]
[null,"ABBOU RABIHA",1,"Q1","2022-10-18","2023-01-17","10H30",null,null,null,null,null,null,null,null,null,null,null,null,null,null,null,null,null,null,null,null,null,null,null,null,null,null,null,null,null,null,null,null,null,null,null,null,null,null,null,null,null,"X","X","X","X","X","X","X","X","X","X","X","X","X","X","X","X","X","X","X","X","X",null,null,null,null,null,null,null,null,null,null,null,null,null,null,null,null,null,null,null,null,null,null,null,null,null,null,null,null,null,null,1]
[null,"CHAILLOU ISABELLE",5,"Q2","2022-09-13","2022-12-06",null,null,null,null,null,null,null,null,null,null,null,null,null,null,null,null,null,null,null,null,null,null,null,null,null,null,null,null,null,null,null,null,null,null,null,null,null,"X",null,"X",null,"X",null,"X",null,"X",null,"X",null,"X",null,"X",null,"X",null,"X",null,"X",null,"X",null,"X",null,null,null,null,null,null,null,null,null,null,null,null,null,null,null,null,null,null,null,null,null,null,null,null,null,null,null,null,null,null,null,1]
[null,"DUBOC VALÉRIE",4,"Q1","2022-09-20","2023-01-03",null,null,null,null,null,null,null,null,null,null,null,null,null,null,null,null,null,null,null,null,null,null,null,null,null,null,null,null,null,null,null,null,null,null,null,null,null,null,"X","X","X","X","X","X","X","X","X","X","X","X","X","X","X","X","X","X","X","X","X","X","X","X","X",null,null,null,null,null,null,null,null,null,null,null,null,null,null,null,null,null,null,null,null,null,null,null,null,null,null,null,null,null,null,1]
[null,"FARAH  HAJER",1,"Q2","2022-10-25","2022-12-13",null,null,null,null,null,null,null,null,null,null,null,null,null,null,null,null,null,null,null,null,null,null,null,null,null,null,null,null,null,null,null,null,null,null,null,null,null,null,null,null,null,null,null,"X",null,"X",null,"X",null,"X",null,"X",null,"X",null,"X",null,"X",null,"X",null,"X",null,null,null,null,null,null,null,null,null,null,null,null,null,null,null,null,null,null,null,null,null,null,null,null,null,null,null,null,null,null,null,1]
[null,"GHARBI NAJAH",5,"Q2","2022-11-22","2023-02-14",null,null,null,null,null,null,null,null,null,null,null,null,null,null,null,null,null,null,null,null,null,null,null,null,null,null,null,null,null,null,null,null,null,null,null,null,null,null,null,null,null,null,null,null,null,null,null,"X",null,"X",null,"X",null,"X",null,"X",null,"X",null,"X",null,"X",null,null,null,null,null,null,null,null,null,null,null,null,null,null,null,null,null,null,null,null,null,null,null,null,null,null,null,null,null,null,null,1]
[null,"MARTINO RACHËL",1,"Q2","2022-11-15","2023-01-24",null,null,null,null,null,null,null,null,null,null,null,null,null,null,null,null,null,null,null,null,null,null,null,null,null,null,null,null,null,null,null,null,null,null,null,null,null,null,null,null,null,null,null,null,null,null,"X",null,"X",null,"X",null,"X",null,"X",null,"X",null,"X",null,"X",null,"X",null,null,null,null,null,null,null,null,null,null,null,null,null,null,null,null,null,null,null,null,null,null,null,null,null,null,null,null,null,null,1]
[null,"MAZZILLI  HÉLÈNE",2,"Q1","2022-08-30","2022-11-29",null,null,null,null,null,null,null,null,null,null,null,null,null,null,null,null,null,null,null,null,null,null,null,null,null,null,null,null,null,null,null,null,null,null,null,"X","X","X","X","X","X","X","X","X","X","X","X","X","X","X","X","X","X","X","X","X","X","X","X","X","X","X","X",null,null,null,null,null,null,null,null,null,null,null,null,null,null,null,null,null,null,null,null,null,null,null,null,null,null,null,null,null,null,1]
[null,null,null,null,null,null,null,null,null,null,null,null,null,null,null,null,null,null,null,null,null,null,null,null,null,null,null,null,null,null,null,null,null,null,null,null,null,null,null,null,null,null,null,null,null,null,null,null,null,null,null,null,null,null,null,null,null,null,null,null,null,null,null,null,null,null,null,null,null,null,null,null,null,null,null,null,null,null,null,null,null,null,null,null,null,null,null,null,null,null,null,null,null,null,null,null,null,null,null,0]
[null,"ARANA GALA SONIA",2,"Q2","2022-08-23","2022-11-15","10H45",null,null,null,null,null,null,null,null,null,null,null,null,null,null,null,null,null,null,null,null,null,null,null,null,null,null,null,null,null,null,null,null,null,"X",null,"X",null,"X",null,"X",null,"X",null,"X",null,"X",null,"X",null,"X",null,"X",null,"X",null,"X",null,"X",null,"X",null,"X",null,null,null,null,null,null,null,null,null,null,null,null,null,null,null,null,null,null,null,null,null,null,null,null,null,null,null,null,null,null,1]
[null,"ASIEN JEAN-MARC",3,"Q2","2022-08-23","2022-11-22",null,null,null,null,null,null,null,null,null,null,null,null,null,null,null,null,null,null,null,null,null,null,null,null,null,null,null,null,null,null,null,null,null,null,"X",null,"X",null,"X",null,"X",null,"X",null,"X",null,"X",null,"X",null,"X",null,"X",null,"X",null,"X",null,"X",null,"X",null,"X",null,null,null,null,null,null,null,null,null,null,null,null,null,null,null,null,null,null,null,null,null,null,null,null,null,null,null,null,null,null,1]
[null,"KHADA FATIMA",6,"Q2","2022-11-22","2023-02-14",null,null,null,null,null,null,null,null,null,null,null,null,null,null,null,null,null,null,null,null,null,null,null,null,null,null,null,null,null,null,null,null,null,null,null,null,null,null,null,null,null,null,null,null,null,null,null,"X",null,"X",null,"X",null,"X",null,"X",null,"X",null,"X",null,"X",null,null,null,null,null,null,null,null,null,null,null,null,null,null,null,null,null,null,null,null,null,null,null,null,null,null,null,null,null,null,null,1]
[null,"NEPOTE-CIT CHRISTELLE",2,"Q1","2022-09-06","2022-12-06",null,null,null,null,null,null,null,null,null,null,null,null,null,null,null,null,null,null,null,null,null,null,null,null,null,null,null,null,null,null,null,null,null,null,null,null,"X","X","X","X","X","X","X","X","X","X","X","X","X","X","X","X","X","X","X","X","X","X","X","X","X","X","X",null,null,null,null,null,null,null,null,null,null,null,null,null,null,null,null,null,null,null,null,null,null,null,null,null,null,null,null,null,null,1]
[null,"NOIRON FLORENCE",1,"Q1","2022-10-25","2022-12-06",null,null,null,null,null,null,null,null,null,null,null,null,null,null,null,null,null,null,null,null,null,null,null,null,null,null,null,null,null,null,null,null,null,null,null,null,null,null,null,null,null,null,null,"X","X","X","X","X","X","X","X","X","X","X","X","X","X","X","X","X","X","X","X",null,null,null,null,null,null,null,null,null,null,null,null,null,null,null,null,null,null,null,null,null,null,null,null,null,null,null,null,null,null,1]
[null,null,null,null,null,null,null,null,null,null,null,null,null,null,null,null,null,null,null,null,null,null,null,null,null,null,null,null,null,null,null,null,null,null,null,null,null,null,null,null,null,null,null,null,null,null,null,null,null,null,null,null,null,null,null,null,null,null,null,null,null,null,null,null,null,null,null,null,null,null,null,null,null,null,null,null,null,null,null,null,null,null,null,null,null,null,null,null,null,null,null,null,null,null,null,null,null,null,null,0]
[null,null,null,null,null,null,null,null,null,null,null,null,null,null,null,null,null,null,null,null,null,null,null,null,null,null,null,null,null,null,null,null,null,null,null,null,null,null,null,null,null,null,null,null,null,null,null,null,null,null,null,null,null,null,null,null,null,null,null,null,null,null,null,null,null,null,null,null,null,null,null,null,null,null,null,null,null,null,null,null,null,null,null,null,null,null,null,null,null,null,null,null,null,null,null,null,null,null,null,0]
[null,null,null,null,null,null,null,null,null,null,null,null,null,null,null,null,null,null,null,null,null,null,null,null,null,null,null,null,null,null,null,null,null,null,null,null,null,null,null,null,null,null,null,null,null,null,null,null,null,null,null,null,null,null,null,null,null,null,null,null,null,null,null,null,null,null,null,null,null,null,null,null,null,null,null,null,null,null,null,null,null,null,null,null,null,null,null,null,null,null,null,null,null,null,null,null,null,null,null,0]
[null,"KHAMTACHE ZOULHIRA",1,"Q1","2022-09-20","2022-12-13","11H00",null,null,null,null,null,null,null,null,null,null,null,null,null,null,null,null,null,null,null,null,null,null,null,null,null,null,null,null,null,null,null,null,null,null,null,null,null,"X","X","X","X","X","X","X","X","X","X","X","X","X","X","X","X","X","X","X","X","X","X","X","X","X",null,null,null,null,null,null,null,null,null,null,null,null,null,null,null,null,null,null,null,null,null,null,null,null,null,null,null,null,null,null,{"$f":"IF($B71=\"\",0,1)","v":1}]
[null,"NIKOLIC MILAN",4,"Q1","2022-06-21","2022-09-20",null,null,null,null,null,null,null,null,null,null,null,null,null,null,null,null,null,null,null,null,null,null,null,null,null,"X","X","X","X","X","X","X","X","X","X","X","X","X","X","X","X","X","X","X","X","X","X","X","X","X","X","X","X","X","X","X","X","X","X","X","X","X","X",null,null,null,null,null,null,null,null,null,null,null,null,null,null,null,null,null,null,null,null,null,null,null,null,null,null,null,null,null,null,1]
[null,"NIOTA TUSEVO",4,"Q2","2022-11-08","2023-01-10",null,null,null,null,null,null,null,null,null,null,null,null,null,null,null,null,null,null,null,null,null,null,null,null,null,null,null,null,null,null,null,null,null,null,null,null,null,null,null,null,null,null,null,null,null,"X",null,"X",null,"X",null,"X",null,"X",null,"X",null,"X",null,"X",null,"X",null,null,null,null,null,null,null,null,null,null,null,null,null,null,null,null,null,null,null,null,null,null,null,null,null,null,null,null,null,null,null,1]
[null,"QUAIX CARINE",4,"Q2","2022-10-04","2022-12-13",null,null,null,null,null,null,null,null,null,null,null,null,null,null,null,null,null,null,null,null,null,null,null,null,null,null,null,null,null,null,null,null,null,null,null,null,null,null,null,null,"X",null,"X",null,"X",null,"X",null,"X",null,"X",null,"X",null,"X",null,"X",null,"X",null,"X",null,"X",null,null,null,null,null,null,null,null,null,null,null,null,null,null,null,null,null,null,null,null,null,null,null,null,null,null,null,null,null,null,1]
[null,"SEFFAL NADIA",5,"Q2","2022-08-02","2022-10-18",null,null,null,null,null,null,null,null,null,null,null,null,null,null,null,null,null,null,null,null,null,null,null,null,null,null,null,null,null,null,null,"X",null,"X",null,"X",null,"X",null,"X",null,"X",null,"X",null,"X",null,"X",null,"X",null,"X",null,"X",null,"X",null,"X",null,"X",null,"X",null,null,null,null,null,null,null,null,null,null,null,null,null,null,null,null,null,null,null,null,null,null,null,null,null,null,null,null,null,null,null,1]
[null,"THERON GEORGETTE",1,"Q2","2022-09-27","2023-01-03",null,null,null,null,null,null,null,null,null,null,null,null,null,null,null,null,null,null,null,null,null,null,null,null,null,null,null,null,null,null,null,null,null,null,null,null,null,null,null,"X",null,"X",null,"X",null,"X",null,"X",null,"X",null,"X",null,"X",null,"X",null,"X",null,"X",null,"X",null,null,null,null,null,null,null,null,null,null,null,null,null,null,null,null,null,null,null,null,null,null,null,null,null,null,null,null,null,null,null,1]
[null,null,null,null,null,null,null,null,null,null,null,null,null,null,null,null,null,null,null,null,null,null,null,null,null,null,null,null,null,null,null,null,null,null,null,null,null,null,null,null,null,null,null,null,null,null,null,null,null,null,null,null,null,null,null,null,null,null,null,null,null,null,null,null,null,null,null,null,null,null,null,null,null,null,null,null,null,null,null,null,null,null,null,null,null,null,null,null,null,null,null,null,null,null,null,null,null,null,null,0]
[null,null,null,null,null,null,null,null,null,null,null,null,null,null,null,null,null,null,null,null,null,null,null,null,null,null,null,null,null,null,null,null,null,null,null,null,null,null,null,null,null,null,null,null,null,null,null,null,null,null,null,null,null,null,null,null,null,null,null,null,null,null,null,null,null,null,null,null,null,null,null,null,null,null,null,null,null,null,null,null,null,null,null,null,null,null,null,null,null,null,null,null,null,null,null,null,null,null,null,0]
[null,"AVENIER BODION NICOLAS",1,"Q1","2022-07-19","2022-10-18","11H15",null,null,null,null,null,null,null,null,null,null,null,null,null,null,null,null,null,null,null,null,null,null,null,null,null,null,null,null,"X","X","X","X","X","X","X","X","X","X","X","X","X","X","X","X","X","X","X","X","X","X","X","X","X","X","X","X","X","X","X","X","X","X",null,null,null,null,null,null,null,null,null,null,null,null,null,null,null,null,null,null,null,null,null,null,null,null,null,null,null,null,null,null,1]
[null,"BRIAND BRIGITTE",3,"Q1","2022-11-08","2022-12-08",null,null,null,null,null,null,null,null,null,null,null,null,null,null,null,null,null,null,null,null,null,null,null,null,null,null,null,null,null,null,null,null,null,null,null,null,null,null,null,null,null,null,null,null,null,"X","X","X","X","X","X","X","X","X","X","X","X","X","X","X","X","X","X",null,null,null,null,null,null,null,null,null,null,null,null,null,null,null,null,null,null,null,null,null,null,null,null,null,null,null,null,null,null,1]
[null,"BRIAND JENIFFER",1,"Q1","2022-11-08","2022-12-08",null,null,null,null,null,null,null,null,null,null,null,null,null,null,null,null,null,null,null,null,null,null,null,null,null,null,null,null,null,null,null,null,null,null,null,null,null,null,null,null,null,null,null,null,null,"X","X","X","X","X","X","X","X","X","X","X","X","X","X","X","X","X","X",null,null,null,null,null,null,null,null,null,null,null,null,null,null,null,null,null,null,null,null,null,null,null,null,null,null,null,null,null,null,1]
[null,"MORDANT SAMUEL",1,"Q1","2022-07-19","2022-10-18",null,null,null,null,null,null,null,null,null,null,null,null,null,null,null,null,null,null,null,null,null,null,null,null,null,null,null,null,null,"X","X","X","X","X","X","X","X","X","X","X","X","X","X","X","X","X","X","X","X","X","X","X","X","X","X","X","X","X","X","X","X","X","X",null,null,null,null,null,null,null,null,null,null,null,null,null,null,null,null,null,null,null,null,null,null,null,null,null,null,null,null,null,null,1]
[null,"POULET MIREILLE",2,"Q1","2022-10-18","2023-01-17",null,null,null,null,null,null,null,null,null,null,null,null,null,null,null,null,null,null,null,null,null,null,null,null,null,null,null,null,null,null,null,null,null,null,null,null,null,null,null,null,null,null,"X","X","X","X","X","X","X","X","X","X","X","X","X","X","X","X","X","X","X","X","X",null,null,null,null,null,null,null,null,null,null,null,null,null,null,null,null,null,null,null,null,null,null,null,null,null,null,null,null,null,null,1]
[null,null,null,null,null,null,null,null,null,null,null,null,null,null,null,null,null,null,null,null,null,null,null,null,null,null,null,null,null,null,null,null,null,null,null,null,null,null,null,null,null,null,null,null,null,null,null,null,null,null,null,null,null,null,null,null,null,null,null,null,null,null,null,null,null,null,null,null,null,null,null,null,null,null,null,null,null,null,null,null,null,null,null,null,null,null,null,null,null,null,null,null,null,null,null,null,null,null,null,0]
[null,null,null,null,null,null,null,null,null,null,null,null,null,null,null,null,null,null,null,null,null,null,null,null,null,null,null,null,null,null,null,null,null,null,null,null,null,null,null,null,null,null,null,null,null,null,null,null,null,null,null,null,null,null,null,null,null,null,null,null,null,null,null,null,null,null,null,null,null,null,null,null,null,null,null,null,null,null,null,null,null,null,null,null,null,null,null,null,null,null,null,null,null,null,null,null,null,null,null,0]
[null,null,null,null,null,null,null,null,null,null,null,null,null,null,null,null,null,null,null,null,null,null,null,null,null,null,null,null,null,null,null,null,null,null,null,null,null,null,null,null,null,null,null,null,null,null,null,null,null,null,null,null,null,null,null,null,null,null,null,null,null,null,null,null,null,null,null,null,null,null,null,null,null,null,null,null,null,null,null,null,null,null,null,null,null,null,null,null,null,null,null,null,null,null,null,null,null,null,null,0]
[null,"BALBO MELODIE",3,"Q1","2022-07-19","2022-10-11","11H30",null,null,null,null,null,null,null,null,null,null,null,null,null,null,null,null,null,null,null,null,null,null,null,null,null,null,null,null,"X","X","X","X","X","X","X","X","X","X","X","X","X","X","X","X","X","X","X","X","X","X","X","X","X","X","X","X","X","X","X","X","X","X",null,null,null,null,null,null,null,null,null,null,null,null,null,null,null,null,null,null,null,null,null,null,null,null,null,null,null,null,null,null,1]
[null,"BALDUCCI JORDAN",1,"Q1","2022-09-13","2022-12-13",null,null,null,null,null,null,null,null,null,null,null,null,null,null,null,null,null,null,null,null,null,null,null,null,null,null,null,null,null,null,null,null,null,null,null,null,null,"X","X","X","X","X","X","X","X","X","X","X","X","X","X","X","X","X","X","X","X","X","X","X","X","X","X",null,null,null,null,null,null,null,null,null,null,null,null,null,null,null,null,null,null,null,null,null,null,null,null,null,null,null,null,null,null,1]
[null,"CROS CAROLE",4,"Q2","2022-08-16","2022-11-15",null,null,null,null,null,null,null,null,null,null,null,null,null,null,null,null,null,null,null,null,null,null,null,null,null,null,null,null,null,null,null,null,null,"X",null,"X",null,"X",null,"X",null,"X",null,"X",null,"X",null,"X",null,"X",null,"X",null,"X",null,"X",null,"X",null,"X",null,"X",null,null,null,null,null,null,null,null,null,null,null,null,null,null,null,null,null,null,null,null,null,null,null,null,null,null,null,null,null,null,null,1]
[null,"FROELICH SOPHA",3,"Q1","2022-11-08","2022-12-08",null,null,null,null,null,null,null,null,null,null,null,null,null,null,null,null,null,null,null,null,null,null,null,null,null,null,null,null,null,null,null,null,null,null,null,null,null,null,null,null,null,null,null,null,null,"X","X","X","X","X","X","X","X","X","X","X","X","X","X","X","X","X","X",null,null,null,null,null,null,null,null,null,null,null,null,null,null,null,null,null,null,null,null,null,null,null,null,null,null,null,null,null,null,1]
[null,"REY CHRISTELLE",3,"Q1","2022-09-13","2022-12-13",null,null,null,null,null,null,null,null,null,null,null,null,null,null,null,null,null,null,null,null,null,null,null,null,null,null,null,null,null,null,null,null,null,null,null,null,null,"X","X","X","X","X","X","X","X","X","X","X","X","X","X","X","X","X","X","X","X","X","X","X","X","X","X",null,null,null,null,null,null,null,null,null,null,null,null,null,null,null,null,null,null,null,null,null,null,null,null,null,null,null,null,null,null,1]
[null,null,null,null,null,null,null,null,null,null,null,null,null,null,null,null,null,null,null,null,null,null,null,null,null,null,null,null,null,null,null,null,null,null,null,null,null,null,null,null,null,null,null,null,null,null,null,null,null,null,null,null,null,null,null,null,null,null,null,null,null,null,null,null,null,null,null,null,null,null,null,null,null,null,null,null,null,null,null,null,null,null,null,null,null,null,null,null,null,null,null,null,null,null,null,null,null,null,null,0]
[null,null,null,null,null,null,null,null,null,null,null,null,null,null,null,null,null,null,null,null,null,null,null,null,null,null,null,null,null,null,null,null,null,null,null,null,null,null,null,null,null,null,null,null,null,null,null,null,null,null,null,null,null,null,null,null,null,null,null,null,null,null,null,null,null,null,null,null,null,null,null,null,null,null,null,null,null,null,null,null,null,null,null,null,null,null,null,null,null,null,null,null,null,null,null,null,null,null,null,0]
[null,null,null,null,null,null,null,null,null,null,null,null,null,null,null,null,null,null,null,null,null,null,null,null,null,null,null,null,null,null,null,null,null,null,null,null,null,null,null,null,null,null,null,null,null,null,null,null,null,null,null,null,null,null,null,null,null,null,null,null,null,null,null,null,null,null,null,null,null,null,null,null,null,null,null,null,null,null,null,null,null,null,null,null,null,null,null,null,null,null,null,null,null,null,null,null,null,null,null,0]
[null,"DANJARD ERIC",1,"Q2","2022-10-04","2022-10-18","11H45",null,null,null,null,null,null,null,null,null,null,null,null,null,null,null,null,null,null,null,null,null,null,null,null,null,null,null,null,null,null,null,null,null,null,null,null,null,null,null,"X",null,"X",null,"X",null,"X",null,"X",null,"X",null,"X",null,"X",null,"X",null,"X",null,"X",null,"X",null,null,null,null,null,null,null,null,null,null,null,null,null,null,null,null,null,null,null,null,null,null,null,null,null,null,null,null,null,null,1]
[null,"DI FONZO /LORIDANT",2,"Q2","2022-09-13","2022-12-06",null,null,null,null,null,null,null,null,null,null,null,null,null,null,null,null,null,null,null,null,null,null,null,null,null,null,null,null,null,null,null,null,null,null,null,null,null,"X",null,"X",null,"X",null,"X",null,"X",null,"X",null,"X",null,"X",null,"X",null,"X",null,"X",null,"X",null,"X",null,null,null,null,null,null,null,null,null,null,null,null,null,null,null,null,null,null,null,null,null,null,null,null,null,null,null,null,null,null,null,1]
[null,"MEO MIREILLE",1,"Q1","2022-09-27","2023-01-03",null,null,null,null,null,null,null,null,null,null,null,null,null,null,null,null,null,null,null,null,null,null,null,null,null,null,null,null,null,null,null,null,null,null,null,null,null,null,null,"X","X","X","X","X","X","X","X","X","X","X","X","X","X","X","X","X","X","X","X","X","X","X","X",null,null,null,null,null,null,null,null,null,null,null,null,null,null,null,null,null,null,null,null,null,null,null,null,null,null,null,null,null,null,1]
[null,"MOSCONE MARTINE",2,"Q1","2022-11-22","2023-02-21",null,null,null,null,null,null,null,null,null,null,null,null,null,null,null,null,null,null,null,null,null,null,null,null,null,null,null,null,null,null,null,null,null,null,null,null,null,null,null,null,null,null,null,null,null,null,null,"X","X","X","X","X","X","X","X","X","X","X","X","X","X","X","X",null,null,null,null,null,null,null,null,null,null,null,null,null,null,null,null,null,null,null,null,null,null,null,null,null,null,null,null,null,null,1]
[null,"ROTA CLAUDIE",1,"Q1","2022-09-20","2022-12-13",null,null,null,null,null,null,null,null,null,null,null,null,null,null,null,null,null,null,null,null,null,null,null,null,null,null,null,null,null,null,null,null,null,null,null,null,null,null,"X","X","X","X","X","X","X","X","X","X","X","X","X","X","X","X","X","X","X","X","X","X","X","X","X",null,null,null,null,null,null,null,null,null,null,null,null,null,null,null,null,null,null,null,null,null,null,null,null,null,null,null,null,null,null,1]
[null,"SAIDI BELTAHAR",3,"Q1","2022-10-18","2022-12-27",null,null,null,null,null,null,null,null,null,null,null,null,null,null,null,null,null,null,null,null,null,null,null,null,null,null,null,null,null,null,null,null,null,null,null,null,null,null,null,null,null,null,"X","X","X","X","X","X","X","X","X","X","X","X","X","X","X","X","X","X","X","X","X",null,null,null,null,null,null,null,null,null,null,null,null,null,null,null,null,null,null,null,null,null,null,null,null,null,null,null,null,null,null,1]
[null,"SEFFAL FATIMA",2,"Q2","2022-11-15","2023-01-24",null,null,null,null,null,null,null,null,null,null,null,null,null,null,null,null,null,null,null,null,null,null,null,null,null,null,null,null,null,null,null,null,null,null,null,null,null,null,null,null,null,null,null,null,null,null,"X",null,"X",null,"X",null,"X",null,"X",null,"X",null,"X",null,"X",null,"X",null,null,null,null,null,null,null,null,null,null,null,null,null,null,null,null,null,null,null,null,null,null,null,null,null,null,null,null,null,null,1]
[null,null,null,null,null,null,null,null,null,null,null,null,null,null,null,null,null,null,null,null,null,null,null,null,null,null,null,null,null,null,null,null,null,null,null,null,null,null,null,null,null,null,null,null,null,null,null,null,null,null,null,null,null,null,null,null,null,null,null,null,null,null,null,null,null,null,null,null,null,null,null,null,null,null,null,null,null,null,null,null,null,null,null,null,null,null,null,null,null,null,null,null,null,null,null,null,null,null,null,0]
[null,"ARVET MARIE CHRISTINE",1,"Q2","2022-09-06","2022-12-06","12H00",null,null,null,null,null,null,null,null,null,null,null,null,null,null,null,null,null,null,null,null,null,null,null,null,null,null,null,null,null,null,null,null,null,null,null,"X",null,"X",null,"X",null,"X",null,"X",null,"X",null,"X",null,"X",null,"X",null,"X",null,"X",null,"X",null,"X",null,"X",null,null,null,null,null,null,null,null,null,null,null,null,null,null,null,null,null,null,null,null,null,null,null,null,null,null,null,null,null,null,null,{"$f":"IF($B103=\"\",0,1)","v":1}]
[null,"BOURAS AKILA",1,"Q2","2022-10-04","2022-12-27",null,null,null,null,null,null,null,null,null,null,null,null,null,null,null,null,null,null,null,null,null,null,null,null,null,null,null,null,null,null,null,null,null,null,null,null,null,null,null,null,"X",null,"X",null,"X",null,"X",null,"X",null,"X",null,"X",null,"X",null,"X",null,"X",null,"X",null,"X",null,null,null,null,null,null,null,null,null,null,null,null,null,null,null,null,null,null,null,null,null,null,null,null,null,null,null,null,null,null,null,1]
[null,"GIANNALI FANNY",2,"Q1","2022-06-28","2022-09-27",null,null,null,null,null,null,null,null,null,null,null,null,null,null,null,null,null,null,null,null,null,null,null,null,null,null,"X","X","X","X","X","X","X","X","X","X","X","X","X","X","X","X","X","X","X","X","X","X","X","X","X","X","X","X","X","X","X","X","X","X","X","X","X",null,null,null,null,null,null,null,null,null,null,null,null,null,null,null,null,null,null,null,null,null,null,null,null,null,null,null,null,null,null,null,1]
[null,"PHILIPPE DENIS",1,"Q1","2022-09-27","2023-01-10",null,null,null,null,null,null,null,null,null,null,null,null,null,null,null,null,null,null,null,null,null,null,null,null,null,null,null,null,null,null,null,null,null,null,null,null,null,null,null,"X","X","X","X","X","X","X","X","X","X","X","X","X","X","X","X","X","X","X","X","X","X","X","X",null,null,null,null,null,null,null,null,null,null,null,null,null,null,null,null,null,null,null,null,null,null,null,null,null,null,null,null,null,null,null,1]
[null,"TARDIF SANDRINE",2,"Q1","2022-07-26","2022-10-25",null,null,null,null,null,null,null,null,null,null,null,null,null,null,null,null,null,null,null,null,null,null,null,null,null,null,null,null,null,null,"X","X","X","X","X","X","X","X","X","X","X","X","X","X","X","X","X","X","X","X","X","X","X","X","X","X","X","X","X","X","X","X","X",null,null,null,null,null,null,null,null,null,null,null,null,null,null,null,null,null,null,null,null,null,null,null,null,null,null,null,null,null,null,null,1]
[null,null,null,null,null,null,null,null,null,null,null,null,null,null,null,null,null,null,null,null,null,null,null,null,null,null,null,null,null,null,null,null,null,null,null,null,null,null,null,null,null,null,null,null,null,null,null,null,null,null,null,null,null,null,null,null,null,null,null,null,null,null,null,null,null,null,null,null,null,null,null,null,null,null,null,null,null,null,null,null,null,null,null,null,null,null,null,null,null,null,null,null,null,null,null,null,null,null,null,null,0]
[null,null,null,null,null,null,null,null,null,null,null,null,null,null,null,null,null,null,null,null,null,null,null,null,null,null,null,null,null,null,null,null,null,null,null,null,null,null,null,null,null,null,null,null,null,null,null,null,null,null,null,null,null,null,null,null,null,null,null,null,null,null,null,null,null,null,null,null,null,null,null,null,null,null,null,null,null,null,null,null,null,null,null,null,null,null,null,null,null,null,null,null,null,null,null,null,null,null,null,null,0]
[null,null,null,null,null,null,null,null,null,null,null,null,null,null,null,null,null,null,null,null,null,null,null,null,null,null,null,null,null,null,null,null,null,null,null,null,null,null,null,null,null,null,null,null,null,null,null,null,null,null,null,null,null,null,null,null,null,null,null,null,null,null,null,null,null,null,null,null,null,null,null,null,null,null,null,null,null,null,null,null,null,null,null,null,null,null,null,null,null,null,null,null,null,null,null,null,null,null,null,null,0]
[null,"BLAIREAU FLORENCE",1,"Q1","2022-10-04","2022-12-02","12H15",null,null,null,null,null,null,null,null,null,null,null,null,null,null,null,null,null,null,null,null,null,null,null,null,null,null,null,null,null,null,null,null,null,null,null,null,null,null,null,"X","X","X","X","X","X","X","X","X","X","X","X","X","X","X","X","X","X","X","X","X","X","X",null,null,null,null,null,null,null,null,null,null,null,null,null,null,null,null,null,null,null,null,null,null,null,null,null,null,null,null,null,null,null,1]
[null,"CHAUVET CAROLE",2,"Q3","2022-11-01","2023-02-07",null,null,null,null,null,null,null,null,null,null,null,null,null,null,null,null,null,null,null,null,null,null,null,null,null,null,null,null,null,null,null,null,null,null,null,null,null,null,null,null,null,null,null,null,"X",null,null,"X",null,null,"X",null,null,"X",null,null,"X",null,null,"X",null,null,"X",null,null,null,null,null,null,null,null,null,null,null,null,null,null,null,null,null,null,null,null,null,null,null,null,null,null,null,null,null,null,null,1]
[null,"GAFFARD MARTINE ",1,"Q1","2022-10-04","2022-12-06",null,null,null,null,null,null,null,null,null,null,null,null,null,null,null,null,null,null,null,null,null,null,null,null,null,null,null,null,null,null,null,null,null,null,null,null,null,null,null,null,"X","X","X","X","X","X","X","X","X","X","X","X","X","X","X","X","X","X","X","X","X","X","X",null,null,null,null,null,null,null,null,null,null,null,null,null,null,null,null,null,null,null,null,null,null,null,null,null,null,null,null,null,null,null,1]
[null,"HUMBERT VERONIQUE",1,"Q2","2022-11-22","2023-02-14",null,null,null,null,null,null,null,null,null,null,null,null,null,null,null,null,null,null,null,null,null,null,null,null,null,null,null,null,null,null,null,null,null,null,null,null,null,null,null,null,null,null,null,null,null,null,null,"X",null,"X",null,"X",null,"X",null,"X",null,"X",null,"X",null,"X",null,null,null,null,null,null,null,null,null,null,null,null,null,null,null,null,null,null,null,null,null,null,null,null,null,null,null,null,null,null,null,null,1]
[null,"RUSSO SABRINA",2,"Q2","2022-08-16","2022-11-15",null,null,null,null,null,null,null,null,null,null,null,null,null,null,null,null,null,null,null,null,null,null,null,null,null,null,null,null,null,null,null,null,null,"X",null,"X",null,"X",null,"X",null,"X",null,"X",null,"X",null,"X",null,"X",null,"X",null,"X",null,"X",null,"X",null,"X",null,"X",null,null,null,null,null,null,null,null,null,null,null,null,null,null,null,null,null,null,null,null,null,null,null,null,null,null,null,null,null,null,null,null,1]
[null,"SYLLA MOHAMED",1,"Q1","2022-08-16","2022-11-15",null,null,null,null,null,null,null,null,null,null,null,null,null,null,null,null,null,null,null,null,null,null,null,null,null,null,null,null,null,null,null,null,null,"X","X","X","X","X","X","X","X","X","X","X","X","X","X","X","X","X","X","X","X","X","X","X","X","X","X","X","X","X","X",null,null,null,null,null,null,null,null,null,null,null,null,null,null,null,null,null,null,null,null,null,null,null,null,null,null,null,null,null,null,null,1]
[null,"TERESHKO/KALEVYCH TÉTIANA",7,"Q2","2022-11-22","2023-02-14",null,null,null,null,null,null,null,null,null,null,null,null,null,null,null,null,null,null,null,null,null,null,null,null,null,null,null,null,null,null,null,null,null,null,null,null,null,null,null,null,null,null,null,null,null,null,null,"X",null,"X",null,"X",null,"X",null,"X",null,"X",null,"X",null,"X",null,null,null,null,null,null,null,null,null,null,null,null,null,null,null,null,null,null,null,null,null,null,null,null,null,null,null,null,null,null,null,null,1]
[null,"TRAORE FATOU",4,"Q1","2022-10-11","2023-01-02",null,null,null,null,null,null,null,null,null,null,null,null,null,null,null,null,null,null,null,null,null,null,null,null,null,null,null,null,null,null,null,null,null,null,null,null,null,null,null,null,null,"X","X","X","X","X","X","X","X","X","X","X","X","X","X","X","X","X","X","X","X","X","X",null,null,null,null,null,null,null,null,null,null,null,null,null,null,null,null,null,null,null,null,null,null,null,null,null,null,null,null,null,null,null,1]
[null,"CARTIER MILLION JOSÉPHINE",2,"Q1","2022-10-25","2023-01-24","12H30",null,null,null,null,null,null,null,null,null,null,null,null,null,null,null,null,null,null,null,null,null,null,null,null,null,null,null,null,null,null,null,null,null,null,null,null,null,null,null,null,null,null,"X","X","X","X","X","X","X","X","X","X","X","X","X","X","X","X","X","X","X","X",null,null,null,null,null,null,null,null,null,null,null,null,null,null,null,null,null,null,null,null,null,null,null,null,null,null,null,null,null,null,null,1]
[null,"DEPIN FREDERIC",1,"Q2","2022-07-26","2022-10-25",null,null,null,null,null,null,null,null,null,null,null,null,null,null,null,null,null,null,null,null,null,null,null,null,null,null,null,null,null,null,"X",null,"X",null,"X",null,"X",null,"X",null,"X",null,"X",null,"X",null,"X",null,"X",null,"X",null,"X",null,"X",null,"X",null,"X",null,"X",null,"X",null,null,null,null,null,null,null,null,null,null,null,null,null,null,null,null,null,null,null,null,null,null,null,null,null,null,null,null,null,null,null,1]
[null,"DUFOUR LAURENCE",1,"Q1","2022-10-11","2022-12-13",null,null,null,null,null,null,null,null,null,null,null,null,null,null,null,null,null,null,null,null,null,null,null,null,null,null,null,null,null,null,null,null,null,null,null,null,null,null,null,null,null,"X","X","X","X","X","X","X","X","X","X","X","X","X","X","X","X","X","X","X","X","X","X",null,null,null,null,null,null,null,null,null,null,null,null,null,null,null,null,null,null,null,null,null,null,null,null,null,null,null,null,null,null,null,1]
[null,"HRZHELIAK MARIIA",5,"Q1","2022-08-16","2022-11-15",null,null,null,null,null,null,null,null,null,null,null,null,null,null,null,null,null,null,null,null,null,null,null,null,null,null,null,null,null,null,null,null,null,"X","X","X","X","X","X","X","X","X","X","X","X","X","X","X","X","X","X","X","X","X","X","X","X","X","X","X","X","X","X",null,null,null,null,null,null,null,null,null,null,null,null,null,null,null,null,null,null,null,null,null,null,null,null,null,null,null,null,null,null,null,1]
[null,"LECONTE AUDE",1,"Q1","2022-10-25","2023-01-24",null,null,null,null,null,null,null,null,null,null,null,null,null,null,null,null,null,null,null,null,null,null,null,null,null,null,null,null,null,null,null,null,null,null,null,null,null,null,null,null,null,null,null,"X","X","X","X","X","X","X","X","X","X","X","X","X","X","X","X","X","X","X","X",null,null,null,null,null,null,null,null,null,null,null,null,null,null,null,null,null,null,null,null,null,null,null,null,null,null,null,null,null,null,null,1]
[null,"RAULLINE VALERIE",4,"Q2","2022-08-16","2022-11-15",null,null,null,null,null,null,null,null,null,null,null,null,null,null,null,null,null,null,null,null,null,null,null,null,null,null,null,null,null,null,null,null,null,"X",null,"X",null,"X",null,"X",null,"X",null,"X",null,"X",null,"X",null,"X",null,"X",null,"X",null,"X",null,"X",null,"X",null,"X",null,null,null,null,null,null,null,null,null,null,null,null,null,null,null,null,null,null,null,null,null,null,null,null,null,null,null,null,null,null,null,null,1]
[null,null,null,null,null,null,null,null,null,null,null,null,null,null,null,null,null,null,null,null,null,null,null,null,null,null,null,null,null,null,null,null,null,null,null,null,null,null,null,null,null,null,null,null,null,null,null,null,null,null,null,null,null,null,null,null,null,null,null,null,null,null,null,null,null,null,null,null,null,null,null,null,null,null,null,null,null,null,null,null,null,null,null,null,null,null,null,null,null,null,null,null,null,null,null,null,null,null,null,null,0]
[null,null,null,null,null,null,null,null,null,null,null,null,null,null,null,null,null,null,null,null,null,null,null,null,null,null,null,null,null,null,null,null,null,null,null,null,null,null,null,null,null,null,null,null,null,null,null,null,null,null,null,null,null,null,null,null,null,null,null,null,null,null,null,null,null,null,null,null,null,null,null,null,null,null,null,null,null,null,null,null,null,null,null,null,null,null,null,null,null,null,null,null,null,null,null,null,null,null,null,null,0]
[null,"ABDELBOST  FARIDA",1,"Q1","2022-11-08","2023-02-08","12H45",null,null,null,null,null,null,null,null,null,null,null,null,null,null,null,null,null,null,null,null,null,null,null,null,null,null,null,null,null,null,null,null,null,null,null,null,null,null,null,null,null,null,null,null,"X","X","X","X","X","X","X","X","X","X","X","X","X","X","X","X","X","X",null,null,null,null,null,null,null,null,null,null,null,null,null,null,null,null,null,null,null,null,null,null,null,null,null,null,null,null,null,null,null,1]
[null,"GABERT JEREMIE",2,"Q1","2022-11-22","2023-01-11",null,null,null,null,null,null,null,null,null,null,null,null,null,null,null,null,null,null,null,null,null,null,null,null,null,null,null,null,null,null,null,null,null,null,null,null,null,null,null,null,null,null,null,null,null,null,null,"X","X","X","X","X","X","X","X","X","X","X","X","X","X","X","X",null,null,null,null,null,null,null,null,null,null,null,null,null,null,null,null,null,null,null,null,null,null,null,null,null,null,null,null,null,null,null,1]
[null,"HRYHORENKO  LIUDMYLA",7,"Q2","2022-11-22","2023-02-14",null,null,null,null,null,null,null,null,null,null,null,null,null,null,null,null,null,null,null,null,null,null,null,null,null,null,null,null,null,null,null,null,null,null,null,null,null,null,null,null,null,null,null,null,null,null,null,"X",null,"X",null,"X",null,"X",null,"X",null,"X",null,"X",null,"X",null,null,null,null,null,null,null,null,null,null,null,null,null,null,null,null,null,null,null,null,null,null,null,null,null,null,null,null,null,null,null,null,1]
[null,"LACHIZE VALÉRIE",2,"Q2","2022-08-23","2022-11-29",null,null,null,null,null,null,null,null,null,null,null,null,null,null,null,null,null,null,null,null,null,null,null,null,null,null,null,null,null,null,null,null,null,null,"X",null,"X",null,"X",null,"X",null,"X",null,"X",null,"X",null,"X",null,"X",null,"X",null,"X",null,"X",null,"X",null,"X",null,"X",null,null,null,null,null,null,null,null,null,null,null,null,null,null,null,null,null,null,null,null,null,null,null,null,null,null,null,null,null,null,null,1]
[null,"REY EDITH",2,"Q2","2022-11-15","2023-02-14",null,null,null,null,null,null,null,null,null,null,null,null,null,null,null,null,null,null,null,null,null,null,null,null,null,null,null,null,null,null,null,null,null,null,null,null,null,null,null,null,null,null,null,null,null,null,"X",null,"X",null,"X",null,"X",null,"X",null,"X",null,"X",null,"X",null,"X",null,null,null,null,null,null,null,null,null,null,null,null,null,null,null,null,null,null,null,null,null,null,null,null,null,null,null,null,null,null,null,1]
[null,"THORN CATHERINE",2,"Q1","2022-08-16","2022-11-15",null,null,null,null,null,null,null,null,null,null,null,null,null,null,null,null,null,null,null,null,null,null,null,null,null,null,null,null,null,null,null,null,null,"X","X","X","X","X","X","X","X","X","X","X","X","X","X","X","X","X","X","X","X","X","X","X","X","X","X","X","X","X","X",null,null,null,null,null,null,null,null,null,null,null,null,null,null,null,null,null,null,null,null,null,null,null,null,null,null,null,null,null,null,null,1]
[null,null,null,null,null,null,null,null,null,null,null,null,null,null,null,null,null,null,null,null,null,null,null,null,null,null,null,null,null,null,null,null,null,null,null,null,null,null,null,null,null,null,null,null,null,null,null,null,null,null,null,null,null,null,null,null,null,null,null,null,null,null,null,null,null,null,null,null,null,null,null,null,null,null,null,null,null,null,null,null,null,null,null,null,null,null,null,null,null,null,null,null,null,null,null,null,null,null,null,null,0]
[null,null,null,null,null,null,null,null,null,null,null,null,null,null,null,null,null,null,null,null,null,null,null,null,null,null,null,null,null,null,null,null,null,null,null,null,null,null,null,null,null,null,null,null,null,null,null,null,null,null,null,null,null,null,null,null,null,null,null,null,null,null,null,null,null,null,null,null,null,null,null,null,null,null,null,null,null,null,null,null,null,null,null,null,null,null,null,null,null,null,null,null,null,null,null,null,null,null,null,null,0]
[null,"CHAVES TIFFANY",5,"Q1","2022-09-27","2023-01-10","13H00",null,null,null,null,null,null,null,null,null,null,null,null,null,null,null,null,null,null,null,null,null,null,null,null,null,null,null,null,null,null,null,null,null,null,null,null,null,null,"X","X","X","X","X","X","X","X","X","X","X","X","X","X","X","X","X","X","X","X","X","X","X","X",null,null,null,null,null,null,null,null,null,null,null,null,null,null,null,null,null,null,null,null,null,null,null,null,null,null,null,null,null,null,null,{"$f":"IF($B135=\"\",0,1)","v":1}]
[null,"CONTU GRÉGORY",3,"Q1","2022-06-07","2022-09-07",null,null,null,null,null,null,null,null,null,null,null,null,null,null,null,null,null,null,null,null,null,null,null,"X","X","X","X","X","X","X","X","X","X","X","X","X","X","X","X","X","X","X","X","X","X","X","X","X","X","X","X","X","X","X","X","X","X","X","X","X","X","X","X",null,null,null,null,null,null,null,null,null,null,null,null,null,null,null,null,null,null,null,null,null,null,null,null,null,null,null,null,null,null,null,1]
[null,"CONTU GUY",1,"Q1","2022-11-15","2023-02-14",null,null,null,null,null,null,null,null,null,null,null,null,null,null,null,null,null,null,null,null,null,null,null,null,null,null,null,null,null,null,null,null,null,null,null,null,null,null,null,null,null,null,null,null,null,null,"X","X","X","X","X","X","X","X","X","X","X","X","X","X","X","X","X",null,null,null,null,null,null,null,null,null,null,null,null,null,null,null,null,null,null,null,null,null,null,null,null,null,null,null,null,null,null,null,1]
[null,"DALBON GOULAZ",2,"Q1","2022-07-26","2022-10-11",null,null,null,null,null,null,null,null,null,null,null,null,null,null,null,null,null,null,null,null,null,null,null,null,null,null,null,null,null,null,"X","X","X","X","X","X","X","X","X","X","X","X","X","X","X","X","X","X","X","X","X","X","X","X","X","X","X","X","X","X","X","X","X",null,null,null,null,null,null,null,null,null,null,null,null,null,null,null,null,null,null,null,null,null,null,null,null,null,null,null,null,null,null,null,1]
[null,"GHILOUFI SOUMAYA",2,"Q2","2022-11-15","2023-02-07",null,null,null,null,null,null,null,null,null,null,null,null,null,null,null,null,null,null,null,null,null,null,null,null,null,null,null,null,null,null,null,null,null,null,null,null,null,null,null,null,null,null,null,null,null,null,"X",null,"X",null,"X",null,"X",null,"X",null,"X",null,"X",null,"X",null,"X",null,null,null,null,null,null,null,null,null,null,null,null,null,null,null,null,null,null,null,null,null,null,null,null,null,null,null,null,null,null,null,1]
[null,"LAURERO JONATHAN",1,"Q2","2022-10-25","2023-01-24",null,null,null,null,null,null,null,null,null,null,null,null,null,null,null,null,null,null,null,null,null,null,null,null,null,null,null,null,null,null,null,null,null,null,null,null,null,null,null,null,null,null,null,"X",null,"X",null,"X",null,"X",null,"X",null,"X",null,"X",null,"X",null,"X",null,"X",null,null,null,null,null,null,null,null,null,null,null,null,null,null,null,null,null,null,null,null,null,null,null,null,null,null,null,null,null,null,null,null,1]
[null,"VAUCELLE SARAH",3,"Q1","2022-10-25","2023-01-10",null,null,null,null,null,null,null,null,null,null,null,null,null,null,null,null,null,null,null,null,null,null,null,null,null,null,null,null,null,null,null,null,null,null,null,null,null,null,null,null,null,null,null,"X","X","X","X","X","X","X","X","X","X","X","X","X","X","X","X","X","X","X","X",null,null,null,null,null,null,null,null,null,null,null,null,null,null,null,null,null,null,null,null,null,null,null,null,null,null,null,null,null,null,null,1]
[null,null,null,null,null,null,null,null,null,null,null,null,null,null,null,null,null,null,null,null,null,null,null,null,null,null,null,null,null,null,null,null,null,null,null,null,null,null,null,null,null,null,null,null,null,null,null,null,null,null,null,null,null,null,null,null,null,null,null,null,null,null,null,null,null,null,null,null,null,null,null,null,null,null,null,null,null,null,null,null,null,null,null,null,null,null,null,null,null,null,null,null,null,null,null,null,null,null,null,null,0]
[null,"BARRAL EMMANUELLE",1,"Q3","2022-07-26","2022-10-25","13H15",null,null,null,null,null,null,null,null,null,null,null,null,null,null,null,null,null,null,null,null,null,null,null,null,null,null,null,null,null,"X",null,null,"X",null,null,"X",null,null,"X",null,null,"X",null,null,"X",null,null,"X",null,null,"X",null,null,"X",null,null,"X",null,null,"X",null,null,null,null,null,null,null,null,null,null,null,null,null,null,null,null,null,null,null,null,null,null,null,null,null,null,null,null,null,null,null,null,null,1]
[null,"DELUBAC  VALERIE",3,"Q1","2022-11-22","2023-01-10",null,null,null,null,null,null,null,null,null,null,null,null,null,null,null,null,null,null,null,null,null,null,null,null,null,null,null,null,null,null,null,null,null,null,null,null,null,null,null,null,null,null,null,null,null,null,null,"X","X","X","X","X","X","X","X","X","X","X","X","X","X","X","X",null,null,null,null,null,null,null,null,null,null,null,null,null,null,null,null,null,null,null,null,null,null,null,null,null,null,null,null,null,null,null,1]
[null,"DI CICCO",2,"Q1","2022-09-27","2023-01-03",null,null,null,null,null,null,null,null,null,null,null,null,null,null,null,null,null,null,null,null,null,null,null,null,null,null,null,null,null,null,null,null,null,null,null,null,null,null,null,"X","X","X","X","X","X","X","X","X","X","X","X","X","X","X","X","X","X","X","X","X","X","X","X",null,null,null,null,null,null,null,null,null,null,null,null,null,null,null,null,null,null,null,null,null,null,null,null,null,null,null,null,null,null,null,1]
[null,"HERNANDEZ MAGALIE",3,"Q1","2022-09-13","2022-12-13",null,null,null,null,null,null,null,null,null,null,null,null,null,null,null,null,null,null,null,null,null,null,null,null,null,null,null,null,null,null,null,null,null,null,null,null,null,"X","X","X","X","X","X","X","X","X","X","X","X","X","X","X","X","X","X","X","X","X","X","X","X","X","X",null,null,null,null,null,null,null,null,null,null,null,null,null,null,null,null,null,null,null,null,null,null,null,null,null,null,null,null,null,null,null,1]
[null,"LEVET SEVERINE",2,"Q1","2022-08-30","2022-11-29",null,null,null,null,null,null,null,null,null,null,null,null,null,null,null,null,null,null,null,null,null,null,null,null,null,null,null,null,null,null,null,null,null,null,null,"X","X","X","X","X","X","X","X","X","X","X","X","X","X","X","X","X","X","X","X","X","X","X","X","X","X","X","X",null,null,null,null,null,null,null,null,null,null,null,null,null,null,null,null,null,null,null,null,null,null,null,null,null,null,null,null,null,null,null,1]
[null,"MEHADHBI AHMED",1,"Q1","2022-09-20","2022-12-13",null,null,null,null,null,null,null,null,null,null,null,null,null,null,null,null,null,null,null,null,null,null,null,null,null,null,null,null,null,null,null,null,null,null,null,null,null,null,"X","X","X","X","X","X","X","X","X","X","X","X","X","X","X","X","X","X","X","X","X","X","X","X","X",null,null,null,null,null,null,null,null,null,null,null,null,null,null,null,null,null,null,null,null,null,null,null,null,null,null,null,null,null,null,null,1]
[null,"PIANETTA  JÉROME",3,"Q2","2022-10-18","2023-01-17",null,null,null,null,null,null,null,null,null,null,null,null,null,null,null,null,null,null,null,null,null,null,null,null,null,null,null,null,null,null,null,null,null,null,null,null,null,null,null,null,null,null,"X",null,"X",null,"X",null,"X",null,"X",null,"X",null,"X",null,"X",null,"X",null,"X",null,"X",null,null,null,null,null,null,null,null,null,null,null,null,null,null,null,null,null,null,null,null,null,null,null,null,null,null,null,null,null,null,null,1]
[null,null,null,null,null,null,null,null,null,null,null,null,null,null,null,null,null,null,null,null,null,null,null,null,null,null,null,null,null,null,null,null,null,null,null,null,null,null,null,null,null,null,null,null,null,null,null,null,null,null,null,null,null,null,null,null,null,null,null,null,null,null,null,null,null,null,null,null,null,null,null,null,null,null,null,null,null,null,null,null,null,null,null,null,null,null,null,null,null,null,null,null,null,null,null,null,null,null,null,null,0]
[null,"BOUTIN THOMAS",1,"Q1","2022-10-25","2023-01-03","13H30",null,null,null,null,null,null,null,null,null,null,null,null,null,null,null,null,null,null,null,null,null,null,null,null,null,null,null,null,null,null,null,null,null,null,null,null,null,null,null,null,null,null,"X","X","X","X","X","X","X","X","X","X","X","X","X","X","X","X","X","X","X","X",null,null,null,null,null,null,null,null,null,null,null,null,null,null,null,null,null,null,null,null,null,null,null,null,null,null,null,null,null,null,null,1]
[null,"BRUTTI MANON",3,"Q2","2022-08-23","2022-11-08",null,null,null,null,null,null,null,null,null,null,null,null,null,null,null,null,null,null,null,null,null,null,null,null,null,null,null,null,null,null,null,null,null,null,"X",null,"X",null,"X",null,"X",null,"X",null,"X",null,"X",null,"X",null,"X",null,"X",null,"X",null,"X",null,"X",null,"X",null,"X",null,null,null,null,null,null,null,null,null,null,null,null,null,null,null,null,null,null,null,null,null,null,null,null,null,null,null,null,null,null,null,1]
[null,"GERVAIS ELISABETH",2,"Q1","2022-08-30","2022-11-29",null,null,null,null,null,null,null,null,null,null,null,null,null,null,null,null,null,null,null,null,null,null,null,null,null,null,null,null,null,null,null,null,null,null,null,"X","X","X","X","X","X","X","X","X","X","X","X","X","X","X","X","X","X","X","X","X","X","X","X","X","X","X","X",null,null,null,null,null,null,null,null,null,null,null,null,null,null,null,null,null,null,null,null,null,null,null,null,null,null,null,null,null,null,null,1]
[null,"GUIMET JULIE",2,"Q1","2022-10-25","2022-12-08",null,null,null,null,null,null,null,null,null,null,null,null,null,null,null,null,null,null,null,null,null,null,null,null,null,null,null,null,null,null,null,null,null,null,null,null,null,null,null,null,null,null,null,"X","X","X","X","X","X","X","X","X","X","X","X","X","X","X","X","X","X","X","X",null,null,null,null,null,null,null,null,null,null,null,null,null,null,null,null,null,null,null,null,null,null,null,null,null,null,null,null,null,null,null,1]
[null,"JULIEN ISABELLE",1,"Q2","2022-09-13","2022-12-13",null,null,null,null,null,null,null,null,null,null,null,null,null,null,null,null,null,null,null,null,null,null,null,null,null,null,null,null,null,null,null,null,null,null,null,null,null,"X",null,"X",null,"X",null,"X",null,"X",null,"X",null,"X",null,"X",null,"X",null,"X",null,"X",null,"X",null,"X",null,null,null,null,null,null,null,null,null,null,null,null,null,null,null,null,null,null,null,null,null,null,null,null,null,null,null,null,null,null,null,null,1]
[null,"LEDE AURORE",3,"Q2","2022-10-11","2023-01-11",null,null,null,null,null,null,null,null,null,null,null,null,null,null,null,null,null,null,null,null,null,null,null,null,null,null,null,null,null,null,null,null,null,null,null,null,null,null,null,null,null,"X",null,"X",null,"X",null,"X",null,"X",null,"X",null,"X",null,"X",null,"X",null,"X",null,"X",null,null,null,null,null,null,null,null,null,null,null,null,null,null,null,null,null,null,null,null,null,null,null,null,null,null,null,null,null,null,null,null,1]
[null,"RAISS HADJARA",3,"Q1","2022-08-16","2022-11-15",null,null,null,null,null,null,null,null,null,null,null,null,null,null,null,null,null,null,null,null,null,null,null,null,null,null,null,null,null,null,null,null,null,"X","X","X","X","X","X","X","X","X","X","X","X","X","X","X","X","X","X","X","X","X","X","X","X","X","X","X","X","X","X",null,null,null,null,null,null,null,null,null,null,null,null,null,null,null,null,null,null,null,null,null,null,null,null,null,null,null,null,null,null,null,1]
[null,null,null,null,null,null,null,null,null,null,null,null,null,null,null,null,null,null,null,null,null,null,null,null,null,null,null,null,null,null,null,null,null,null,null,null,null,null,null,null,null,null,null,null,null,null,null,null,null,null,null,null,null,null,null,null,null,null,null,null,null,null,null,null,null,null,null,null,null,null,null,null,null,null,null,null,null,null,null,null,null,null,null,null,null,null,null,null,null,null,null,null,null,null,null,null,null,null,null,null,0]
[null,"BELLANGER   SANDRINE",4,"Q1","2022-10-25","2022-12-20","13H45",null,null,null,null,null,null,null,null,null,null,null,null,null,null,null,null,null,null,null,null,null,null,null,null,null,null,null,null,null,null,null,null,null,null,null,null,null,null,null,null,null,null,"X","X","X","X","X","X","X","X","X","X","X","X","X","X","X","X","X","X","X","X",null,null,null,null,null,null,null,null,null,null,null,null,null,null,null,null,null,null,null,null,null,null,null,null,null,null,null,null,null,null,null,1]
[null,"D'ASCOLI MORGANE",1,"Q1","2022-08-30","2022-11-29",null,null,null,null,null,null,null,null,null,null,null,null,null,null,null,null,null,null,null,null,null,null,null,null,null,null,null,null,null,null,null,null,null,null,null,"X","X","X","X","X","X","X","X","X","X","X","X","X","X","X","X","X","X","X","X","X","X","X","X","X","X","X","X",null,null,null,null,null,null,null,null,null,null,null,null,null,null,null,null,null,null,null,null,null,null,null,null,null,null,null,null,null,null,null,1]
[null,"MATENCIO HANIFA",3,"Q1","2022-10-04","2023-01-10",null,null,null,null,null,null,null,null,null,null,null,null,null,null,null,null,null,null,null,null,null,null,null,null,null,null,null,null,null,null,null,null,null,null,null,null,null,null,null,null,"X","X","X","X","X","X","X","X","X","X","X","X","X","X","X","X","X","X","X","X","X","X","X",null,null,null,null,null,null,null,null,null,null,null,null,null,null,null,null,null,null,null,null,null,null,null,null,null,null,null,null,null,null,null,1]
[null,"MENART BRUNO",1,"Q3","2022-10-25","2023-01-24",null,null,null,null,null,null,null,null,null,null,null,null,null,null,null,null,null,null,null,null,null,null,null,null,null,null,null,null,null,null,null,null,null,null,null,null,null,null,null,null,null,null,null,"X",null,null,"X",null,null,"X",null,null,"X",null,null,"X",null,null,"X",null,null,"X",null,null,null,null,null,null,null,null,null,null,null,null,null,null,null,null,null,null,null,null,null,null,null,null,null,null,null,null,null,null,null,null,1]
[null,"RABARISSON  RACHELLE",2,"Q3","2022-11-15","2023-02-14",null,null,null,null,null,null,null,null,null,null,null,null,null,null,null,null,null,null,null,null,null,null,null,null,null,null,null,null,null,null,null,null,null,null,null,null,null,null,null,null,null,null,null,null,null,null,"X",null,null,"X",null,null,"X",null,null,"X",null,null,"X",null,null,"X",null,null,null,null,null,null,null,null,null,null,null,null,null,null,null,null,null,null,null,null,null,null,null,null,null,null,null,null,null,null,null,null,1]
[null,"SPILCHUK ANASTASIA",2,"Q1","2022-06-14","2022-09-13",null,null,null,null,null,null,null,null,null,null,null,null,null,null,null,null,null,null,null,null,null,null,null,null,"X","X","X","X","X","X","X","X","X","X","X","X","X","X","X","X","X","X","X","X","X","X","X","X","X","X","X","X","X","X","X","X","X","X","X","X","X","X","X",null,null,null,null,null,null,null,null,null,null,null,null,null,null,null,null,null,null,null,null,null,null,null,null,null,null,null,null,null,null,null,1]
[null,null,null,null,null,null,null,null,null,null,null,null,null,null,null,null,null,null,null,null,null,null,null,null,null,null,null,null,null,null,null,null,null,null,null,null,null,null,null,null,null,null,null,null,null,null,null,null,null,null,null,null,null,null,null,null,null,null,null,null,null,null,null,null,null,null,null,null,null,null,null,null,null,null,null,null,null,null,null,null,null,null,null,null,null,null,null,null,null,null,null,null,null,null,null,null,null,null,null,null,0]
[null,null,null,null,null,null,null,null,null,null,null,null,null,null,null,null,null,null,null,null,null,null,null,null,null,null,null,null,null,null,null,null,null,null,null,null,null,null,null,null,null,null,null,null,null,null,null,null,null,null,null,null,null,null,null,null,null,null,null,null,null,null,null,null,null,null,null,null,null,null,null,null,null,null,null,null,null,null,null,null,null,null,null,null,null,null,null,null,null,null,null,null,null,null,null,null,null,null,null,null,0]
[null,"AMRI AMOR",1,"Q2","2022-09-13","2022-12-13","14H00",null,null,null,null,null,null,null,null,null,null,null,null,null,null,null,null,null,null,null,null,null,null,null,null,null,null,null,null,null,null,null,null,null,null,null,null,"X",null,"X",null,"X",null,"X",null,"X",null,"X",null,"X",null,"X",null,"X",null,"X",null,"X",null,"X",null,"X",null,null,null,null,null,null,null,null,null,null,null,null,null,null,null,null,null,null,null,null,null,null,null,null,null,null,null,null,null,null,null,null,{"$f":"IF($B167=\"\",0,1)","v":1}]
[null,"BORDIGNON ANNE",1,"Q1","2022-08-16","2022-11-15",null,null,null,null,null,null,null,null,null,null,null,null,null,null,null,null,null,null,null,null,null,null,null,null,null,null,null,null,null,null,null,null,null,"X","X","X","X","X","X","X","X","X","X","X","X","X","X","X","X","X","X","X","X","X","X","X","X","X","X","X","X","X","X",null,null,null,null,null,null,null,null,null,null,null,null,null,null,null,null,null,null,null,null,null,null,null,null,null,null,null,null,null,null,null,1]
[null,"BOULKOUR CAROLE",4,"Q1","2022-09-20","2023-01-03",null,null,null,null,null,null,null,null,null,null,null,null,null,null,null,null,null,null,null,null,null,null,null,null,null,null,null,null,null,null,null,null,null,null,null,null,null,null,"X","X","X","X","X","X","X","X","X","X","X","X","X","X","X","X","X","X","X","X","X","X","X","X","X",null,null,null,null,null,null,null,null,null,null,null,null,null,null,null,null,null,null,null,null,null,null,null,null,null,null,null,null,null,null,null,1]
[null,"FREMAUX  LAURENT",3,"Q1","2022-09-06","2022-12-06",null,null,null,null,null,null,null,null,null,null,null,null,null,null,null,null,null,null,null,null,null,null,null,null,null,null,null,null,null,null,null,null,null,null,null,null,"X","X","X","X","X","X","X","X","X","X","X","X","X","X","X","X","X","X","X","X","X","X","X","X","X","X","X",null,null,null,null,null,null,null,null,null,null,null,null,null,null,null,null,null,null,null,null,null,null,null,null,null,null,null,null,null,null,null,1]
[null,"SEDITA LINA",2,"Q1","2022-08-23","2022-11-22",null,null,null,null,null,null,null,null,null,null,null,null,null,null,null,null,null,null,null,null,null,null,null,null,null,null,null,null,null,null,null,null,null,null,"X","X","X","X","X","X","X","X","X","X","X","X","X","X","X","X","X","X","X","X","X","X","X","X","X","X","X","X","X",null,null,null,null,null,null,null,null,null,null,null,null,null,null,null,null,null,null,null,null,null,null,null,null,null,null,null,null,null,null,null,1]
[null,"SEDRATI JENNIFER",3,"Q1","2022-09-20","2023-01-03",null,null,null,null,null,null,null,null,null,null,null,null,null,null,null,null,null,null,null,null,null,null,null,null,null,null,null,null,null,null,null,null,null,null,null,null,null,null,"X","X","X","X","X","X","X","X","X","X","X","X","X","X","X","X","X","X","X","X","X","X","X","X","X",null,null,null,null,null,null,null,null,null,null,null,null,null,null,null,null,null,null,null,null,null,null,null,null,null,null,null,null,null,null,null,1]
[null,null,null,null,null,null,null,null,null,null,null,null,null,null,null,null,null,null,null,null,null,null,null,null,null,null,null,null,null,null,null,null,null,null,null,null,null,null,null,null,null,null,null,null,null,null,null,null,null,null,null,null,null,null,null,null,null,null,null,null,null,null,null,null,null,null,null,null,null,null,null,null,null,null,null,null,null,null,null,null,null,null,null,null,null,null,null,null,null,null,null,null,null,null,null,null,null,null,null,null,0]
[null,null,null,null,null,null,null,null,null,null,null,null,null,null,null,null,null,null,null,null,null,null,null,null,null,null,null,null,null,null,null,null,null,null,null,null,null,null,null,null,null,null,null,null,null,null,null,null,null,null,null,null,null,null,null,null,null,null,null,null,null,null,null,null,null,null,null,null,null,null,null,null,null,null,null,null,null,null,null,null,null,null,null,null,null,null,null,null,null,null,null,null,null,null,null,null,null,null,null,null,0]
[null,"ARNOUX NICOLE-JULIA",5,"Q1","2022-09-20","2022-12-06","14H15",null,null,null,null,null,null,null,null,null,null,null,null,null,null,null,null,null,null,null,null,null,null,null,null,null,null,null,null,null,null,null,null,null,null,null,null,null,"X","X","X","X","X","X","X","X","X","X","X","X","X","X","X","X","X","X","X","X","X","X","X","X","X",null,null,null,null,null,null,null,null,null,null,null,null,null,null,null,null,null,null,null,null,null,null,null,null,null,null,null,null,null,null,null,1]
[null,"BERMOND CHANTAL",1,"Q2","2022-07-26","2022-10-25",null,null,null,null,null,null,null,null,null,null,null,null,null,null,null,null,null,null,null,null,null,null,null,null,null,null,null,null,null,null,"X",null,"X",null,"X",null,"X",null,"X",null,"X",null,"X",null,"X",null,"X",null,"X",null,"X",null,"X",null,"X",null,"X",null,"X",null,"X",null,"X",null,null,null,null,null,null,null,null,null,null,null,null,null,null,null,null,null,null,null,null,null,null,null,null,null,null,null,null,null,null,null,1]
[null,"BOUDIN EVELYNE",1,"Q2","2022-09-20","2022-12-13",null,null,null,null,null,null,null,null,null,null,null,null,null,null,null,null,null,null,null,null,null,null,null,null,null,null,null,null,null,null,null,null,null,null,null,null,null,null,"X",null,"X",null,"X",null,"X",null,"X",null,"X",null,"X",null,"X",null,"X",null,"X",null,"X",null,"X",null,"X",null,null,null,null,null,null,null,null,null,null,null,null,null,null,null,null,null,null,null,null,null,null,null,null,null,null,null,null,null,null,null,1]
[null,"BOUZAHZAH DELPHINE JEAN LUC",3,"Q4","2022-11-22","2023-02-21",null,null,null,null,null,null,null,null,null,null,null,null,null,null,null,null,null,null,null,null,null,null,null,null,null,null,null,null,null,null,null,null,null,null,null,null,null,null,null,null,null,null,null,null,null,null,null,"X",null,null,null,"X",null,null,null,"X",null,null,null,"X",null,null,null,null,null,null,null,null,null,null,null,null,null,null,null,null,null,null,null,null,null,null,null,null,null,null,null,null,null,null,null,null,null,null,1]
[null,"NESME  CELINE",4,"Q1","2022-10-25","2023-01-24",null,null,null,null,null,null,null,null,null,null,null,null,null,null,null,null,null,null,null,null,null,null,null,null,null,null,null,null,null,null,null,null,null,null,null,null,null,null,null,null,null,null,null,"X","X","X","X","X","X","X","X","X","X","X","X","X","X","X","X","X","X","X","X",null,null,null,null,null,null,null,null,null,null,null,null,null,null,null,null,null,null,null,null,null,null,null,null,null,null,null,null,null,null,null,1]
[null,"SCHEID MONIA",7,"Q1","2022-10-18","2023-01-17",null,null,null,null,null,null,null,null,null,null,null,null,null,null,null,null,null,null,null,null,null,null,null,null,null,null,null,null,null,null,null,null,null,null,null,null,null,null,null,null,null,null,"X","X","X","X","X","X","X","X","X","X","X","X","X","X","X","X","X","X","X","X","X",null,null,null,null,null,null,null,null,null,null,null,null,null,null,null,null,null,null,null,null,null,null,null,null,null,null,null,null,null,null,null,1]
[null,null,null,null,null,null,null,null,null,null,null,null,null,null,null,null,null,null,null,null,null,null,null,null,null,null,null,null,null,null,null,null,null,null,null,null,null,null,null,null,null,null,null,null,null,null,null,null,null,null,null,null,null,null,null,null,null,null,null,null,null,null,null,null,null,null,null,null,null,null,null,null,null,null,null,null,null,null,null,null,null,null,null,null,null,null,null,null,null,null,null,null,null,null,null,null,null,null,null,null,0]
[null,null,null,null,null,null,null,null,null,null,null,null,null,null,null,null,null,null,null,null,null,null,null,null,null,null,null,null,null,null,null,null,null,null,null,null,null,null,null,null,null,null,null,null,null,null,null,null,null,null,null,null,null,null,null,null,null,null,null,null,null,null,null,null,null,null,null,null,null,null,null,null,null,null,null,null,null,null,null,null,null,null,null,null,null,null,null,null,null,null,null,null,null,null,null,null,null,null,null,null,0]
[null,"BARA AMINATA",3,"Q2","2022-06-28","2022-09-27","14H30",null,null,null,null,null,null,null,null,null,null,null,null,null,null,null,null,null,null,null,null,null,null,null,null,null,"X",null,"X",null,"X",null,"X",null,"X",null,"X",null,"X",null,"X",null,"X",null,"X",null,"X",null,"X",null,"X",null,"X",null,"X",null,"X",null,"X",null,"X",null,"X",null,null,null,null,null,null,null,null,null,null,null,null,null,null,null,null,null,null,null,null,null,null,null,null,null,null,null,null,null,null,null,1]
[null,"CHABERT DOMINIQUE",1,"Q2","2022-10-25","2023-01-24",null,null,null,null,null,null,null,null,null,null,null,null,null,null,null,null,null,null,null,null,null,null,null,null,null,null,null,null,null,null,null,null,null,null,null,null,null,null,null,null,null,null,null,"X",null,"X",null,"X",null,"X",null,"X",null,"X",null,"X",null,"X",null,"X",null,"X",null,null,null,null,null,null,null,null,null,null,null,null,null,null,null,null,null,null,null,null,null,null,null,null,null,null,null,null,null,null,null,null,1]
[null,"COMPAORE  AFFISSATOU",3,"Q2","2022-11-15","2023-02-14",null,null,null,null,null,null,null,null,null,null,null,null,null,null,null,null,null,null,null,null,null,null,null,null,null,null,null,null,null,null,null,null,null,null,null,null,null,null,null,null,null,null,null,null,null,null,"X",null,"X",null,"X",null,"X",null,"X",null,"X",null,"X",null,"X",null,"X",null,null,null,null,null,null,null,null,null,null,null,null,null,null,null,null,null,null,null,null,null,null,null,null,null,null,null,null,null,null,null,1]
[null,"LIVRON CELINE",7,"Q1","2022-10-25","2022-11-22",null,null,null,null,null,null,null,null,null,null,null,null,null,null,null,null,null,null,null,null,null,null,null,null,null,null,null,null,null,null,null,null,null,null,null,null,null,null,null,null,null,null,null,"X","X","X","X","X","X","X","X","X","X","X","X","X","X","X","X","X","X","X","X",null,null,null,null,null,null,null,null,null,null,null,null,null,null,null,null,null,null,null,null,null,null,null,null,null,null,null,null,null,null,null,1]
[null,"MAXIMY SAHE",2,"Q2","2022-10-25","2022-12-20",null,null,null,null,null,null,null,null,null,null,null,null,null,null,null,null,null,null,null,null,null,null,null,null,null,null,null,null,null,null,null,null,null,null,null,null,null,null,null,null,null,null,null,"X",null,"X",null,"X",null,"X",null,"X",null,"X",null,"X",null,"X",null,"X",null,"X",null,null,null,null,null,null,null,null,null,null,null,null,null,null,null,null,null,null,null,null,null,null,null,null,null,null,null,null,null,null,null,null,1]
[null,"MUTET STÉPHANE",1,"Q2","2022-11-22","2023-02-14",null,null,null,null,null,null,null,null,null,null,null,null,null,null,null,null,null,null,null,null,null,null,null,null,null,null,null,null,null,null,null,null,null,null,null,null,null,null,null,null,null,null,null,null,null,null,null,"X",null,"X",null,"X",null,"X",null,"X",null,"X",null,"X",null,"X",null,null,null,null,null,null,null,null,null,null,null,null,null,null,null,null,null,null,null,null,null,null,null,null,null,null,null,null,null,null,null,null,1]
[null,"SIRON SUZANNE",3,"Q2","2022-10-25","2023-01-24",null,null,null,null,null,null,null,null,null,null,null,null,null,null,null,null,null,null,null,null,null,null,null,null,null,null,null,null,null,null,null,null,null,null,null,null,null,null,null,null,null,null,null,"X",null,"X",null,"X",null,"X",null,"X",null,"X",null,"X",null,"X",null,"X",null,"X",null,null,null,null,null,null,null,null,null,null,null,null,null,null,null,null,null,null,null,null,null,null,null,null,null,null,null,null,null,null,null,null,1]
[null,null,null,null,null,null,null,null,null,null,null,null,null,null,null,null,null,null,null,null,null,null,null,null,null,null,null,null,null,null,null,null,null,null,null,null,null,null,null,null,null,null,null,null,null,null,null,null,null,null,null,null,null,null,null,null,null,null,null,null,null,null,null,null,null,null,null,null,null,null,null,null,null,null,null,null,null,null,null,null,null,null,null,null,null,null,null,null,null,null,null,null,null,null,null,null,null,null,null,null,0]
[null,"BEN EL CAID KHADIJA",2,"Q3","2022-10-18","2022-11-29","14H45",null,null,null,null,null,null,null,null,null,null,null,null,null,null,null,null,null,null,null,null,null,null,null,null,null,null,null,null,null,null,null,null,null,null,null,null,null,null,null,null,null,"X",null,null,"X",null,null,"X",null,null,"X",null,null,"X",null,null,"X",null,null,"X",null,null,null,null,null,null,null,null,null,null,null,null,null,null,null,null,null,null,null,null,null,null,null,null,null,null,null,null,null,null,null,null,null,1]
[null,"BOUKSARA MOHAMED",3,"Q3","2022-11-15","2023-02-07",null,null,null,null,null,null,null,null,null,null,null,null,null,null,null,null,null,null,null,null,null,null,null,null,null,null,null,null,null,null,null,null,null,null,null,null,null,null,null,null,null,null,null,null,null,null,"X",null,null,"X",null,null,"X",null,null,"X",null,null,"X",null,null,"X",null,null,null,null,null,null,null,null,null,null,null,null,null,null,null,null,null,null,null,null,null,null,null,null,null,null,null,null,null,null,null,null,1]
[null,"CHATEL JUSTINE",3,"Q1","2022-09-27","2023-01-10",null,null,null,null,null,null,null,null,null,null,null,null,null,null,null,null,null,null,null,null,null,null,null,null,null,null,null,null,null,null,null,null,null,null,null,null,null,null,null,"X","X","X","X","X","X","X","X","X","X","X","X","X","X","X","X","X","X","X","X","X","X","X","X",null,null,null,null,null,null,null,null,null,null,null,null,null,null,null,null,null,null,null,null,null,null,null,null,null,null,null,null,null,null,null,1]
[null,"GUIEBRE HADIARA",3,"Q2","2022-07-26","2022-10-25",null,null,null,null,null,null,null,null,null,null,null,null,null,null,null,null,null,null,null,null,null,null,null,null,null,null,null,null,null,null,"X",null,"X",null,"X",null,"X",null,"X",null,"X",null,"X",null,"X",null,"X",null,"X",null,"X",null,"X",null,"X",null,"X",null,"X",null,"X",null,"X",null,null,null,null,null,null,null,null,null,null,null,null,null,null,null,null,null,null,null,null,null,null,null,null,null,null,null,null,null,null,null,1]
[null,"LAMNASFI REDA",1,"Q1","2022-09-20","2023-01-03",null,null,null,null,null,null,null,null,null,null,null,null,null,null,null,null,null,null,null,null,null,null,null,null,null,null,null,null,null,null,null,null,null,null,null,null,null,null,"X","X","X","X","X","X","X","X","X","X","X","X","X","X","X","X","X","X","X","X","X","X","X","X","X",null,null,null,null,null,null,null,null,null,null,null,null,null,null,null,null,null,null,null,null,null,null,null,null,null,null,null,null,null,null,null,1]
[null,"SOUID SABAH",4,"Q3","2022-10-18","2022-11-29",null,null,null,null,null,null,null,null,null,null,null,null,null,null,null,null,null,null,null,null,null,null,null,null,null,null,null,null,null,null,null,null,null,null,null,null,null,null,null,null,null,null,"X",null,null,"X",null,null,"X",null,null,"X",null,null,"X",null,null,"X",null,null,"X",null,null,null,null,null,null,null,null,null,null,null,null,null,null,null,null,null,null,null,null,null,null,null,null,null,null,null,null,null,null,null,null,null,1]
[null,"ZEHR  MELANIE",3,"Q1","2022-11-22","2023-01-10",null,null,null,null,null,null,null,null,null,null,null,null,null,null,null,null,null,null,null,null,null,null,null,null,null,null,null,null,null,null,null,null,null,null,null,null,null,null,null,null,null,null,null,null,null,null,null,"X","X","X","X","X","X","X","X","X","X","X","X","X","X","X","X",null,null,null,null,null,null,null,null,null,null,null,null,null,null,null,null,null,null,null,null,null,null,null,null,null,null,null,null,null,null,null,1]
[null,null,null,null,null,null,null,null,null,null,null,null,null,null,null,null,null,null,null,null,null,null,null,null,null,null,null,null,null,null,null,null,null,null,null,null,null,null,null,null,null,null,null,null,null,null,null,null,null,null,null,null,null,null,null,null,null,null,null,null,null,null,null,null,null,null,null,null,null,null,null,null,null,null,null,null,null,null,null,null,null,null,null,null,null,null,null,null,null,null,null,null,null,null,null,null,null,null,null,null,0]
[null,"BAUER AURELIE",5,"Q1","2022-09-27","2022-11-22","15H00",null,null,null,null,null,null,null,null,null,null,null,null,null,null,null,null,null,null,null,null,null,null,null,null,null,null,null,null,null,null,null,null,null,null,null,null,null,null,"X","X","X","X","X","X","X","X","X","X","X","X","X","X","X","X","X","X","X","X","X","X","X","X",null,null,null,null,null,null,null,null,null,null,null,null,null,null,null,null,null,null,null,null,null,null,null,null,null,null,null,null,null,null,null,null,{"$f":"IF($B199=\"\",0,1)","v":1}]
[null,"BETTOGLIA  ISABELLE",3,"Q2","2022-07-05","2022-09-06",null,null,null,null,null,null,null,null,null,null,null,null,null,null,null,null,null,null,null,null,null,null,null,null,null,null,null,"X",null,"X",null,"X",null,"X",null,"X",null,"X",null,"X",null,"X",null,"X",null,"X",null,"X",null,"X",null,"X",null,"X",null,"X",null,"X",null,"X",null,"X",null,null,null,null,null,null,null,null,null,null,null,null,null,null,null,null,null,null,null,null,null,null,null,null,null,null,null,null,null,null,null,null,null,1]
[null,"GUIEBRE ADI  ARATOU",5,"Q2","2022-10-25","2023-01-24",null,null,null,null,null,null,null,null,null,null,null,null,null,null,null,null,null,null,null,null,null,null,null,null,null,null,null,null,null,null,null,null,null,null,null,null,null,null,null,null,null,null,null,"X",null,"X",null,"X",null,"X",null,"X",null,"X",null,"X",null,"X",null,"X",null,"X",null,null,null,null,null,null,null,null,null,null,null,null,null,null,null,null,null,null,null,null,null,null,null,null,null,null,null,null,null,null,null,null,null,1]
[null,"HENOT PIERRE",1,"Q1","2022-07-12","2022-10-11",null,null,null,null,null,null,null,null,null,null,null,null,null,null,null,null,null,null,null,null,null,null,null,null,null,null,null,null,"X","X","X","X","X","X","X","X","X","X","X","X","X","X","X","X","X","X","X","X","X","X","X","X","X","X","X","X","X","X","X","X","X","X","X",null,null,null,null,null,null,null,null,null,null,null,null,null,null,null,null,null,null,null,null,null,null,null,null,null,null,null,null,null,null,null,null,1]
[null,"SENOTOVA MARYNA",3,"Q1","2022-07-26","2022-10-25",null,null,null,null,null,null,null,null,null,null,null,null,null,null,null,null,null,null,null,null,null,null,null,null,null,null,null,null,null,null,"X","X","X","X","X","X","X","X","X","X","X","X","X","X","X","X","X","X","X","X","X","X","X","X","X","X","X","X","X","X","X","X","X",null,null,null,null,null,null,null,null,null,null,null,null,null,null,null,null,null,null,null,null,null,null,null,null,null,null,null,null,null,null,null,null,1]
[null,"SHPAK ALONA",5,"Q2","2022-10-25","2022-12-20",null,null,null,null,null,null,null,null,null,null,null,null,null,null,null,null,null,null,null,null,null,null,null,null,null,null,null,null,null,null,null,null,null,null,null,null,null,null,null,null,null,null,null,"X",null,"X",null,"X",null,"X",null,"X",null,"X",null,"X",null,"X",null,"X",null,"X",null,null,null,null,null,null,null,null,null,null,null,null,null,null,null,null,null,null,null,null,null,null,null,null,null,null,null,null,null,null,null,null,null,1]
[null,"SHPAK DARIA",1,"Q1","2022-11-08","2023-02-07",null,null,null,null,null,null,null,null,null,null,null,null,null,null,null,null,null,null,null,null,null,null,null,null,null,null,null,null,null,null,null,null,null,null,null,null,null,null,null,null,null,null,null,null,null,"X","X","X","X","X","X","X","X","X","X","X","X","X","X","X","X","X","X",null,null,null,null,null,null,null,null,null,null,null,null,null,null,null,null,null,null,null,null,null,null,null,null,null,null,null,null,null,null,null,null,1]
[null,null,null,null,null,null,null,null,null,null,null,null,null,null,null,null,null,null,null,null,null,null,null,null,null,null,null,null,null,null,null,null,null,null,null,null,null,null,null,null,null,null,null,null,null,null,null,null,null,null,null,null,null,null,null,null,null,null,null,null,null,null,null,null,null,null,null,null,null,null,null,null,null,null,null,null,null,null,null,null,null,null,null,null,null,null,null,null,null,null,null,null,null,null,null,null,null,null,null,null,null,0]
[null,"BAUDE FRANÇOIS",1,"Q2","2022-11-22","2023-01-03","15H15",null,null,null,null,null,null,null,null,null,null,null,null,null,null,null,null,null,null,null,null,null,null,null,null,null,null,null,null,null,null,null,null,null,null,null,null,null,null,null,null,null,null,null,null,null,null,"X",null,"X",null,"X",null,"X",null,"X",null,"X",null,"X",null,"X",null,null,null,null,null,null,null,null,null,null,null,null,null,null,null,null,null,null,null,null,null,null,null,null,null,null,null,null,null,null,null,null,null,1]
[null,"BERTHIER GUY",1,"Q2","2022-11-22","2023-02-14",null,null,null,null,null,null,null,null,null,null,null,null,null,null,null,null,null,null,null,null,null,null,null,null,null,null,null,null,null,null,null,null,null,null,null,null,null,null,null,null,null,null,null,null,null,null,null,"X",null,"X",null,"X",null,"X",null,"X",null,"X",null,"X",null,"X",null,null,null,null,null,null,null,null,null,null,null,null,null,null,null,null,null,null,null,null,null,null,null,null,null,null,null,null,null,null,null,null,null,1]
[null,"BUTTY PASCAL",4,"Q2","2022-09-06","2022-12-13",null,null,null,null,null,null,null,null,null,null,null,null,null,null,null,null,null,null,null,null,null,null,null,null,null,null,null,null,null,null,null,null,null,null,null,null,"X",null,"X",null,"X",null,"X",null,"X",null,"X",null,"X",null,"X",null,"X",null,"X",null,"X",null,"X",null,"X",null,"X",null,null,null,null,null,null,null,null,null,null,null,null,null,null,null,null,null,null,null,null,null,null,null,null,null,null,null,null,null,null,null,null,1]
[null,"COYNET ANAIS",5,"Q1","2022-11-15","2023-01-03",null,null,null,null,null,null,null,null,null,null,null,null,null,null,null,null,null,null,null,null,null,null,null,null,null,null,null,null,null,null,null,null,null,null,null,null,null,null,null,null,null,null,null,null,null,null,"X","X","X","X","X","X","X","X","X","X","X","X","X","X","X","X","X",null,null,null,null,null,null,null,null,null,null,null,null,null,null,null,null,null,null,null,null,null,null,null,null,null,null,null,null,null,null,null,null,1]
[null,"DECHAUME  YVES",1,"Q1","2022-11-22","2023-02-14",null,null,null,null,null,null,null,null,null,null,null,null,null,null,null,null,null,null,null,null,null,null,null,null,null,null,null,null,null,null,null,null,null,null,null,null,null,null,null,null,null,null,null,null,null,null,null,"X","X","X","X","X","X","X","X","X","X","X","X","X","X","X","X",null,null,null,null,null,null,null,null,null,null,null,null,null,null,null,null,null,null,null,null,null,null,null,null,null,null,null,null,null,null,null,null,1]
[null,"LOUIS JEAN MARIE",1,"Q2","2022-10-11","2022-12-20",null,null,null,null,null,null,null,null,null,null,null,null,null,null,null,null,null,null,null,null,null,null,null,null,null,null,null,null,null,null,null,null,null,null,null,null,null,null,null,null,null,"X",null,"X",null,"X",null,"X",null,"X",null,"X",null,"X",null,"X",null,"X",null,"X",null,"X",null,null,null,null,null,null,null,null,null,null,null,null,null,null,null,null,null,null,null,null,null,null,null,null,null,null,null,null,null,null,null,null,null,1]
[null,"POLIANSKA ELINA",1,"Q1","2022-10-11","2023-01-10",null,null,null,null,null,null,null,null,null,null,null,null,null,null,null,null,null,null,null,null,null,null,null,null,null,null,null,null,null,null,null,null,null,null,null,null,null,null,null,null,null,"X","X","X","X","X","X","X","X","X","X","X","X","X","X","X","X","X","X","X","X","X","X",null,null,null,null,null,null,null,null,null,null,null,null,null,null,null,null,null,null,null,null,null,null,null,null,null,null,null,null,null,null,null,null,1]
[null,null,null,null,null,null,null,null,null,null,null,null,null,null,null,null,null,null,null,null,null,null,null,null,null,null,null,null,null,null,null,null,null,null,null,null,null,null,null,null,null,null,null,null,null,null,null,null,null,null,null,null,null,null,null,null,null,null,null,null,null,null,null,null,null,null,null,null,null,null,null,null,null,null,null,null,null,null,null,null,null,null,null,null,null,null,null,null,null,null,null,null,null,null,null,null,null,null,null,null,null,0]
[null,"BAHOUCHE NADIR",4,"Q2","2022-09-27","2022-11-22","15H30",null,null,null,null,null,null,null,null,null,null,null,null,null,null,null,null,null,null,null,null,null,null,null,null,null,null,null,null,null,null,null,null,null,null,null,null,null,null,"X",null,"X",null,"X",null,"X",null,"X",null,"X",null,"X",null,"X",null,"X",null,"X",null,"X",null,"X",null,null,null,null,null,null,null,null,null,null,null,null,null,null,null,null,null,null,null,null,null,null,null,null,null,null,null,null,null,null,null,null,null,1]
[null,"BOUYAHAOUI SONIA",5,"Q1","2022-10-11","2023-01-03",null,null,null,null,null,null,null,null,null,null,null,null,null,null,null,null,null,null,null,null,null,null,null,null,null,null,null,null,null,null,null,null,null,null,null,null,null,null,null,null,null,"X","X","X","X","X","X","X","X","X","X","X","X","X","X","X","X","X","X","X","X","X","X",null,null,null,null,null,null,null,null,null,null,null,null,null,null,null,null,null,null,null,null,null,null,null,null,null,null,null,null,null,null,null,null,1]
[null,"GASMI ALI NAWEL",6,"Q2","2022-10-11","2023-01-03",null,null,null,null,null,null,null,null,null,null,null,null,null,null,null,null,null,null,null,null,null,null,null,null,null,null,null,null,null,null,null,null,null,null,null,null,null,null,null,null,null,"X",null,"X",null,"X",null,"X",null,"X",null,"X",null,"X",null,"X",null,"X",null,"X",null,"X",null,null,null,null,null,null,null,null,null,null,null,null,null,null,null,null,null,null,null,null,null,null,null,null,null,null,null,null,null,null,null,null,null,1]
[null,"MHADRI BOUBAKER",1,"Q2","2022-09-20","2022-11-29",null,null,null,null,null,null,null,null,null,null,null,null,null,null,null,null,null,null,null,null,null,null,null,null,null,null,null,null,null,null,null,null,null,null,null,null,null,null,"X",null,"X",null,"X",null,"X",null,"X",null,"X",null,"X",null,"X",null,"X",null,"X",null,"X",null,"X",null,"X",null,null,null,null,null,null,null,null,null,null,null,null,null,null,null,null,null,null,null,null,null,null,null,null,null,null,null,null,null,null,null,null,1]
[null,null,null,null,null,null,null,null,null,null,null,null,null,null,null,null,null,null,null,null,null,null,null,null,null,null,null,null,null,null,null,null,null,null,null,null,null,null,null,null,null,null,null,null,null,null,null,null,null,null,null,null,null,null,null,null,null,null,null,null,null,null,null,null,null,null,null,null,null,null,null,null,null,null,null,null,null,null,null,null,null,null,null,null,null,null,null,null,null,null,null,null,null,null,null,null,null,null,null,null,null,0]
[null,null,null,null,null,null,null,null,null,null,null,null,null,null,null,null,null,null,null,null,null,null,null,null,null,null,null,null,null,null,null,null,null,null,null,null,null,null,null,null,null,null,null,null,null,null,null,null,null,null,null,null,null,null,null,null,null,null,null,null,null,null,null,null,null,null,null,null,null,null,null,null,null,null,null,null,null,null,null,null,null,null,null,null,null,null,null,null,null,null,null,null,null,null,null,null,null,null,null,null,null,0]
[null,null,null,null,null,null,null,null,null,null,null,null,null,null,null,null,null,null,null,null,null,null,null,null,null,null,null,null,null,null,null,null,null,null,null,null,null,null,null,null,null,null,null,null,null,null,null,null,null,null,null,null,null,null,null,null,null,null,null,null,null,null,null,null,null,null,null,null,null,null,null,null,null,null,null,null,null,null,null,null,null,null,null,null,null,null,null,null,null,null,null,null,null,null,null,null,null,null,null,null,null,0]
[null,null,null,null,null,null,null,null,null,null,null,null,null,null,null,null,null,null,null,null,null,null,null,null,null,null,null,null,null,null,null,null,null,null,null,null,null,null,null,null,null,null,null,null,null,null,null,null,null,null,null,null,null,null,null,null,null,null,null,null,null,null,null,null,null,null,null,null,null,null,null,null,null,null,null,null,null,null,null,null,null,null,null,null,null,null,null,null,null,null,null,null,null,null,null,null,null,null,null,null,null,0]
[null,"COURTY LUCIE",4,"Q1","2022-11-15","2023-02-14","15H45",null,null,null,null,null,null,null,null,null,null,null,null,null,null,null,null,null,null,null,null,null,null,null,null,null,null,null,null,null,null,null,null,null,null,null,null,null,null,null,null,null,null,null,null,null,"X","X","X","X","X","X","X","X","X","X","X","X","X","X","X","X","X",null,null,null,null,null,null,null,null,null,null,null,null,null,null,null,null,null,null,null,null,null,null,null,null,null,null,null,null,null,null,null,null,1]
[null,"DE ALCANTARA  ALEXANDRE",3,"Q2","2022-10-11","2023-01-03",null,null,null,null,null,null,null,null,null,null,null,null,null,null,null,null,null,null,null,null,null,null,null,null,null,null,null,null,null,null,null,null,null,null,null,null,null,null,null,null,null,"X",null,"X",null,"X",null,"X",null,"X",null,"X",null,"X",null,"X",null,"X",null,"X",null,"X",null,null,null,null,null,null,null,null,null,null,null,null,null,null,null,null,null,null,null,null,null,null,null,null,null,null,null,null,null,null,null,null,null,1]
[null,"EL MAJERI  LOBNA",6,"Q1","2022-07-05","2022-10-11",null,null,null,null,null,null,null,null,null,null,null,null,null,null,null,null,null,null,null,null,null,null,null,null,null,null,null,"X","X","X","X","X","X","X","X","X","X","X","X","X","X","X","X","X","X","X","X","X","X","X","X","X","X","X","X","X","X","X","X","X","X","X","X",null,null,null,null,null,null,null,null,null,null,null,null,null,null,null,null,null,null,null,null,null,null,null,null,null,null,null,null,null,null,null,null,1]
[null,"EL OUARIACHI  YOUNES",1,"Q1","2022-06-07","2022-09-07",null,null,null,null,null,null,null,null,null,null,null,null,null,null,null,null,null,null,null,null,null,null,null,"X","X","X","X","X","X","X","X","X","X","X","X","X","X","X","X","X","X","X","X","X","X","X","X","X","X","X","X","X","X","X","X","X","X","X","X","X","X","X","X",null,null,null,null,null,null,null,null,null,null,null,null,null,null,null,null,null,null,null,null,null,null,null,null,null,null,null,null,null,null,null,null,1]
[null,null,null,null,null,null,null,null,null,null,null,null,null,null,null,null,null,null,null,null,null,null,null,null,null,null,null,null,null,null,null,null,null,null,null,null,null,null,null,null,null,null,null,null,null,null,null,null,null,null,null,null,null,null,null,null,null,null,null,null,null,null,null,null,null,null,null,null,null,null,null,null,null,null,null,null,null,null,null,null,null,null,null,null,null,null,null,null,null,null,null,null,null,null,null,null,null,null,null,null,null,0]
[null,null,null,null,null,null,null,null,null,null,null,null,null,null,null,null,null,null,null,null,null,null,null,null,null,null,null,null,null,null,null,null,null,null,null,null,null,null,null,null,null,null,null,null,null,null,null,null,null,null,null,null,null,null,null,null,null,null,null,null,null,null,null,null,null,null,null,null,null,null,null,null,null,null,null,null,null,null,null,null,null,null,null,null,null,null,null,null,null,null,null,null,null,null,null,null,null,null,null,null,null,0]
[null,null,null,null,null,null,null,null,null,null,null,null,null,null,null,null,null,null,null,null,null,null,null,null,null,null,null,null,null,null,null,null,null,null,null,null,null,null,null,null,null,null,null,null,null,null,null,null,null,null,null,null,null,null,null,null,null,null,null,null,null,null,null,null,null,null,null,null,null,null,null,null,null,null,null,null,null,null,null,null,null,null,null,null,null,null,null,null,null,null,null,null,null,null,null,null,null,null,null,null,null,0]
[null,null,null,null,null,null,null,null,null,null,null,null,null,null,null,null,null,null,null,null,null,null,null,null,null,null,null,null,null,null,null,null,null,null,null,null,null,null,null,null,null,null,null,null,null,null,null,null,null,null,null,null,null,null,null,null,null,null,null,null,null,null,null,null,null,null,null,null,null,null,null,null,null,null,null,null,null,null,null,null,null,null,null,null,null,null,null,null,null,null,null,null,null,null,null,null,null,null,null,null,null,0]
[null,"BRETON SYLVIE",2,"Q3","2022-11-15","2022-12-27","16H00",null,null,null,null,null,null,null,null,null,null,null,null,null,null,null,null,null,null,null,null,null,null,null,null,null,null,null,null,null,null,null,null,null,null,null,null,null,null,null,null,null,null,null,null,null,"X",null,null,"X",null,null,"X",null,null,"X",null,null,"X",null,null,"X",null,null,null,null,null,null,null,null,null,null,null,null,null,null,null,null,null,null,null,null,null,null,null,null,null,null,null,null,null,null,null,null,null,1]
[null,"DEDULLE  GENEVIÈVE",1,"Q2","2022-09-20","2023-01-03",null,null,null,null,null,null,null,null,null,null,null,null,null,null,null,null,null,null,null,null,null,null,null,null,null,null,null,null,null,null,null,null,null,null,null,null,null,null,"X",null,"X",null,"X",null,"X",null,"X",null,"X",null,"X",null,"X",null,"X",null,"X",null,"X",null,"X",null,"X",null,null,null,null,null,null,null,null,null,null,null,null,null,null,null,null,null,null,null,null,null,null,null,null,null,null,null,null,null,null,null,null,1]
[null,"DIALLO MAMMADOU",4,"Q1","2022-09-20","2023-01-03",null,null,null,null,null,null,null,null,null,null,null,null,null,null,null,null,null,null,null,null,null,null,null,null,null,null,null,null,null,null,null,null,null,null,null,null,null,null,"X","X","X","X","X","X","X","X","X","X","X","X","X","X","X","X","X","X","X","X","X","X","X","X","X",null,null,null,null,null,null,null,null,null,null,null,null,null,null,null,null,null,null,null,null,null,null,null,null,null,null,null,null,null,null,null,null,{"$f":"IF($E233=\"\",0,1)","v":1}]
[null,"GAUDE FLORIAN",2,"Q2","2022-11-15","2022-12-27",null,null,null,null,null,null,null,null,null,null,null,null,null,null,null,null,null,null,null,null,null,null,null,null,null,null,null,null,null,null,null,null,null,null,null,null,null,null,null,null,null,null,null,null,null,null,"X",null,"X",null,"X",null,"X",null,"X",null,"X",null,"X",null,"X",null,"X",null,null,null,null,null,null,null,null,null,null,null,null,null,null,null,null,null,null,null,null,null,null,null,null,null,null,null,null,null,null,null,null,{"$f":"IF($B234=\"\",0,1)","v":1}]
[null,"GIRARD VIRGINIE",3,"Q1","2022-11-08","2022-11-29",null,null,null,null,null,null,null,null,null,null,null,null,null,null,null,null,null,null,null,null,null,null,null,null,null,null,null,null,null,null,null,null,null,null,null,null,null,null,null,null,null,null,null,null,null,"X","X","X","X","X","X","X","X","X","X","X","X","X","X","X","X","X","X",null,null,null,null,null,null,null,null,null,null,null,null,null,null,null,null,null,null,null,null,null,null,null,null,null,null,null,null,null,null,null,null,1]
[null,"PAYERNE JESSICA",4,"Q1","2022-08-23","2022-11-08",null,null,null,null,null,null,null,null,null,null,null,null,null,null,null,null,null,null,null,null,null,null,null,null,null,null,null,null,null,null,null,null,null,null,"X","X","X","X","X","X","X","X","X","X","X","X","X","X","X","X","X","X","X","X","X","X","X","X","X","X","X","X","X",null,null,null,null,null,null,null,null,null,null,null,null,null,null,null,null,null,null,null,null,null,null,null,null,null,null,null,null,null,null,null,null,1]
[null,"VIGUIER CHARLINE",1,"Q1","2022-11-08","2022-12-06",null,null,null,null,null,null,null,null,null,null,null,null,null,null,null,null,null,null,null,null,null,null,null,null,null,null,null,null,null,null,null,null,null,null,null,null,null,null,null,null,null,null,null,null,null,"X","X","X","X","X","X","X","X","X","X","X","X","X","X","X","X","X","X",null,null,null,null,null,null,null,null,null,null,null,null,null,null,null,null,null,null,null,null,null,null,null,null,null,null,null,null,null,null,null,null,1]
[null,null,null,null,null,null,null,null,null,null,null,null,null,null,null,null,null,null,null,null,null,null,null,null,null,null,null,null,null,null,null,null,null,null,null,null,null,null,null,null,null,null,null,null,null,null,null,null,null,null,null,null,null,null,null,null,null,null,null,null,null,null,null,null,null,null,null,null,null,null,null,null,null,null,null,null,null,null,null,null,null,null,null,null,null,null,null,null,null,null,null,null,null,null,null,null,null,null,null,null,null,0]
[null,"CATRIS LORIS",1,"Q2","2022-08-09","2022-11-08","16H15",null,null,null,null,null,null,null,null,null,null,null,null,null,null,null,null,null,null,null,null,null,null,null,null,null,null,null,null,null,null,null,"X",null,"X",null,"X",null,"X",null,"X",null,"X",null,"X",null,"X",null,"X",null,"X",null,"X",null,"X",null,"X",null,"X",null,"X",null,"X",null,null,null,null,null,null,null,null,null,null,null,null,null,null,null,null,null,null,null,null,null,null,null,null,null,null,null,null,null,null,null,null,1]
[null,"DIABY  YAYA",3,"Q2","2022-10-18","2022-12-27",null,null,null,null,null,null,null,null,null,null,null,null,null,null,null,null,null,null,null,null,null,null,null,null,null,null,null,null,null,null,null,null,null,null,null,null,null,null,null,null,null,null,"X",null,"X",null,"X",null,"X",null,"X",null,"X",null,"X",null,"X",null,"X",null,"X",null,"X",null,null,null,null,null,null,null,null,null,null,null,null,null,null,null,null,null,null,null,null,null,null,null,null,null,null,null,null,null,null,null,null,1]
[null,"MARELLI SANDRINE",4,"Q1","2022-09-13","2022-11-15",null,null,null,null,null,null,null,null,null,null,null,null,null,null,null,null,null,null,null,null,null,null,null,null,null,null,null,null,null,null,null,null,null,null,null,null,null,"X","X","X","X","X","X","X","X","X","X","X","X","X","X","X","X","X","X","X","X","X","X","X","X","X","X",null,null,null,null,null,null,null,null,null,null,null,null,null,null,null,null,null,null,null,null,null,null,null,null,null,null,null,null,null,null,null,null,1]
[null,"PYLYPENKO NATALIA",4,"Q1","2022-10-25","2023-01-24",null,null,null,null,null,null,null,null,null,null,null,null,null,null,null,null,null,null,null,null,null,null,null,null,null,null,null,null,null,null,null,null,null,null,null,null,null,null,null,null,null,null,null,"X","X","X","X","X","X","X","X","X","X","X","X","X","X","X","X","X","X","X","X",null,null,null,null,null,null,null,null,null,null,null,null,null,null,null,null,null,null,null,null,null,null,null,null,null,null,null,null,null,null,null,null,1]
[null,"ROSHCHINA  MARHARYTA",3,"Q1","2022-08-09","2022-11-08",null,null,null,null,null,null,null,null,null,null,null,null,null,null,null,null,null,null,null,null,null,null,null,null,null,null,null,null,null,null,null,null,"X","X","X","X","X","X","X","X","X","X","X","X","X","X","X","X","X","X","X","X","X","X","X","X","X","X","X","X","X","X","X",null,null,null,null,null,null,null,null,null,null,null,null,null,null,null,null,null,null,null,null,null,null,null,null,null,null,null,null,null,null,null,null,1]
[null,"THOMAS JULIEN",1,"Q1","2022-08-30","2022-10-25",null,null,null,null,null,null,null,null,null,null,null,null,null,null,null,null,null,null,null,null,null,null,null,null,null,null,null,null,null,null,null,null,null,null,null,"X","X","X","X","X","X","X","X","X","X","X","X","X","X","X","X","X","X","X","X","X","X","X","X","X","X","X","X",null,null,null,null,null,null,null,null,null,null,null,null,null,null,null,null,null,null,null,null,null,null,null,null,null,null,null,null,null,null,null,null,1]
[null,"TRAYKOWSKI NENAD",3,"Q3","2022-10-25","2023-01-17",null,null,null,null,null,null,null,null,null,null,null,null,null,null,null,null,null,null,null,null,null,null,null,null,null,null,null,null,null,null,null,null,null,null,null,null,null,null,null,null,null,null,null,"X",null,null,"X",null,null,"X",null,null,"X",null,null,"X",null,null,"X",null,null,"X",null,null,null,null,null,null,null,null,null,null,null,null,null,null,null,null,null,null,null,null,null,null,null,null,null,null,null,null,null,null,null,null,null,1]
[null,null,null,null,null,null,null,null,null,null,null,null,null,null,null,null,null,null,null,null,null,null,null,null,null,null,null,null,null,null,null,null,null,null,null,null,null,null,null,null,null,null,null,null,null,null,null,null,null,null,null,null,null,null,null,null,null,null,null,null,null,null,null,null,null,null,null,null,null,null,null,null,null,null,null,null,null,null,null,null,null,null,null,null,null,null,null,null,null,null,null,null,null,null,null,null,null,null,null,null,null,0]
[null,"ALAYA MOHAMMED",1,"Q2","2022-10-04","2022-11-15","16H30",null,null,null,null,null,null,null,null,null,null,null,null,null,null,null,null,null,null,null,null,null,null,null,null,null,null,null,null,null,null,null,null,null,null,null,null,null,null,null,"X",null,"X",null,"X",null,"X",null,"X",null,"X",null,"X",null,"X",null,"X",null,"X",null,"X",null,"X",null,null,null,null,null,null,null,null,null,null,null,null,null,null,null,null,null,null,null,null,null,null,null,null,null,null,null,null,null,null,null,null,1]
[null,"BLAZHEV OLGISTSA",4,"Q3","2022-09-27","2023-01-10",null,null,null,null,null,null,null,null,null,null,null,null,null,null,null,null,null,null,null,null,null,null,null,null,null,null,null,null,null,null,null,null,null,null,null,null,null,null,null,"X",null,null,"X",null,null,"X",null,null,"X",null,null,"X",null,null,"X",null,null,"X",null,null,"X",null,null,null,null,null,null,null,null,null,null,null,null,null,null,null,null,null,null,null,null,null,null,null,null,null,null,null,null,null,null,null,null,null,null,1]
[null,"COLLOMB SYLVAIN",1,"Q1","2022-09-27","2023-01-03",null,null,null,null,null,null,null,null,null,null,null,null,null,null,null,null,null,null,null,null,null,null,null,null,null,null,null,null,null,null,null,null,null,null,null,null,null,null,null,"X","X","X","X","X","X","X","X","X","X","X","X","X","X","X","X","X","X","X","X","X","X","X","X",null,null,null,null,null,null,null,null,null,null,null,null,null,null,null,null,null,null,null,null,null,null,null,null,null,null,null,null,null,null,null,null,1]
[null,"MAURICE GAETAN",1,"Q1","2022-11-22","2023-02-21",null,null,null,null,null,null,null,null,null,null,null,null,null,null,null,null,null,null,null,null,null,null,null,null,null,null,null,null,null,null,null,null,null,null,null,null,null,null,null,null,null,null,null,null,null,null,null,"X","X","X","X","X","X","X","X","X","X","X","X","X","X","X","X",null,null,null,null,null,null,null,null,null,null,null,null,null,null,null,null,null,null,null,null,null,null,null,null,null,null,null,null,null,null,null,null,1]
[null,"MAURICE LIONEL",2,"Q1","2022-11-22","2023-02-22",null,null,null,null,null,null,null,null,null,null,null,null,null,null,null,null,null,null,null,null,null,null,null,null,null,null,null,null,null,null,null,null,null,null,null,null,null,null,null,null,null,null,null,null,null,null,null,"X","X","X","X","X","X","X","X","X","X","X","X","X","X","X","X",null,null,null,null,null,null,null,null,null,null,null,null,null,null,null,null,null,null,null,null,null,null,null,null,null,null,null,null,null,null,null,null,1]
[null,"POUPART VALERIE",1,"Q2","2022-09-20","2022-12-13",null,null,null,null,null,null,null,null,null,null,null,null,null,null,null,null,null,null,null,null,null,null,null,null,null,null,null,null,null,null,null,null,null,null,null,null,null,null,"X",null,"X",null,"X",null,"X",null,"X",null,"X",null,"X",null,"X",null,"X",null,"X",null,"X",null,"X",null,"X",null,null,null,null,null,null,null,null,null,null,null,null,null,null,null,null,null,null,null,null,null,null,null,null,null,null,null,null,null,null,null,null,1]
[null,"VAQUER MARIE PIERRE",2,"Q1","2022-08-30","2022-11-29",null,null,null,null,null,null,null,null,null,null,null,null,null,null,null,null,null,null,null,null,null,null,null,null,null,null,null,null,null,null,null,null,null,null,null,"X","X","X","X","X","X","X","X","X","X","X","X","X","X","X","X","X","X","X","X","X","X","X","X","X","X","X","X",null,null,null,null,null,null,null,null,null,null,null,null,null,null,null,null,null,null,null,null,null,null,null,null,null,null,null,null,null,null,null,null,1]
[null,null,null,null,null,null,null,null,null,null,null,null,null,null,null,null,null,null,null,null,null,null,null,null,null,null,null,null,null,null,null,null,null,null,null,null,null,null,null,null,null,null,null,null,null,null,null,null,null,null,null,null,null,null,null,null,null,null,null,null,null,null,null,null,null,null,null,null,null,null,null,null,null,null,null,null,null,null,null,null,null,null,null,null,null,null,null,null,null,null,null,null,null,null,null,null,null,null,null,null,null,0]
[null,"BAHOUCHE FAIZA",4,"Q2","2022-08-30","2022-10-25","16H45",null,null,null,null,null,null,null,null,null,null,null,null,null,null,null,null,null,null,null,null,null,null,null,null,null,null,null,null,null,null,null,null,null,null,"X",null,"X",null,"X",null,"X",null,"X",null,"X",null,"X",null,"X",null,"X",null,"X",null,"X",null,"X",null,"X",null,"X",null,null,null,null,null,null,null,null,null,null,null,null,null,null,null,null,null,null,null,null,null,null,null,null,null,null,null,null,null,null,null,null,null,1]
[null,"CHALTOUT NALWEL",2,"Q1","2022-10-25","2023-01-24",null,null,null,null,null,null,null,null,null,null,null,null,null,null,null,null,null,null,null,null,null,null,null,null,null,null,null,null,null,null,null,null,null,null,null,null,null,null,null,null,null,null,null,"X","X","X","X","X","X","X","X","X","X","X","X","X","X","X","X","X","X","X","X",null,null,null,null,null,null,null,null,null,null,null,null,null,null,null,null,null,null,null,null,null,null,null,null,null,null,null,null,null,null,null,null,1]
[null,"CLEENEWERCK SYLVAIN",1,"Q1","2022-10-18","2022-12-13",null,null,null,null,null,null,null,null,null,null,null,null,null,null,null,null,null,null,null,null,null,null,null,null,null,null,null,null,null,null,null,null,null,null,null,null,null,null,null,null,null,null,"X","X","X","X","X","X","X","X","X","X","X","X","X","X","X","X","X","X","X","X","X",null,null,null,null,null,null,null,null,null,null,null,null,null,null,null,null,null,null,null,null,null,null,null,null,null,null,null,null,null,null,null,null,1]
[null,"DA COSTA MATOS ",1,"Q1","2022-10-18","2022-11-22",null,null,null,null,null,null,null,null,null,null,null,null,null,null,null,null,null,null,null,null,null,null,null,null,null,null,null,null,null,null,null,null,null,null,null,null,null,null,null,null,null,null,"X","X","X","X","X","X","X","X","X","X","X","X","X","X","X","X","X","X","X","X","X",null,null,null,null,null,null,null,null,null,null,null,null,null,null,null,null,null,null,null,null,null,null,null,null,null,null,null,null,null,null,null,null,1]
[null,"GARIN MAUDE",4,"Q1","2022-11-08","2022-12-06",null,null,null,null,null,null,null,null,null,null,null,null,null,null,null,null,null,null,null,null,null,null,null,null,null,null,null,null,null,null,null,null,null,null,null,null,null,null,null,null,null,null,null,null,null,"X","X","X","X","X","X","X","X","X","X","X","X","X","X","X","X","X","X",null,null,null,null,null,null,null,null,null,null,null,null,null,null,null,null,null,null,null,null,null,null,null,null,null,null,null,null,null,null,null,null,1]
[null,"MATENCIO  SAMPER MICHEL",2,"Q1","2022-11-08","2022-12-12",null,null,null,null,null,null,null,null,null,null,null,null,null,null,null,null,null,null,null,null,null,null,null,null,null,null,null,null,null,null,null,null,null,null,null,null,null,null,null,null,null,null,null,null,null,"X","X","X","X","X","X","X","X","X","X","X","X","X","X","X","X","X","X",null,null,null,null,null,null,null,null,null,null,null,null,null,null,null,null,null,null,null,null,null,null,null,null,null,null,null,null,null,null,null,null,1]
[null,"SCHEID MAGDALENA",2,"Q1","2022-08-09","2022-11-08",null,null,null,null,null,null,null,null,null,null,null,null,null,null,null,null,null,null,null,null,null,null,null,null,null,null,null,null,null,null,null,null,"X","X","X","X","X","X","X","X","X","X","X","X","X","X","X","X","X","X","X","X","X","X","X","X","X","X","X","X","X","X","X",null,null,null,null,null,null,null,null,null,null,null,null,null,null,null,null,null,null,null,null,null,null,null,null,null,null,null,null,null,null,null,null,1]
[null,null,null,null,null,null,null,null,null,null,null,null,null,null,null,null,null,null,null,null,null,null,null,null,null,null,null,null,null,null,null,null,null,null,null,null,null,null,null,null,null,null,null,null,null,null,null,null,null,null,null,null,null,null,null,null,null,null,null,null,null,null,null,null,null,null,null,null,null,null,null,null,null,null,null,null,null,null,null,null,null,null,null,null,null,null,null,null,null,null,null,null,null,null,null,null,null,null,null,null,null,0]
[null,"BALBO CINDY",1,"Q1","2022-10-25","2023-01-24","17H00",null,null,null,null,null,null,null,null,null,null,null,null,null,null,null,null,null,null,null,null,null,null,null,null,null,null,null,null,null,null,null,null,null,null,null,null,null,null,null,null,null,null,"X","X","X","X","X","X","X","X","X","X","X","X","X","X","X","X","X","X","X","X",null,null,null,null,null,null,null,null,null,null,null,null,null,null,null,null,null,null,null,null,null,null,null,null,null,null,null,null,null,null,null,null,1]
[null,"CHERVETSKA  SVITLANA",4,"Q1","2022-10-25","2023-01-10",null,null,null,null,null,null,null,null,null,null,null,null,null,null,null,null,null,null,null,null,null,null,null,null,null,null,null,null,null,null,null,null,null,null,null,null,null,null,null,null,null,null,null,"X","X","X","X","X","X","X","X","X","X","X","X","X","X","X","X","X","X","X","X",null,null,null,null,null,null,null,null,null,null,null,null,null,null,null,null,null,null,null,null,null,null,null,null,null,null,null,null,null,null,null,null,1]
[null,"CYPRYK ELISA",3,"Q1","2022-09-13","2022-12-13",null,null,null,null,null,null,null,null,null,null,null,null,null,null,null,null,null,null,null,null,null,null,null,null,null,null,null,null,null,null,null,null,null,null,null,null,null,"X","X","X","X","X","X","X","X","X","X","X","X","X","X","X","X","X","X","X","X","X","X","X","X","X","X",null,null,null,null,null,null,null,null,null,null,null,null,null,null,null,null,null,null,null,null,null,null,null,null,null,null,null,null,null,null,null,null,1]
[null,"DEFLAOUI ELODIE",4,"Q4","2022-10-11","2023-01-03",null,null,null,null,null,null,null,null,null,null,null,null,null,null,null,null,null,null,null,null,null,null,null,null,null,null,null,null,null,null,null,null,null,null,null,null,null,null,null,null,null,"X",null,null,null,"X",null,null,null,"X",null,null,null,"X",null,null,null,"X",null,null,null,"X",null,null,null,null,null,null,null,null,null,null,null,null,null,null,null,null,null,null,null,null,null,null,null,null,null,null,null,null,null,null,null,null,null,{"$f":"IF($B266=\"\",0,1)","v":1}]
[null,"GALLO FANNY",3,"Q1","2022-11-08","2023-01-11",null,null,null,null,null,null,null,null,null,null,null,null,null,null,null,null,null,null,null,null,null,null,null,null,null,null,null,null,null,null,null,null,null,null,null,null,null,null,null,null,null,null,null,null,null,"X","X","X","X","X","X","X","X","X","X","X","X","X","X","X","X","X","X",null,null,null,null,null,null,null,null,null,null,null,null,null,null,null,null,null,null,null,null,null,null,null,null,null,null,null,null,null,null,null,null,1]
[null,"MARYNICH NATALIA",3,"Q1","2022-10-11","2023-01-10",null,null,null,null,null,null,null,null,null,null,null,null,null,null,null,null,null,null,null,null,null,null,null,null,null,null,null,null,null,null,null,null,null,null,null,null,null,null,null,null,null,"X","X","X","X","X","X","X","X","X","X","X","X","X","X","X","X","X","X","X","X","X","X",null,null,null,null,null,null,null,null,null,null,null,null,null,null,null,null,null,null,null,null,null,null,null,null,null,null,null,null,null,null,null,null,1]
[null,"SEFI AMIR",1,"Q1","2022-11-15","2023-01-10",null,null,null,null,null,null,null,null,null,null,null,null,null,null,null,null,null,null,null,null,null,null,null,null,null,null,null,null,null,null,null,null,null,null,null,null,null,null,null,null,null,null,null,null,null,null,"X","X","X","X","X","X","X","X","X","X","X","X","X","X","X","X","X",null,null,null,null,null,null,null,null,null,null,null,null,null,null,null,null,null,null,null,null,null,null,null,null,null,null,null,null,null,null,null,null,1]
[null,null,null,null,null,null,null,null,null,null,null,null,null,null,null,null,null,null,null,null,null,null,null,null,null,null,null,null,null,null,null,null,null,null,null,null,null,null,null,null,null,null,null,null,null,null,null,null,null,null,null,null,null,null,null,null,null,null,null,null,null,null,null,null,null,null,null,null,null,null,null,null,null,null,null,null,null,null,null,null,null,null,null,null,null,null,null,null,null,null,null,null,null,null,null,null,null,null,null,null,null,0]
[null,"AURAMENKO SERGUII",4,"Q2","2022-10-25","2023-01-31","17H15",null,null,null,null,null,null,null,null,null,null,null,null,null,null,null,null,null,null,null,null,null,null,null,null,null,null,null,null,null,null,null,null,null,null,null,null,null,null,null,null,null,null,"X",null,"X",null,"X",null,"X",null,"X",null,"X",null,"X",null,"X",null,"X",null,"X",null,null,null,null,null,null,null,null,null,null,null,null,null,null,null,null,null,null,null,null,null,null,null,null,null,null,null,null,null,null,null,null,null,1]
[null,"DUCASTEL  LUDOVIC",1,"Q2","2022-10-25","2023-01-17",null,null,null,null,null,null,null,null,null,null,null,null,null,null,null,null,null,null,null,null,null,null,null,null,null,null,null,null,null,null,null,null,null,null,null,null,null,null,null,null,null,null,null,"X",null,"X",null,"X",null,"X",null,"X",null,"X",null,"X",null,"X",null,"X",null,"X",null,null,null,null,null,null,null,null,null,null,null,null,null,null,null,null,null,null,null,null,null,null,null,null,null,null,null,null,null,null,null,null,null,1]
[null,"DUPONT  ISABELLE",3,"Q1","2022-10-04","2023-01-10",null,null,null,null,null,null,null,null,null,null,null,null,null,null,null,null,null,null,null,null,null,null,null,null,null,null,null,null,null,null,null,null,null,null,null,null,null,null,null,null,"X","X","X","X","X","X","X","X","X","X","X","X","X","X","X","X","X","X","X","X","X","X","X",null,null,null,null,null,null,null,null,null,null,null,null,null,null,null,null,null,null,null,null,null,null,null,null,null,null,null,null,null,null,null,null,1]
[null,"FREMIET DORIAN",1,"Q1","2022-06-21","2022-09-20",null,null,null,null,null,null,null,null,null,null,null,null,null,null,null,null,null,null,null,null,null,null,null,null,null,"X","X","X","X","X","X","X","X","X","X","X","X","X","X","X","X","X","X","X","X","X","X","X","X","X","X","X","X","X","X","X","X","X","X","X","X","X","X",null,null,null,null,null,null,null,null,null,null,null,null,null,null,null,null,null,null,null,null,null,null,null,null,null,null,null,null,null,null,null,null,1]
[null,"GIROUD GAELLE",1,"Q1","2022-10-11","2023-01-10",null,null,null,null,null,null,null,null,null,null,null,null,null,null,null,null,null,null,null,null,null,null,null,null,null,null,null,null,null,null,null,null,null,null,null,null,null,null,null,null,null,"X","X","X","X","X","X","X","X","X","X","X","X","X","X","X","X","X","X","X","X","X","X",null,null,null,null,null,null,null,null,null,null,null,null,null,null,null,null,null,null,null,null,null,null,null,null,null,null,null,null,null,null,null,null,1]
[null,"LORCA MAELY",3,"Q2","2022-10-11","2023-01-10",null,null,null,null,null,null,null,null,null,null,null,null,null,null,null,null,null,null,null,null,null,null,null,null,null,null,null,null,null,null,null,null,null,null,null,null,null,null,null,null,null,"X",null,"X",null,"X",null,"X",null,"X",null,"X",null,"X",null,"X",null,"X",null,"X",null,"X",null,null,null,null,null,null,null,null,null,null,null,null,null,null,null,null,null,null,null,null,null,null,null,null,null,null,null,null,null,null,null,null,null,1]
[null,null,null,null,null,null,null,null,null,null,null,null,null,null,null,null,null,null,null,null,null,null,null,null,null,null,null,null,null,null,null,null,null,null,null,null,null,null,null,null,null,null,null,null,null,null,null,null,null,null,null,null,null,null,null,null,null,null,null,null,null,null,null,null,null,null,null,null,null,null,null,null,null,null,null,null,null,null,null,null,null,null,null,null,null,null,null,null,null,null,null,null,null,null,null,null,null,null,null,null,null,0]
[null,null,null,null,null,null,null,null,null,null,null,null,null,null,null,null,null,null,null,null,null,null,null,null,null,null,null,null,null,null,null,null,null,null,null,null,null,null,null,null,null,null,null,null,null,null,null,null,null,null,null,null,null,null,null,null,null,null,null,null,null,null,null,null,null,null,null,null,null,null,null,null,null,null,null,null,null,null,null,null,null,null,null,null,null,null,null,null,null,null,null,null,null,null,null,null,null,null,null,null,null,0]
[null,"DESPRES CELINE",5,"Q2","2022-10-04","2022-12-20","17H30",null,null,null,null,null,null,null,null,null,null,null,null,null,null,null,null,null,null,null,null,null,null,null,null,null,null,null,null,null,null,null,null,null,null,null,null,null,null,null,"X",null,"X",null,"X",null,"X",null,"X",null,"X",null,"X",null,"X",null,"X",null,"X",null,"X",null,"X",null,null,null,null,null,null,null,null,null,null,null,null,null,null,null,null,null,null,null,null,null,null,null,null,null,null,null,null,null,null,null,null,1]
[null,"FORCINA LOLA",3,"Q1","2022-10-18","2023-01-04",null,null,null,null,null,null,null,null,null,null,null,null,null,null,null,null,null,null,null,null,null,null,null,null,null,null,null,null,null,null,null,null,null,null,null,null,null,null,null,null,null,null,"X","X","X","X","X","X","X","X","X","X","X","X","X","X","X","X","X","X","X","X","X",null,null,null,null,null,null,null,null,null,null,null,null,null,null,null,null,null,null,null,null,null,null,null,null,null,null,null,null,null,null,null,null,1]
[null,"HEGELMANN THIERRY",1,"Q3","2022-11-08","2023-01-31",null,null,null,null,null,null,null,null,null,null,null,null,null,null,null,null,null,null,null,null,null,null,null,null,null,null,null,null,null,null,null,null,null,null,null,null,null,null,null,null,null,null,null,null,null,"X",null,null,"X",null,null,"X",null,null,"X",null,null,"X",null,null,"X",null,null,null,null,null,null,null,null,null,null,null,null,null,null,null,null,null,null,null,null,null,null,null,null,null,null,null,null,null,null,null,null,null,null,1]
[null,"LAPALUS FREDERICK",1,"Q1","2022-09-13","2022-12-13",null,null,null,null,null,null,null,null,null,null,null,null,null,null,null,null,null,null,null,null,null,null,null,null,null,null,null,null,null,null,null,null,null,null,null,null,null,"X","X","X","X","X","X","X","X","X","X","X","X","X","X","X","X","X","X","X","X","X","X","X","X","X","X",null,null,null,null,null,null,null,null,null,null,null,null,null,null,null,null,null,null,null,null,null,null,null,null,null,null,null,null,null,null,null,null,1]
[null,"SALEM MALIK",2,"Q1","2022-10-18","2023-01-03",null,null,null,null,null,null,null,null,null,null,null,null,null,null,null,null,null,null,null,null,null,null,null,null,null,null,null,null,null,null,null,null,null,null,null,null,null,null,null,null,null,null,"X","X","X","X","X","X","X","X","X","X","X","X","X","X","X","X","X","X","X","X","X",null,null,null,null,null,null,null,null,null,null,null,null,null,null,null,null,null,null,null,null,null,null,null,null,null,null,null,null,null,null,null,null,1]
[null,"SOODONNIKOVA NINA",3,"Q2","2022-11-08","2023-02-08",null,null,null,null,null,null,null,null,null,null,null,null,null,null,null,null,null,null,null,null,null,null,null,null,null,null,null,null,null,null,null,null,null,null,null,null,null,null,null,null,null,null,null,null,null,"X",null,"X",null,"X",null,"X",null,"X",null,"X",null,"X",null,"X",null,"X",null,null,null,null,null,null,null,null,null,null,null,null,null,null,null,null,null,null,null,null,null,null,null,null,null,null,null,null,null,null,null,null,null,1]
[null,"TARASOVA  HANNA",3,"Q1","2022-11-22","2023-02-22",null,null,null,null,null,null,null,null,null,null,null,null,null,null,null,null,null,null,null,null,null,null,null,null,null,null,null,null,null,null,null,null,null,null,null,null,null,null,null,null,null,null,null,null,null,null,null,"X","X","X","X","X","X","X","X","X","X","X","X","X","X","X","X",null,null,null,null,null,null,null,null,null,null,null,null,null,null,null,null,null,null,null,null,null,null,null,null,null,null,null,null,null,null,null,null,1]
[null,null,null,null,null,null,null,null,null,null,null,null,null,null,null,null,null,null,null,null,null,null,null,null,null,null,null,null,null,null,null,null,null,null,null,null,null,null,null,null,null,null,null,null,null,null,null,null,null,null,null,null,null,null,null,null,null,null,null,null,null,null,null,null,null,null,null,null,null,null,null,null,null,null,null,null,null,null,null,null,null,null,null,null,null,null,null,null,null,null,null,null,null,null,null,null,null,null,null,null,null,0]
[null,"BOULANGER MARIE FRANCOISE",1,"Q1","2022-08-16","2022-11-15","17H45",null,null,null,null,null,null,null,null,null,null,null,null,null,null,null,null,null,null,null,null,null,null,null,null,null,null,null,null,null,null,null,null,"X","X","X","X","X","X","X","X","X","X","X","X","X","X","X","X","X","X","X","X","X","X","X","X","X","X","X","X","X","X",null,null,null,null,null,null,null,null,null,null,null,null,null,null,null,null,null,null,null,null,null,null,null,null,null,null,null,null,null,null,null,null,1]
[null,"CABANES JACQUELINE",1,"Q4","2022-10-25","2023-01-24",null,null,null,null,null,null,null,null,null,null,null,null,null,null,null,null,null,null,null,null,null,null,null,null,null,null,null,null,null,null,null,null,null,null,null,null,null,null,null,null,null,null,null,"X",null,null,null,"X",null,null,null,"X",null,null,null,"X",null,null,null,"X",null,null,null,null,null,null,null,null,null,null,null,null,null,null,null,null,null,null,null,null,null,null,null,null,null,null,null,null,null,null,null,null,null,null,null,1]
[null,"KLYMNIUK SVITLANA",3,"Q2","2022-09-20","2022-12-06",null,null,null,null,null,null,null,null,null,null,null,null,null,null,null,null,null,null,null,null,null,null,null,null,null,null,null,null,null,null,null,null,null,null,null,null,null,null,"X",null,"X",null,"X",null,"X",null,"X",null,"X",null,"X",null,"X",null,"X",null,"X",null,"X",null,"X",null,"X",null,null,null,null,null,null,null,null,null,null,null,null,null,null,null,null,null,null,null,null,null,null,null,null,null,null,null,null,null,null,null,null,1]
[null,"LUNIENKOV ANDRE",7,"Q1","2022-09-20","2023-01-03",null,null,null,null,null,null,null,null,null,null,null,null,null,null,null,null,null,null,null,null,null,null,null,null,null,null,null,null,null,null,null,null,null,null,null,null,null,null,"X","X","X","X","X","X","X","X","X","X","X","X","X","X","X","X","X","X","X","X","X","X","X","X","X",null,null,null,null,null,null,null,null,null,null,null,null,null,null,null,null,null,null,null,null,null,null,null,null,null,null,null,null,null,null,null,null,1]
[null,"PODOBIED VALERIA",6,"Q2","2022-09-20","2022-12-06",null,null,null,null,null,null,null,null,null,null,null,null,null,null,null,null,null,null,null,null,null,null,null,null,null,null,null,null,null,null,null,null,null,null,null,null,null,null,"X",null,"X",null,"X",null,"X",null,"X",null,"X",null,"X",null,"X",null,"X",null,"X",null,"X",null,"X",null,"X",null,null,null,null,null,null,null,null,null,null,null,null,null,null,null,null,null,null,null,null,null,null,null,null,null,null,null,null,null,null,null,null,1]
[null,"SHUMEIKO LILIIA",4,"Q2","2022-09-20","2022-12-06",null,null,null,null,null,null,null,null,null,null,null,null,null,null,null,null,null,null,null,null,null,null,null,null,null,null,null,null,null,null,null,null,null,null,null,null,null,null,"X",null,"X",null,"X",null,"X",null,"X",null,"X",null,"X",null,"X",null,"X",null,"X",null,"X",null,"X",null,"X",null,null,null,null,null,null,null,null,null,null,null,null,null,null,null,null,null,null,null,null,null,null,null,null,null,null,null,null,null,null,null,null,1]
[null,"VENET  FREDERICQUES",3,"Q1","2022-08-16","2022-11-15",null,null,null,null,null,null,null,null,null,null,null,null,null,null,null,null,null,null,null,null,null,null,null,null,null,null,null,null,null,null,null,null,null,"X","X","X","X","X","X","X","X","X","X","X","X","X","X","X","X","X","X","X","X","X","X","X","X","X","X","X","X","X","X",null,null,null,null,null,null,null,null,null,null,null,null,null,null,null,null,null,null,null,null,null,null,null,null,null,null,null,null,null,null,null,null,1]
[null,null,null,null,null,null,null,null,null,null,null,null,null,null,null,null,null,null,null,null,null,null,null,null,null,null,null,null,null,null,null,null,null,null,null,null,null,null,null,null,null,null,null,null,null,null,null,null,null,null,null,null,null,null,null,null,null,null,null,null,null,null,null,null,null,null,null,null,null,null,null,null,null,null,null,null,null,null,null,null,null,null,null,null,null,null,null,null,null,null,null,null,null,null,null,null,null,null,null,null,null,0]
[null,null,null,null,null,null,"18H00",null,null,null,null,null,null,null,null,null,null,null,null,null,null,null,null,null,null,null,null,null,null,null,null,null,null,null,null,null,null,null,null,null,null,null,null,null,null,null,null,null,null,null,null,null,null,null,null,null,null,null,null,null,null,null,null,null,null,null,null,null,null,null,null,null,null,null,null,null,null,null,null,null,null,null,null,null,null,null,null,null,null,null,null,null,null,null,null,null,null,null,null,null,null,0]
[null,null,null,null,null,null,null,null,null,null,null,null,null,null,null,null,null,null,null,null,null,null,null,null,null,null,null,null,null,null,null,null,null,null,null,null,null,null,null,null,null,null,null,null,null,null,null,null,null,null,null,null,null,null,null,null,null,null,null,null,null,null,null,null,null,null,null,null,null,null,null,null,null,null,null,null,null,null,null,null,null,null,null,null,null,null,null,null,null,null,null,null,null,null,null,null,null,null,null,null,null,0]
[null,null,null,null,null,null,null,null,null,null,null,null,null,null,null,null,null,null,null,null,null,null,null,null,null,null,null,null,null,null,null,null,null,null,null,null,null,null,null,null,null,null,null,null,null,null,null,null,null,null,null,null,null,null,null,null,null,null,null,null,null,null,null,null,null,null,null,null,null,null,null,null,null,null,null,null,null,null,null,null,null,null,null,null,null,null,null,null,null,null,null,null,null,null,null,null,null,null,null,null,null,0]
[null,null,null,null,null,null,null,null,null,null,null,null,null,null,null,null,null,null,null,null,null,null,null,null,null,null,null,null,null,null,null,null,null,null,null,null,null,null,null,null,null,null,null,null,null,null,null,null,null,null,null,null,null,null,null,null,null,null,null,null,null,null,null,null,null,null,null,null,null,null,null,null,null,null,null,null,null,null,null,null,null,null,null,null,null,null,null,null,null,null,null,null,null,null,null,null,null,null,null,null,null,{"$f":"IF($B298=\"\",0,1)","v":0}]
[null,null,null,null,null,null,null,null,null,null,null,null,null,null,null,null,null,null,null,null,null,null,null,null,null,null,null,null,null,null,null,null,null,null,null,null,null,null,null,null,null,null,null,null,null,null,null,null,null,null,null,null,null,null,null,null,null,null,null,null,null,null,null,null,null,null,null,null,null,null,null,null,null,null,null,null,null,null,null,null,null,null,null,null,null,null,null,null,null,null,null,null,null,null,null,null,null,null,null,null,null,0]
[null,null,null,null,null,null,null,null,null,null,null,null,null,null,null,null,null,null,null,null,null,null,null,null,null,null,null,null,null,null,null,null,null,null,null,null,null,null,null,null,null,null,null,null,null,null,null,null,null,null,null,null,null,null,null,null,null,null,null,null,null,null,null,null,null,null,null,null,null,null,null,null,null,null,null,null,null,null,null,null,null,null,null,null,null,null,null,null,null,null,null,null,null,null,null,null,null,null,null,null,null,0]
[null,null,null,null,null,null,null,null,null,null,null,null,null,null,null,null,null,null,null,null,null,null,null,null,null,null,null,null,null,null,null,null,null,null,null,null,null,null,null,null,null,null,null,null,null,null,null,null,null,null,null,null,null,null,null,null,null,null,null,null,null,null,null,null,null,null,null,null,null,null,null,null,null,null,null,null,null,null,null,null,null,null,null,null,null,null,null,null,null,null,null,null,null,null,null,null,null,null,null,null,null,0]
[null,null,null,null,null,null,null,null,null,null,null,null,null,null,null,null,null,null,null,null,null,null,null,null,null,null,null,null,null,null,null,null,null,null,null,null,null,null,null,null,null,null,null,null,null,null,null,null,null,null,null,null,null,null,null,null,null,null,null,null,null,null,null,null,null,null,null,null,null,null,null,null,null,null,null,null,null,null,null,null,null,null,null,null,null,null,null,null,null,null,null,null,null,null,null,null,null,null,null,null,null,0]
[null,null,null,null,null,null,"18h15",null,null,null,null,null,null,null,null,null,null,null,null,null,null,null,null,null,null,null,null,null,null,null,null,null,null,null,null,null,null,null,null,null,null,null,null,null,null,null,null,null,null,null,null,null,null,null,null,null,null,null,null,null,null,null,null,null,null,null,null,null,null,null,null,null,null,null,null,null,null,null,null,null,null,null,null,null,null,null,null,null,null,null,null,null,null,null,null,null,null,null,null,null,null,0]
[null,null,null,null,null,null,null,null,null,null,null,null,null,null,null,null,null,null,null,null,null,null,null,null,null,null,null,null,null,null,null,null,null,null,null,null,null,null,null,null,null,null,null,null,null,null,null,null,null,null,null,null,null,null,null,null,null,null,null,null,null,null,null,null,null,null,null,null,null,null,null,null,null,null,null,null,null,null,null,null,null,null,null,null,null,null,null,null,null,null,null,null,null,null,null,null,null,null,null,null,null,0]
[null,null,null,null,null,null,null,null,null,null,null,null,null,null,null,null,null,null,null,null,null,null,null,null,null,null,null,null,null,null,null,null,null,null,null,null,null,null,null,null,null,null,null,null,null,null,null,null,null,null,null,null,null,null,null,null,null,null,null,null,null,null,null,null,null,null,null,null,null,null,null,null,null,null,null,null,null,null,null,null,null,null,null,null,null,null,null,null,null,null,null,null,null,null,null,null,null,null,null,null,null,0]
[null,null,null,null,null,null,null,null,null,null,null,null,null,null,null,null,null,null,null,null,null,null,null,null,null,null,null,null,null,null,null,null,null,null,null,null,null,null,null,null,null,null,null,null,null,null,null,null,null,null,null,null,null,null,null,null,null,null,null,null,null,null,null,null,null,null,null,null,null,null,null,null,null,null,null,null,null,null,null,null,null,null,null,null,null,null,null,null,null,null,null,null,null,null,null,null,null,null,null,null,null,0]
[null,null,null,null,null,null,null,null,null,null,null,null,null,null,null,null,null,null,null,null,null,null,null,null,null,null,null,null,null,null,null,null,null,null,null,null,null,null,null,null,null,null,null,null,null,null,null,null,null,null,null,null,null,null,null,null,null,null,null,null,null,null,null,null,null,null,null,null,null,null,null,null,null,null,null,null,null,null,null,null,null,null,null,null,null,null,null,null,null,null,null,null,null,null,null,null,null,null,null,null,null,0]
[null,null,null,null,null,null,null,null,null,null,null,null,null,null,null,null,null,null,null,null,null,null,null,null,null,null,null,null,null,null,null,null,null,null,null,null,null,null,null,null,null,null,null,null,null,null,null,null,null,null,null,null,null,null,null,null,null,null,null,null,null,null,null,null,null,null,null,null,null,null,null,null,null,null,null,null,null,null,null,null,null,null,null,null,null,null,null,null,null,null,null,null,null,null,null,null,null,null,null,null,null,0]
[null,null,null,null,null,null,null,null,null,null,null,null,null,null,null,null,null,null,null,null,null,null,null,null,null,null,null,null,null,null,null,null,null,null,null,null,null,null,null,null,null,null,null,null,null,null,null,null,null,null,null,null,null,null,null,null,null,null,null,null,null,null,null,null,null,null,null,null,null,null,null,null,null,null,null,null,null,null,null,null,null,null,null,null,null,null,null,null,null,null,null,null,null,null,null,null,null,null,null,null,null,0]
[null,null,null,null,null,null,null,null,null,null,null,null,null,null,null,null,null,null,null,null,null,null,null,null,null,null,null,null,null,null,null,null,null,null,null,null,null,null,null,null,null,null,null,null,null,null,null,null,null,null,null,null,null,null,null,null,null,null,null,null,null,null,null,null,null,null,null,null,null,null,null,null,null,null,null,null,null,null,null,null,null,null,null,null,null,null,null,null,null,null,null,null,null,null,null,null,null,null,null,null,null,0]
[null,1,2,3,4,5,6,7,8,9,10,11,12,13,14,15,16,17,18,19,20,21,22,23,24,25,26,27,28,29,30,31,32,33,34,35,36,37,38,39,40,41,42,43,44,45,46,47,48,49,50,51,52,53,54,55,56,57,58,59,60,61,62,63,64,65,66,67,68]
[]
[null,null,null,null,null,null,"HORAIRES",{"$f":"H6","v":"2022-01-04"},{"$f":"H313+7","v":"2022-01-11"},{"$f":"I313+7","v":"2022-01-18"},"2022-01-25","2022-02-01","2022-02-08","2022-02-15","2022-02-22","2022-03-01","2022-03-08","2022-03-15","2022-03-22","2022-03-29","2022-04-05","2022-04-12","2022-04-19","2022-04-26","2022-05-03","2022-05-10","2022-05-17","2022-05-24","2022-05-31","2022-06-07","2022-06-14","2022-06-21","2022-06-28","2022-07-05","2022-07-12","2022-07-19","2022-07-26","2022-08-02","2022-08-09","2022-08-16","2022-08-23","2022-08-30","2022-09-06","2022-09-13","2022-09-20","2022-09-27","2022-10-04","2022-10-11","2022-10-18","2022-10-25","2022-11-01","2022-11-08","2022-11-15","2022-11-22","2022-11-29","2022-12-06","2022-12-13","2022-12-20","2022-12-27","2023-01-03","2023-01-10","2023-01-17","2023-01-24","2023-01-31","2023-02-07","2023-02-14","2023-02-21","2023-02-28","2023-03-07",null,null,null,null,null,null,null,null,null,null,null,null,null,null,null,null,null,null,null,null,null,null,null,null,null,null,null,null,null,null,{"$f":"SUM(CV7:CV312)","v":76},{"$f":"SUM(CW7:CW312)","v":78},{"$f":"SUM(CX7:CX312)","v":77}]
[null,null,null,null,"Nombre\nde\nrendez-vous par heure",null,"9H00",{"$f":"COUNTIF($F7:$F38,H6)","v":0},{"$f":"COUNTIF($F7:$F38,I6)","v":0},0,0,0,0,0,0,0,0,0,0,0,0,0,0,0,0,0,0,0,0,0,0,0,0,0,0,0,0,0,0,0,0,0,0,1,0,0,0,0,2,1,0,0,0,1,2,1,4,1,2,1,1,1,1,2,0,0,0,2,0]
[null,null,null,null,null,null,"10H00",{"$f":"COUNTIF($F39:$F70,H6)","v":0},{"$f":"COUNTIF($F39:$F70,I6)","v":0},0,0,0,0,0,0,0,0,0,0,0,0,0,0,0,0,0,0,0,0,0,0,0,0,0,0,0,0,0,0,0,0,0,1,0,0,1,0,0,0,1,0,0,3,1,1,5,2,0,0,2,1,1,1,0,0,4,0,0,0]
[null,null,null,null,null,null,"11H00",{"$f":"COUNTIF($F71:$F102,H6)","v":0},{"$f":"COUNTIF($F71:$F102,I6)","v":0},0,0,0,0,0,0,0,0,0,0,0,0,0,0,0,0,0,0,0,0,0,0,0,0,0,0,0,0,0,0,0,0,0,0,0,1,0,0,1,4,0,0,0,1,0,0,1,5,0,1,2,1,1,1,0,0,0,1,0,0]
[null,null,null,null,null,null,"12H00",{"$f":"COUNTIF($F103:$F134,H6)","v":0},{"$f":"COUNTIF($F103:$F134,I6)","v":0},0,0,0,0,0,0,0,0,0,0,0,0,0,0,0,0,0,0,0,0,0,0,0,0,0,0,0,0,0,0,0,0,0,0,0,0,1,0,0,0,2,0,0,5,0,1,2,1,0,1,0,1,0,2,0,1,4,0,0,0]
[null,null,null,null,null,null,"13H00",{"$f":"COUNTIF($F135:$F166,H6)","v":0},{"$f":"COUNTIF($F135:$F166,I6)","v":0},0,0,0,0,0,0,0,0,0,0,0,0,0,0,0,0,0,0,0,0,0,0,0,0,0,0,0,0,0,0,0,0,0,0,1,0,0,0,1,0,1,0,1,1,0,3,0,3,1,0,2,4,1,2,0,1,2,0,0,0]
[null,null,null,null,null,null,"14H00",{"$f":"COUNTIF($F167:$F198,H6)","v":0},{"$f":"COUNTIF($F167:$F198,I6)","v":0},0,0,0,0,0,0,0,0,0,0,0,0,0,0,0,0,0,0,0,0,0,0,0,0,0,0,0,0,0,0,0,0,0,0,0,0,1,0,0,0,2,0,0,1,2,2,2,2,1,0,3,2,1,3,0,1,2,1,0,0]
[null,null,null,null,null,null,"15H00",{"$f":"COUNTIF($F199:$F230,H6)","v":0},{"$f":"COUNTIF($F199:$F230,I6)","v":0},0,0,0,0,0,0,0,0,0,0,0,0,0,0,0,0,0,0,0,0,0,0,0,0,0,0,0,0,0,0,0,0,0,1,0,0,0,0,2,0,1,0,0,0,2,1,0,1,2,0,5,1,0,1,0,1,3,0,0,0]
[null,null,null,null,null,null,"16H00",{"$f":"COUNTIF($F231:$F262,H6)","v":0},{"$f":"COUNTIF($F231:$F262,I6)","v":0},0,0,0,0,0,0,0,0,0,0,0,0,0,0,0,0,0,0,0,0,0,0,0,0,0,0,0,0,0,0,0,0,0,0,0,0,0,0,0,0,2,0,4,2,1,2,2,2,0,3,3,1,1,2,0,0,0,1,0,0]
[null,null,null,null,null,null,"17H00",{"$f":"COUNTIF($F263:$F294,H6)","v":0},{"$f":"COUNTIF($F263:$F294,I6)","v":0},0,0,0,0,0,0,0,0,0,0,0,0,0,0,0,0,0,0,0,0,0,0,0,0,0,0,0,0,0,0,0,0,0,0,0,1,0,0,0,0,0,0,0,2,0,0,3,2,1,0,3,6,1,2,2,0,0,0,0,0]
[null,null,null,null,null,null,"18H00",{"$f":"COUNTIF($F295:$F310,H6)","v":0},{"$f":"COUNTIF($F295:$F310,I6)","v":0},0,0,0,0,0,0,0,0,0,0,0,0,0,0,0,0,0,0,0,0,0,0,0,0,0,0,0,0,0,0,0,0,0,0,0,0,0,0,0,0,0,0,0,0,0,0,0,0,0,0,0,0,0,0,0,0,0,0,0,0]
[null,null,null,null,null,null,"Total",{"$f":"SUM(H314:H323)","v":0},{"$f":"SUM(I314:I323)","v":0},0,0,0,0,0,0,0,0,0,0,0,0,0,0,0,0,0,0,0,0,0,0,0,0,0,0,0,0,0,0,0,0,0,2,2,2,3,0,4,6,10,0,5,15,7,12,16,22,6,7,21,18,7,15,4,4,15,3,2,0]
[]
[]
[]
[]
[]
[]
[null,null,null,null,null,null,null,"2021-01-05","2021-01-12","2021-01-19","2021-01-26","2021-02-02","2021-02-09","2021-02-16","2021-02-23","2021-03-02","2021-03-09","2021-03-16","2021-03-23","2021-03-30","2021-04-06","2021-04-13","2021-04-20","2021-04-27","2021-05-04","2021-05-11","2021-05-18","2021-05-25","2021-06-01","2021-06-08","2021-06-15","2021-06-22","2021-06-29","2021-07-06","2021-07-13","2021-07-20","2021-07-27","2021-08-03","2021-08-10","2021-08-17","2021-08-24","2021-08-31","2021-09-07","2021-09-14","2021-09-21","2021-09-28","2021-10-05","2021-10-12","2021-10-19","2021-10-26","2021-11-02","2021-11-09","2021-11-16","2021-11-23","2021-11-30","2021-12-07","2021-12-14","2021-12-21","2021-12-28","2022-01-04","2022-01-11","2022-01-18","2022-01-25","2022-02-01","2022-02-08","2022-02-15","2022-02-22","2022-03-01","2022-03-08"]
[]
[]
[]
[]
[]
[]
[]
[]
[]
[]
[]
[]
[]
[]
[]
[]
[]
[]
[]
[]
[]
[]
[]
[]
[]
[]
[]
[]
[]
[]
[]
[]
[]
[]
[]
[]
[]
[]
[]
[]
[]
[]
[]
[]
[]
[]
[]
[]
[]
[]
[]
[]
[]
[]
[]
[]
[]
[]
[]
[]
[]
[]
[]
[]
[]
[]
[]
[]
[]
[]
[null,null,null,null,null,null,null,null,null,null,null,null,null,null,null,null,null,null,null,null,null,null,null,null,null,null,null,null,null,null,null,null,null,"X",null,null,null,"X",null,null,null,"X",null,null,null,"X",null,null,null,"X",null,null,null,"X",null,null,null,"X",null,null,null,"X",null,null,null,"X"]
[null,null,null,null,null,null,null,null,null,null,null,null,null,null,null,null,null,null,null,null,null,null,null,null,null,null,null,null,null,null,null,null,null,null,"X","X","X","X","X","X","X","X","X","X","X","X","X","X","X","X","X","X","X","X","X","X","X","X","X","X","X","X","X","X","X","X","X","X","X"]
[null,null,null,null,null,null,null,null,null,null,null,null,null,null,null,null,null,null,null,null,null,null,null,null,null,null,null,null,null,null,null,null,null,null,null,null,null,null,null,null,null,"X",null,"X",null,"X",null,"X",null,"X",null,"X",null,"X",null,"X",null,"X",null,"X",null,"X",null,"X",null,"X",null,"X"]
[null,null,null,null,null,null,null,null,null,null,null,null,null,null,null,null,null,null,null,null,null,null,null,null,null,null,null,null,null,null,null,null,null,"X","X","X","X","X","X","X","X","X","X","X","X","X","X","X","X","X","X","X","X","X","X","X","X","X","X","X","X","X","X","X","X","X","X","X","X"]
[null,null,null,null,null,null,null,null,null,null,null,null,null,null,null,null,null,null,null,null,null,null,null,null,null,null,null,null,null,null,null,null,null,null,null,null,null,null,null,null,null,"X","X","X","X","X","X","X","X","X","X","X","X","X","X","X","X","X","X","X","X","X","X","X","X","X","X","X","X"]
[]
[]
[]
[null,null,null,null,null,null,null,null,null,null,null,null,null,null,null,null,null,null,null,null,null,null,null,null,null,null,null,null,null,null,null,null,null,null,null,null,null,null,null,null,null,null,null,null,"X",null,null,null,"X",null,null,null,"X",null,null,null,"X",null,null,null,"X",null,null,null,"X",null,null,null,"X"]
[null,null,null,null,null,null,null,null,null,null,null,null,null,null,null,null,null,null,null,null,null,null,null,null,null,null,null,null,null,null,null,null,null,null,null,null,null,null,null,null,null,null,null,null,null,"X","X","X","X","X","X","X","X","X","X","X","X","X","X","X","X","X","X","X","X","X","X","X","X"]
[null,null,null,null,null,null,null,null,null,null,null,null,null,null,null,null,null,null,null,null,null,null,null,null,null,null,null,null,null,null,null,null,null,null,null,null,null,null,null,null,null,null,null,null,null,"X","X","X","X","X","X","X","X","X","X","X","X","X","X","X","X","X","X","X","X","X","X","X","X"]
[null,null,null,null,null,null,null,null,null,null,null,null,null,null,null,null,null,null,null,null,null,null,null,null,null,null,null,null,null,null,null,null,null,"X",null,null,null,"X",null,null,null,"X",null,null,null,"X",null,null,null,"X",null,null,null,"X",null,null,null,"X",null,null,null,"X",null,null,null,"X"]
[null,null,null,null,null,null,null,null,null,null,null,null,null,null,null,null,null,null,null,null,null,null,null,null,null,null,null,null,null,null,null,null,null,null,null,null,null,null,"X",null,"X",null,"X",null,"X",null,"X",null,"X",null,"X",null,"X",null,"X",null,"X",null,"X",null,"X",null,"X",null,"X",null,"X",null,"X"]
[]
[]
[]
[]
[]
[null,null,null,null,null,null,null,null,null,null,null,null,null,null,null,null,null,null,null,null,null,null,null,null,null,null,null,null,null,null,null,null,null,null,null,null,null,null,null,null,"X",null,"X",null,"X",null,"X",null,"X",null,"X",null,"X",null,"X",null,"X",null,"X",null,"X",null,"X",null,"X",null,"X",null,"X"]
[null,null,null,null,null,null,null,null,null,null,null,null,null,null,null,null,null,null,null,null,null,null,null,null,null,null,null,null,null,null,null,null,null,null,null,null,null,null,null,null,null,null,"X","X","X","X","X","X","X","X","X","X","X","X","X","X","X","X","X","X","X","X","X","X","X","X","X","X","X"]
[null,null,null,null,null,null,null,null,null,null,null,null,null,null,null,null,null,null,null,null,null,null,null,null,null,null,null,null,null,null,null,null,null,null,null,"X",null,"X",null,"X",null,"X",null,"X",null,"X",null,"X",null,"X",null,"X",null,"X",null,"X",null,"X",null,"X",null,"X",null,"X",null,"X",null,"X"]
[null,null,null,null,null,null,null,null,null,null,null,null,null,null,null,null,null,null,null,null,null,null,null,null,null,null,null,null,null,null,null,null,null,null,null,"X",null,"X",null,"X",null,"X",null,"X",null,"X",null,"X",null,"X",null,"X",null,"X",null,"X",null,"X",null,"X",null,"X",null,"X",null,"X",null,"X"]
[null,null,null,null,null,null,null,null,null,null,null,null,null,null,null,null,null,null,null,null,null,null,null,null,null,null,null,null,null,null,null,null,null,null,null,null,null,null,null,null,null,null,null,"X","X","X","X","X","X","X","X","X","X","X","X","X","X","X","X","X","X","X","X","X","X","X","X","X","X"]
[]
[null,null,null,null,null,null,null,null,null,null,null,null,null,null,null,null,null,null,null,null,null,null,null,null,null,null,null,null,null,null,null,null,null,null,null,null,null,null,null,null,null,null,null,"X","X","X","X","X","X","X","X","X","X","X","X","X","X","X","X","X","X","X","X","X","X","X","X","X","X"]
[null,null,null,null,null,null,null,null,null,null,null,null,null,null,null,null,null,null,null,null,null,null,null,null,null,null,null,null,null,null,null,null,null,null,null,null,null,null,null,null,"X",null,"X",null,"X",null,"X",null,"X",null,"X",null,"X",null,"X",null,"X",null,"X",null,"X",null,"X",null,"X",null,"X",null,"X"]
[null,null,null,null,null,null,null,null,null,null,null,null,null,null,null,null,null,null,null,null,null,null,null,null,null,null,null,null,null,null,null,null,null,null,null,null,"X",null,"X",null,"X",null,"X",null,"X",null,"X",null,"X",null,"X",null,"X",null,"X",null,"X",null,"X",null,"X",null,"X",null,"X",null,"X",null,"X"]
[]
[]
[]
[]
[]
[null,null,null,null,null,null,null,null,null,null,null,null,null,null,null,null,null,null,null,null,null,null,null,null,null,null,null,null,null,null,null,null,null,null,null,null,"X","X","X","X","X","X","X","X","X","X","X","X","X","X","X","X","X","X","X","X","X","X","X","X","X","X","X","X","X","X","X","X","X"]
[null,null,null,null,null,null,null,null,null,null,null,null,null,null,null,null,null,null,null,null,null,null,null,null,null,null,null,null,null,null,null,null,null,null,null,null,"X",null,"X",null,"X",null,"X",null,"X",null,"X",null,"X",null,"X",null,"X",null,"X",null,"X",null,"X",null,"X",null,"X",null,"X",null,"X",null,"X"]
[null,null,null,null,null,null,null,null,null,null,null,null,null,null,null,null,null,null,null,null,null,null,null,null,null,null,null,null,null,null,null,null,null,null,null,null,"X","X","X","X","X","X","X","X","X","X","X","X","X","X","X","X","X","X","X","X","X","X","X","X","X","X","X","X","X","X","X","X","X"]
[null,null,null,null,null,null,null,null,null,null,null,null,null,null,null,null,null,null,null,null,null,null,null,null,null,null,null,null,null,null,null,null,null,null,null,null,null,"X",null,"X",null,"X",null,"X",null,"X",null,"X",null,"X",null,"X",null,"X",null,"X",null,"X",null,"X",null,"X",null,"X",null,"X",null,"X"]
[null,null,null,null,null,null,null,null,null,null,null,null,null,null,null,null,null,null,null,null,null,null,null,null,null,null,null,null,null,null,null,null,null,null,null,null,null,null,null,null,"X",null,"X",null,"X",null,"X",null,"X",null,"X",null,"X",null,"X",null,"X",null,"X",null,"X",null,"X",null,"X",null,"X",null,"X"]
[]
[]
[]
[null,null,null,null,null,null,null,null,null,null,null,null,null,null,null,null,null,null,null,null,null,null,null,null,null,null,null,null,null,null,null,null,null,"X","X","X","X","X","X","X","X","X","X","X","X","X","X","X","X","X","X","X","X","X","X","X","X","X","X","X","X","X","X","X","X","X","X","X","X"]
[null,null,null,null,null,null,null,null,null,null,null,null,null,null,null,null,null,null,null,null,null,null,null,null,null,null,null,null,null,null,null,null,null,null,null,null,null,null,null,null,null,null,null,null,null,"X","X","X","X","X","X","X","X","X","X","X","X","X","X","X","X","X","X","X","X","X","X","X","X"]
[null,null,null,null,null,null,null,null,null,null,null,null,null,null,null,null,null,null,null,null,null,null,null,null,"X",null,"X",null,"X",null,"X",null,"X",null,"X",null,"X",null,"X",null,"X",null,"X",null,"X",null,"X",null,"X",null,"X",null,"X",null,"X",null,"X",null,"X",null,"X",null,"X",null,"X",null,"X",null,"X"]
[null,null,null,null,null,null,null,null,null,null,null,null,null,null,null,null,null,null,null,null,null,null,null,null,null,null,null,null,null,"X","X","X","X","X","X","X","X","X","X","X","X","X","X","X","X","X","X","X","X","X","X","X","X","X","X","X","X","X","X","X","X","X","X","X","X","X","X","X","X"]
[null,null,null,null,null,null,null,null,null,null,null,null,null,null,null,null,null,null,null,null,null,"X","X","X","X","X","X","X","X","X","X","X","X","X","X","X","X","X","X","X","X","X","X","X","X","X","X","X","X","X","X","X","X","X","X","X","X","X","X","X","X","X","X","X","X","X","X","X","X"]
[]
[]
[]
[null,null,null,null,null,null,null,null,null,null,null,null,null,null,null,null,null,null,null,null,null,null,null,null,null,null,null,null,null,null,null,null,null,null,"X","X","X","X","X","X","X","X","X","X","X","X","X","X","X","X","X","X","X","X","X","X","X","X","X","X","X","X","X","X","X","X","X","X","X"]
[null,null,null,null,null,null,null,null,null,null,null,null,null,null,null,null,null,null,null,null,null,null,null,null,null,null,null,null,null,null,null,null,null,null,null,null,null,null,null,null,null,null,null,"X","X","X","X","X","X","X","X","X","X","X","X","X","X","X","X","X","X","X","X","X","X","X","X","X","X"]
[null,null,null,null,null,null,null,null,null,null,null,null,null,null,null,null,null,null,null,null,null,null,null,null,null,null,null,null,null,null,null,null,null,null,null,null,null,null,null,null,null,null,null,null,"X",null,"X",null,"X",null,"X",null,"X",null,"X",null,"X",null,"X",null,"X",null,"X",null,"X",null,"X",null,"X"]
[null,null,null,null,null,null,null,null,null,null,null,null,null,null,null,null,null,null,null,null,null,null,null,null,null,null,null,null,null,null,null,null,null,null,null,null,"X",null,"X",null,"X",null,"X",null,"X",null,"X",null,"X",null,"X",null,"X",null,"X",null,"X",null,"X",null,"X",null,"X",null,"X",null,"X",null,"X"]
[null,null,null,null,null,null,null,null,null,null,null,null,null,null,null,null,null,null,null,null,null,null,null,null,null,null,null,null,null,null,null,null,null,null,null,null,null,null,"X",null,"X",null,"X",null,"X",null,"X",null,"X",null,"X",null,"X",null,"X",null,"X",null,"X",null,"X",null,"X",null,"X",null,"X",null,"X"]
[]
[]
[]
[null,null,null,null,null,null,null,null,null,null,null,null,null,null,null,null,null,null,null,null,null,null,null,null,null,null,null,null,null,null,null,null,"X",null,"X",null,"X",null,"X",null,"X",null,"X",null,"X",null,"X",null,"X",null,"X",null,"X",null,"X",null,"X",null,"X",null,"X",null,"X",null,"X",null,"X",null,"X"]
[null,null,null,null,null,null,null,null,null,null,null,null,null,null,null,null,null,null,null,null,null,null,null,null,null,null,null,null,null,null,null,null,"X",null,"X",null,"X",null,"X",null,"X",null,"X",null,"X",null,"X",null,"X",null,"X",null,"X",null,"X",null,"X",null,"X",null,"X",null,"X",null,"X",null,"X",null,"X"]
[null,null,null,null,null,null,null,null,null,null,null,null,null,null,null,null,null,null,null,null,null,null,null,null,null,null,null,null,null,null,null,null,null,null,null,null,"X",null,"X",null,"X",null,"X",null,"X",null,"X",null,"X",null,"X",null,"X",null,"X",null,"X",null,"X",null,"X",null,"X",null,"X",null,"X",null,"X"]

{"sheet":"IMPRIMER","index":2,"n_rows":51,"n_cols":28,"rows_kept":51,"cut":false,"hidden":false,"merged":[[8,7,8,8],[1,0,2,0],[3,0,4,0],[8,2,8,6],[5,0,6,0],[1,3,2,4],[1,2,2,2]]}
[]
[null,null,"Saisir Mardi JJ/MM/AA","2022-11-29"]
[]
[]
[]
[]
[]
[]
[null,null,"FAMILLES ATTENDUES CE MARDI :",null,null,null,null,{"$f":"D2","v":"2022-11-29"},null,null,null,null,null,null,null,null,null,null,"Nb famille","Parts"]
[1,"09H00","AVAGYAN METAKSYA",6,"GIUSTINI LAYMET",3,"HASPERUE ELODIE",5,"LAMBERT JENNIFER ",3,"NECHEPURENKO OLEKSANDRA",6,"TO SANDRINE",5]
[2,"09H15","AVENIER  MELINDA ",2,"BARBOSA PASCALE ",1,"BONFA JACQUES",1,"FERRARA PATRICE",4,"GHARSALLI ABDESSALEM",6]
[3,"09H30","BENGRIBA LAETITIA ",3,"BERNARD YASMINA",2,"GEROMIN  VICTOR",4,"MIROSHNYCENKO YANITA ",3,"SICARD EVELYNE ",2,"ZENAT LEILA",5,null,null,null,null,null,null,{"$f":"COUNTIF(D10:D21,\">0\")","v":12},{"$f":"COUNTIF(F10:F21,\">0\")","v":12},{"$f":"COUNTIF(H10:H21,\">0\")","v":12},{"$f":"COUNTIF(J10:J21,\">0\")","v":10},{"$f":"COUNTIF(L10:L21,\">0\")","v":6},{"$f":"COUNTIF(N10:N21,\">0\")","v":4},{"$f":"COUNTIF(P10:P21,\">0\")","v":0},{"$f":"COUNTIF(R10:R21,\">0\")","v":0}]
[4,"09H45","CHARVOLIN CAROLINE",5,"DENIS SOPHIE",2,"KAOUECHE SABRINA",3,"SINGIER DANIELLE",1,null,null,null,null,null,null,null,null,"Matin"]
[5,"10H00","AYDIN  YELIZ",3,"GHILOUFI BRIKA ",2,"SAEZ NATHALIE ",2,null,null,null,null,null,null,null,null,null,null,{"$f":"U12+V12+W12+X12+Y12+Z12+AA12+AB12","v":56}]
[6,"10H15","BROSSARD DELPHINE",2,"CROSARA ROBERT ",2,"DIALLO SAIDOU ",1,"MATSENKO YULIYA",2,"PULEIO GERMAINE",1,"VITALLY PATRICIA",1,null,null,null,null,{"$f":"T21/S50","v":0.31403118040089084},{"$f":"S15","v":0.31403118040089084}]
[7,"10H30","ABBOU RABIHA",1,"DUBOC VALÉRIE",4,"MARTINO RACHËL",1,"MAZZILLI  HÉLÈNE",2]
[8,"10H45","ARANA GALA SONIA ",2,"ASIEN JEAN-MARC ",3,"NEPOTE-CIT CHRISTELLE",2,"NOIRON FLORENCE",1]
[9,"11h00","KHAMTACHE ZOULHIRA",1,"NIKOLIC MILAN ",4,"QUAIX CARINE",4]
[10,"11h15","AVENIER BODION NICOLAS ",1,"BRIAND BRIGITTE",3,"BRIAND JENIFFER",1,"MORDANT SAMUEL ",1,"POULET MIREILLE",2]
[11,"11h30","BALBO MELODIE ",3,"BALDUCCI JORDAN",1,"FROELICH SOPHA",3,"REY CHRISTELLE",3]
[12,"11h45","DANJARD ERIC ",1,"MEO MIREILLE",1,"MOSCONE MARTINE ",2,"ROTA CLAUDIE",1,"SAIDI BELTAHAR",3,"SEFFAL FATIMA",2,null,null,null,null,null,{"$f":"SUM(D10:D21,F10:F21,H10:H21,J10:J21,L10:L21,N10:N21,P10:P21,R10:R21)","v":141}]
[13,"12h00","ARVET MARIE CHRISTINE",1,"BOURAS AKILA",1,"GIANNALI FANNY ",2,"PHILIPPE DENIS",1,"TARDIF SANDRINE ",2]
[14,"12h15","BLAIREAU FLORENCE",1,"GAFFARD MARTINE ",1,"HUMBERT VERONIQUE ",2,"SYLLA MOHAMED ",1,"TERESHKO/KALEVYCH TÉTIANA ",7,"TRAORE FATOU",4]
[15,"12h30","CARTIER MILLION JOSÉPHINE",2,"DEPIN FREDERIC ",1,"DUFOUR LAURENCE",1,"HRZHELIAK MARIIA ",5,"LECONTE AUDE",1]
[16,"12h45","ABDELBOST  FARIDA",1,"HRYHORENKO  LIUDMYLA ",7,"LACHIZE VALÉRIE",2,"REY EDITH",2,"THORN CATHERINE ",2]
[17,"13h00","CHAVES TIFFANY",5,"CONTU GRÉGORY ",3,"CONTU GUY",1,"DALBON GOULAZ ",2,"GHILOUFI SOUMAYA",2,"VAUCELLE SARAH",3,null,null,null,null,"Midi",{"$f":"S28","v":0.35634743875278396}]
[18,"13h15","BARRAL EMMANUELLE ",1,"DELUBAC  VALERIE",3,"DI CICCO",2,"HERNANDEZ MAGALIE",3,"LEVET SEVERINE",2,"MEHADHBI AHMED",1,"PIANETTA  JÉROME",3,null,null,{"$f":"U27+V27+W27+X27+Y27+Z27+AA27+AB27","v":63},null,{"$f":"COUNTIF(D22:D33,\">0\")","v":12},{"$f":"COUNTIF(F22:F33,\">0\")","v":12},{"$f":"COUNTIF(H22:H33,\">0\")","v":12},{"$f":"COUNTIF(J22:J33,\">0\")","v":12},{"$f":"COUNTIF(L22:L33,\">0\")","v":10},{"$f":"COUNTIF(N22:N33,\">0\")","v":4},{"$f":"COUNTIF(P22:P33,\">0\")","v":1},{"$f":"COUNTIF(R22:R33,\">0\")","v":0}]
[19,"13h30","BOUTIN THOMAS",1,"BRUTTI MANON ",3,"GERVAIS ELISABETH",2,"GUIMET JULIE",2,"RAISS HADJARA ",3,null,null,null,null,null,null,{"$f":"T33/S50","v":0.35634743875278396}]
[20,"13h45","BELLANGER   SANDRINE",4,"D'ASCOLI MORGANE",1,"MATENCIO HANIFA",3,"SPILCHUK ANASTASIA ",2]
[21,"14h00","BORDIGNON ANNE ",1,"BOULKOUR CAROLE",4,"FREMAUX  LAURENT",3,"SEDITA LINA ",2,"SEDRATI JENNIFER",3]
[22,"14h15","ARNOUX NICOLE-JULIA",5,"BERMOND CHANTAL ",1,"BOUDIN EVELYNE",1,"NESME  CELINE",4,"SCHEID MONIA",7]
[23,"14h30","BARA AMINATA ",3,"COMPAORE  AFFISSATOU",3,"LIVRON CELINE ",7,"MUTET STÉPHANE ",1]
[24,"14h45","BEN EL CAID KHADIJA",2,"CHATEL JUSTINE",3,"GUIEBRE HADIARA ",3,"LAMNASFI REDA",1,"SOUID SABAH",4,"ZEHR  MELANIE ",3,null,null,null,null,null,{"$f":"SUM(D22:D33,F22:F33,H22:H33,J22:J33,L22:L33,N22:N33,P22:P33,R22:R33)","v":160}]
[25,"15h00","BAUER AURELIE ",5,"HENOT PIERRE ",1,"SENOTOVA MARYNA ",3,"SHPAK DARIA",1]
[26,"15h15","BUTTY PASCAL",4,"COYNET ANAIS",5,"DECHAUME  YVES ",1,"POLIANSKA ELINA",1]
[27,"15h30","BOUYAHAOUI SONIA",5,"MHADRI BOUBAKER",1]
[28,"15h45","COURTY LUCIE",4,"EL MAJERI  LOBNA ",6,"EL OUARIACHI  YOUNES ",1]
[29,"16h00","DEDULLE  GENEVIÈVE",1,"DIALLO MAMMADOU",4,"GAUDE FLORIAN",2,"GIRARD VIRGINIE",3,"PAYERNE JESSICA ",4,"VIGUIER CHARLINE",1,null,null,null,null,"Soir",{"$f":"S40","v":0.32962138084632514}]
[30,"16h15","CATRIS LORIS ",1,"DIABY  YAYA",3,"MARELLI SANDRINE ",4,"PYLYPENKO NATALIA",4,"ROSHCHINA  MARHARYTA ",3,"THOMAS JULIEN ",1,null,null,null,null,{"$f":"U39+V39+W39+X39+Y39+Z39+AA39+AB39","v":59},null,{"$f":"COUNTIF(D34:D49,\">0\")","v":12},{"$f":"COUNTIF(F34:F49,\">0\")","v":12},{"$f":"COUNTIF(H34:H49,\">0\")","v":11},{"$f":"COUNTIF(J34:J49,\">0\")","v":9},{"$f":"COUNTIF(L34:L49,\">0\")","v":7},{"$f":"COUNTIF(N34:N49,\">0\")","v":7},{"$f":"COUNTIF(P34:P49,\">0\")","v":1},{"$f":"COUNTIF(R34:R49,\">0\")","v":0}]
[31,"16h30","ALAYA MOHAMMED ",1,"BLAZHEV OLGISTSA",4,"COLLOMB SYLVAIN",1,"MAURICE GAETAN ",1,"MAURICE LIONEL ",2,"POUPART VALERIE",1,"VAQUER MARIE PIERRE",2,null,null,{"$f":"T49/S50","v":0.32962138084632514}]
[32,"16h45","CHALTOUT NALWEL",2,"CLEENEWERCK SYLVAIN",1,"DA COSTA MATOS  ",1,"GARIN MAUDE",4,"MATENCIO  SAMPER MICHEL",2,"SCHEID MAGDALENA ",2]
[33,"17h00","BALBO CINDY",1,"CHERVETSKA  SVITLANA",4,"CYPRYK ELISA",3,"GALLO FANNY",3,"MARYNICH NATALIA",3,"SEFI AMIR",1]
[34,"17h15","DUPONT  ISABELLE",3,"FREMIET DORIAN ",1,"GIROUD GAELLE",1]
[35,"17h30","DESPRES CELINE",5,"FORCINA LOLA",3,"HEGELMANN THIERRY",1,"LAPALUS FREDERICK",1,"SALEM MALIK",2,"TARASOVA  HANNA",3]
[36,"17h45","BOULANGER MARIE FRANCOISE ",1,"KLYMNIUK SVITLANA",3,"LUNIENKOV ANDRE",7,"PODOBIED VALERIA",6,"SHUMEIKO LILIIA",4,"VENET  FREDERICQUES ",3]
[37,"18h00"]
[38,"18h15"]
[39,"18h30"]
[40,"18h45",null,null,null,null,null,null,null,null,null,null,null,null,null,null,null,null,null,{"$f":"SUM(D34:D49,F34:F49,H37:H49,J34:J49,L34:L49,N34:N49,P34:P49,R34:R49)","v":148}]
[null,null,null,{"$f":"SUM(D10:D49)","v":90},null,{"$f":"SUM(F10:F49)","v":95},null,{"$f":"SUM(H10:H49)","v":83},null,{"$f":"SUM(J10:J49)","v":71},null,{"$f":"SUM(L10:L49)","v":73},null,{"$f":"SUM(N10:N49)","v":36},null,{"$f":"SUM(P10:P49)","v":5},null,{"$f":"SUM(R10:R49)","v":0},{"$f":"T21+T33+T49","v":449}]
[null,null,1,2,3,4,5,6,7,8,9,10,11,12,13,14]

{"sheet":"Repartition","index":3,"n_rows":11,"n_cols":5,"rows_kept":11,"cut":false,"hidden":false,"merged":[[2,4,2,5],[2,0,2,3]]}
["Répartition des RAMASSES Le LUNDI Matin et ACHATS "]
[]
["Pour Permanence du MARDI :",null,null,null,{"$f":"IMPRIMER!H9","v":"2022-11-29"}]
[]
[null,null,"Nombre \nde personnes","En %","En part"]
[]
[null,"MATIN",{"$f":"IMPRIMER!T21","v":141},{"$f":"IMPRIMER!S15","v":0.31403118040089084},{"$f":"IMPRIMER!T15","v":0.31403118040089084}]
[]
[null,"MIDI",{"$f":"IMPRIMER!T33","v":160},{"$f":"IMPRIMER!S28","v":0.35634743875278396},{"$f":"IMPRIMER!T26","v":0.35634743875278396}]
[]
[null,"SOIR",{"$f":"IMPRIMER!T49","v":148},{"$f":"IMPRIMER!S40","v":0.32962138084632514},{"$f":"IMPRIMER!T38","v":0.32962138084632514}]

{"sheet":"rendez vous","index":4,"n_rows":16,"n_cols":69,"rows_kept":16,"cut":false,"hidden":false,"merged":[[6,4,15,5]]}
[null,null,null,null,null,null,null,{"$f":"TODAY()","v":"2022-12-19"}]
[]
[]
[]
[]
[null,null,null,null,null,null,{"$f":"Saisie!G313","v":"HORAIRES"},{"$f":"Saisie!H313","v":"2022-01-04"},{"$f":"Saisie!I313","v":"2022-01-11"},{"$f":"Saisie!J313","v":"2022-01-18"},{"$f":"Saisie!K313","v":"2022-01-25"},{"$f":"Saisie!L313","v":"2022-02-01"},{"$f":"Saisie!M313","v":"2022-02-08"},{"$f":"Saisie!N313","v":"2022-02-15"},{"$f":"Saisie!O313","v":"2022-02-22"},{"$f":"Saisie!P313","v":"2022-03-01"},{"$f":"Saisie!Q313","v":"2022-03-08"},{"$f":"Saisie!R313","v":"2022-03-15"},{"$f":"Saisie!S313","v":"2022-03-22"},{"$f":"Saisie!T313","v":"2022-03-29"},{"$f":"Saisie!U313","v":"2022-04-05"},{"$f":"Saisie!V313","v":"2022-04-12"},{"$f":"Saisie!W313","v":"2022-04-19"},{"$f":"Saisie!X313","v":"2022-04-26"},{"$f":"Saisie!Y313","v":"2022-05-03"},{"$f":"Saisie!Z313","v":"2022-05-10"},{"$f":"Saisie!AA313","v":"2022-05-17"},{"$f":"Saisie!AB313","v":"2022-05-24"},{"$f":"Saisie!AC313","v":"2022-05-31"},{"$f":"Saisie!AD313","v":"2022-06-07"},{"$f":"Saisie!AE313","v":"2022-06-14"},{"$f":"Saisie!AF313","v":"2022-06-21"},{"$f":"Saisie!AG313","v":"2022-06-28"},{"$f":"Saisie!AH313","v":"2022-07-05"},{"$f":"Saisie!AI313","v":"2022-07-12"},{"$f":"Saisie!AJ313","v":"2022-07-19"},{"$f":"Saisie!AK313","v":"2022-07-26"},{"$f":"Saisie!AL313","v":"2022-08-02"},{"$f":"Saisie!AM313","v":"2022-08-09"},{"$f":"Saisie!AN313","v":"2022-08-16"},{"$f":"Saisie!AO313","v":"2022-08-23"},{"$f":"Saisie!AP313","v":"2022-08-30"},{"$f":"Saisie!AQ313","v":"2022-09-06"},{"$f":"Saisie!AR313","v":"2022-09-13"},{"$f":"Saisie!AS313","v":"2022-09-20"},{"$f":"Saisie!AT313","v":"2022-09-27"},{"$f":"Saisie!AU313","v":"2022-10-04"},{"$f":"Saisie!AV313","v":"2022-10-11"},{"$f":"Saisie!AW313","v":"2022-10-18"},{"$f":"Saisie!AX313","v":"2022-10-25"},{"$f":"Saisie!AY313","v":"2022-11-01"},{"$f":"Saisie!AZ313","v":"2022-11-08"},{"$f":"Saisie!BA313","v":"2022-11-15"},{"$f":"Saisie!BB313","v":"2022-11-22"},{"$f":"Saisie!BC313","v":"2022-11-29"},{"$f":"Saisie!BD313","v":"2022-12-06"},{"$f":"Saisie!BE313","v":"2022-12-13"},{"$f":"Saisie!BF313","v":"2022-12-20"},{"$f":"Saisie!BG313","v":"2022-12-27"},{"$f":"Saisie!BH313","v":"2023-01-03"},{"$f":"Saisie!BI313","v":"2023-01-10"},{"$f":"Saisie!BJ313","v":"2023-01-17"},{"$f":"Saisie!BK313","v":"2023-01-24"},{"$f":"Saisie!BL313","v":"2023-01-31"},{"$f":"Saisie!BM313","v":"2023-02-07"},{"$f":"Saisie!BN313","v":"2023-02-14"},{"$f":"Saisie!BO313","v":"2023-02-21"},{"$f":"Saisie!BP313","v":"2023-02-28"},{"$f":"Saisie!BQ313","v":"2023-03-07"}]
[null,null,null,null,"Nombre\nde\nrendez-vous par heure",null,"9H00",{"$f":"Saisie!H314","v":0},{"$f":"Saisie!I314","v":0},{"$f":"Saisie!J314","v":0},{"$f":"Saisie!K314","v":0},{"$f":"Saisie!L314","v":0},{"$f":"Saisie!M314","v":0},{"$f":"Saisie!N314","v":0},{"$f":"Saisie!O314","v":0},{"$f":"Saisie!P314","v":0},{"$f":"Saisie!Q314","v":0},{"$f":"Saisie!R314","v":0},{"$f":"Saisie!S314","v":0},{"$f":"Saisie!T314","v":0},{"$f":"Saisie!U314","v":0},{"$f":"Saisie!V314","v":0},{"$f":"Saisie!W314","v":0},{"$f":"Saisie!X314","v":0},{"$f":"Saisie!Y314","v":0},{"$f":"Saisie!Z314","v":0},{"$f":"Saisie!AA314","v":0},{"$f":"Saisie!AB314","v":0},{"$f":"Saisie!AC314","v":0},{"$f":"Saisie!AD314","v":0},{"$f":"Saisie!AE314","v":0},{"$f":"Saisie!AF314","v":0},{"$f":"Saisie!AG314","v":0},{"$f":"Saisie!AH314","v":0},{"$f":"Saisie!AI314","v":0},{"$f":"Saisie!AJ314","v":0},{"$f":"Saisie!AK314","v":0},{"$f":"Saisie!AL314","v":0},{"$f":"Saisie!AM314","v":0},{"$f":"Saisie!AN314","v":0},{"$f":"Saisie!AO314","v":0},{"$f":"Saisie!AP314","v":0},{"$f":"Saisie!AQ314","v":0},{"$f":"Saisie!AR314","v":1},{"$f":"Saisie!AS314","v":0},{"$f":"Saisie!AT314","v":0},{"$f":"Saisie!AU314","v":0},{"$f":"Saisie!AV314","v":0},{"$f":"Saisie!AW314","v":2},{"$f":"Saisie!AX314","v":1},{"$f":"Saisie!AY314","v":0},{"$f":"Saisie!AZ314","v":0},{"$f":"Saisie!BA314","v":0},{"$f":"Saisie!BB314","v":1},{"$f":"Saisie!BC314","v":2},{"$f":"Saisie!BD314","v":1},{"$f":"Saisie!BE314","v":4},{"$f":"Saisie!BF314","v":1},{"$f":"Saisie!BG314","v":2},{"$f":"Saisie!BH314","v":1},{"$f":"Saisie!BI314","v":1},{"$f":"Saisie!BJ314","v":1},{"$f":"Saisie!BK314","v":1},{"$f":"Saisie!BL314","v":2},{"$f":"Saisie!BM314","v":0},{"$f":"Saisie!BN314","v":0},{"$f":"Saisie!BO314","v":0},{"$f":"Saisie!BP314","v":2},{"$f":"Saisie!BQ314","v":0}]
[null,null,null,null,null,null,"10H00",null,null,null,null,null,null,null,null,null,null,null,null,null,null,null,null,null,null,null,null,null,null,null,null,null,null,null,null,null,null,null,null,null,null,null,null,null,null,null,null,{"$f":"Saisie!AV315","v":0},{"$f":"Saisie!AW315","v":0},{"$f":"Saisie!AX315","v":1},{"$f":"Saisie!AY315","v":0},{"$f":"Saisie!AZ315","v":0},{"$f":"Saisie!BA315","v":3},{"$f":"Saisie!BB315","v":1},{"$f":"Saisie!BC315","v":1},{"$f":"Saisie!BD315","v":5},{"$f":"Saisie!BE315","v":2},{"$f":"Saisie!BF315","v":0},{"$f":"Saisie!BG315","v":0},{"$f":"Saisie!BH315","v":2},{"$f":"Saisie!BI315","v":1},{"$f":"Saisie!BJ315","v":1},{"$f":"Saisie!BK315","v":1},{"$f":"Saisie!BL315","v":0},{"$f":"Saisie!BM315","v":0},{"$f":"Saisie!BN315","v":4},{"$f":"Saisie!BO315","v":0},{"$f":"Saisie!BP315","v":0},{"$f":"Saisie!BQ315","v":0}]
[null,null,null,null,null,null,"11H00",null,null,null,null,null,null,null,null,null,null,null,null,null,null,null,null,null,null,null,null,null,null,null,null,null,null,null,null,null,null,null,null,null,null,null,null,null,null,null,null,{"$f":"Saisie!AV316","v":1},{"$f":"Saisie!AW316","v":4},{"$f":"Saisie!AX316","v":0},{"$f":"Saisie!AY316","v":0},{"$f":"Saisie!AZ316","v":0},{"$f":"Saisie!BA316","v":1},{"$f":"Saisie!BB316","v":0},{"$f":"Saisie!BC316","v":0},{"$f":"Saisie!BD316","v":1},{"$f":"Saisie!BE316","v":5},{"$f":"Saisie!BF316","v":0},{"$f":"Saisie!BG316","v":1},{"$f":"Saisie!BH316","v":2},{"$f":"Saisie!BI316","v":1},{"$f":"Saisie!BJ316","v":1},{"$f":"Saisie!BK316","v":1},{"$f":"Saisie!BL316","v":0},{"$f":"Saisie!BM316","v":0},{"$f":"Saisie!BN316","v":0},{"$f":"Saisie!BO316","v":1},{"$f":"Saisie!BP316","v":0},{"$f":"Saisie!BQ316","v":0}]
[null,null,null,null,null,null,"12H00",null,null,null,null,null,null,null,null,null,null,null,null,null,null,null,null,null,null,null,null,null,null,null,null,null,null,null,null,null,null,null,null,null,null,null,null,null,null,null,null,{"$f":"Saisie!AV317","v":0},{"$f":"Saisie!AW317","v":0},{"$f":"Saisie!AX317","v":2},{"$f":"Saisie!AY317","v":0},{"$f":"Saisie!AZ317","v":0},{"$f":"Saisie!BA317","v":5},{"$f":"Saisie!BB317","v":0},{"$f":"Saisie!BC317","v":1},{"$f":"Saisie!BD317","v":2},{"$f":"Saisie!BE317","v":1},{"$f":"Saisie!BF317","v":0},{"$f":"Saisie!BG317","v":1},{"$f":"Saisie!BH317","v":0},{"$f":"Saisie!BI317","v":1},{"$f":"Saisie!BJ317","v":0},{"$f":"Saisie!BK317","v":2},{"$f":"Saisie!BL317","v":0},{"$f":"Saisie!BM317","v":1},{"$f":"Saisie!BN317","v":4},{"$f":"Saisie!BO317","v":0},{"$f":"Saisie!BP317","v":0},{"$f":"Saisie!BQ317","v":0}]
[null,null,null,null,null,null,"13H00",null,null,null,null,null,null,null,null,null,null,null,null,null,null,null,null,null,null,null,null,null,null,null,null,null,null,null,null,null,null,null,null,null,null,null,null,null,null,null,null,{"$f":"Saisie!AV318","v":1},{"$f":"Saisie!AW318","v":0},{"$f":"Saisie!AX318","v":1},{"$f":"Saisie!AY318","v":0},{"$f":"Saisie!AZ318","v":1},{"$f":"Saisie!BA318","v":1},{"$f":"Saisie!BB318","v":0},{"$f":"Saisie!BC318","v":3},{"$f":"Saisie!BD318","v":0},{"$f":"Saisie!BE318","v":3},{"$f":"Saisie!BF318","v":1},{"$f":"Saisie!BG318","v":0},{"$f":"Saisie!BH318","v":2},{"$f":"Saisie!BI318","v":4},{"$f":"Saisie!BJ318","v":1},{"$f":"Saisie!BK318","v":2},{"$f":"Saisie!BL318","v":0},{"$f":"Saisie!BM318","v":1},{"$f":"Saisie!BN318","v":2},{"$f":"Saisie!BO318","v":0},{"$f":"Saisie!BP318","v":0},{"$f":"Saisie!BQ318","v":0}]
[null,null,null,null,null,null,"14H00",null,null,null,null,null,null,null,null,null,null,null,null,null,null,null,null,null,null,null,null,null,null,null,null,null,null,null,null,null,null,null,null,null,null,null,null,null,null,null,null,{"$f":"Saisie!AV319","v":0},{"$f":"Saisie!AW319","v":0},{"$f":"Saisie!AX319","v":2},{"$f":"Saisie!AY319","v":0},{"$f":"Saisie!AZ319","v":0},{"$f":"Saisie!BA319","v":1},{"$f":"Saisie!BB319","v":2},{"$f":"Saisie!BC319","v":2},{"$f":"Saisie!BD319","v":2},{"$f":"Saisie!BE319","v":2},{"$f":"Saisie!BF319","v":1},{"$f":"Saisie!BG319","v":0},{"$f":"Saisie!BH319","v":3},{"$f":"Saisie!BI319","v":2},{"$f":"Saisie!BJ319","v":1},{"$f":"Saisie!BK319","v":3},{"$f":"Saisie!BL319","v":0},{"$f":"Saisie!BM319","v":1},{"$f":"Saisie!BN319","v":2},{"$f":"Saisie!BO319","v":1},{"$f":"Saisie!BP319","v":0},{"$f":"Saisie!BQ319","v":0}]
[null,null,null,null,null,null,"15H00",null,null,null,null,null,null,null,null,null,null,null,null,null,null,null,null,null,null,null,null,null,null,null,null,null,null,null,null,null,null,null,null,null,null,null,null,null,null,null,null,{"$f":"Saisie!AV320","v":2},{"$f":"Saisie!AW320","v":0},{"$f":"Saisie!AX320","v":1},{"$f":"Saisie!AY320","v":0},{"$f":"Saisie!AZ320","v":0},{"$f":"Saisie!BA320","v":0},{"$f":"Saisie!BB320","v":2},{"$f":"Saisie!BC320","v":1},{"$f":"Saisie!BD320","v":0},{"$f":"Saisie!BE320","v":1},{"$f":"Saisie!BF320","v":2},{"$f":"Saisie!BG320","v":0},{"$f":"Saisie!BH320","v":5},{"$f":"Saisie!BI320","v":1},{"$f":"Saisie!BJ320","v":0},{"$f":"Saisie!BK320","v":1},{"$f":"Saisie!BL320","v":0},{"$f":"Saisie!BM320","v":1},{"$f":"Saisie!BN320","v":3},{"$f":"Saisie!BO320","v":0},{"$f":"Saisie!BP320","v":0},{"$f":"Saisie!BQ320","v":0}]
[null,null,null,null,null,null,"16H00",null,null,null,null,null,null,null,null,null,null,null,null,null,null,null,null,null,null,null,null,null,null,null,null,null,null,null,null,null,null,null,null,null,null,null,null,null,null,null,null,{"$f":"Saisie!AV321","v":0},{"$f":"Saisie!AW321","v":0},{"$f":"Saisie!AX321","v":2},{"$f":"Saisie!AY321","v":0},{"$f":"Saisie!AZ321","v":4},{"$f":"Saisie!BA321","v":2},{"$f":"Saisie!BB321","v":1},{"$f":"Saisie!BC321","v":2},{"$f":"Saisie!BD321","v":2},{"$f":"Saisie!BE321","v":2},{"$f":"Saisie!BF321","v":0},{"$f":"Saisie!BG321","v":3},{"$f":"Saisie!BH321","v":3},{"$f":"Saisie!BI321","v":1},{"$f":"Saisie!BJ321","v":1},{"$f":"Saisie!BK321","v":2},{"$f":"Saisie!BL321","v":0},{"$f":"Saisie!BM321","v":0},{"$f":"Saisie!BN321","v":0},{"$f":"Saisie!BO321","v":1},{"$f":"Saisie!BP321","v":0},{"$f":"Saisie!BQ321","v":0}]
[null,null,null,null,null,null,"17H00",null,null,null,null,null,null,null,null,null,null,null,null,null,null,null,null,null,null,null,null,null,null,null,null,null,null,null,null,null,null,null,null,null,null,null,null,null,null,null,null,{"$f":"Saisie!AV322","v":0},{"$f":"Saisie!AW322","v":0},{"$f":"Saisie!AX322","v":0},{"$f":"Saisie!AY322","v":0},{"$f":"Saisie!AZ322","v":0},{"$f":"Saisie!BA322","v":2},{"$f":"Saisie!BB322","v":0},{"$f":"Saisie!BC322","v":0},{"$f":"Saisie!BD322","v":3},{"$f":"Saisie!BE322","v":2},{"$f":"Saisie!BF322","v":1},{"$f":"Saisie!BG322","v":0},{"$f":"Saisie!BH322","v":3},{"$f":"Saisie!BI322","v":6},{"$f":"Saisie!BJ322","v":1},{"$f":"Saisie!BK322","v":2},{"$f":"Saisie!BL322","v":2},{"$f":"Saisie!BM322","v":0},{"$f":"Saisie!BN322","v":0},{"$f":"Saisie!BO322","v":0},{"$f":"Saisie!BP322","v":0},{"$f":"Saisie!BQ322","v":0}]
[null,null,null,null,null,null,"18H00",null,null,null,null,null,null,null,null,null,null,null,null,null,null,null,null,null,null,null,null,null,null,null,null,null,null,null,null,null,null,null,null,null,null,null,null,null,null,null,null,{"$f":"Saisie!AV323","v":0},{"$f":"Saisie!AW323","v":0},{"$f":"Saisie!AX323","v":0},{"$f":"Saisie!AY323","v":0},{"$f":"Saisie!AZ323","v":0},{"$f":"Saisie!BA323","v":0},{"$f":"Saisie!BB323","v":0},{"$f":"Saisie!BC323","v":0},{"$f":"Saisie!BD323","v":0},{"$f":"Saisie!BE323","v":0},{"$f":"Saisie!BF323","v":0},{"$f":"Saisie!BG323","v":0},{"$f":"Saisie!BH323","v":0},{"$f":"Saisie!BI323","v":0},{"$f":"Saisie!BJ323","v":0},{"$f":"Saisie!BK323","v":0},{"$f":"Saisie!BL323","v":0},{"$f":"Saisie!BM323","v":0},{"$f":"Saisie!BN323","v":0},{"$f":"Saisie!BO323","v":0},{"$f":"Saisie!BP323","v":0},{"$f":"Saisie!BQ323","v":0}]